{"text_format":"1","workbook":"xlsx","n_sheets":18,"sheets":["Consignes et CGU","Guidelines and Terms of use","PRODUCTS","SUPPLIERS","RMELEMENTS","FACTORIES","PRODUITS","PROD_FACT","LABELS","CompileCB","UniciteCB","MatriceTestProd","Chemin d'acces","MatriceTestSup","DATACOUNTRIES","label_numbers","DictMP","DictCertif"],"not_rendered":{"charts":0,"images":0,"macros":1,"external_links":0,"defined_names":43,"comments":1,"pivot_tables":0},"unopened":[],"bounds":{"document_bytes":16777216,"sheet_cells":100000,"rows_first":2000,"rows_last":500,"rows_between":2000,"halvings":0,"cell_chars":16384,"cell_head_chars":4096},"cells_cut":0,"cells_raw":0,"read":"whole","date_system":"1900"}

{"sheet":"Consignes et CGU","index":0,"n_rows":10,"n_cols":2,"rows_kept":10,"cut":false,"hidden":false,"merged":[]}
[]
[null,"CLEAR FASHION\nINFORMATIONS SUR LA FICHE PRODUITS"]
[]
[null,"FICHE PRODUITS\n\nLe référencement des marques au niveau produits leur permet d'obtenir un score sur les articles de leurs choix et d'être davantage transparents vis-à-vis des consommateurs. Il permet aux marques  de renseigner des informations précises sur les produits et les fournisseurs intervenant dans leur chaine de fabrication.\n\nCe document est divisé en deux onglets : un onglet \"PRODUCTS\" et un onglet \"SUPPLIERS\". Chaque onglet est composé d'un tableau permettant de renseigner les informations souhaitées. \nPour chacun d'entre eux : \n* une ligne correspond à un produit (PRODUCTS) ou à un fournisseur (SUPPLIERS)\n* une colonne correspond à un élément d'information qui sera pris en compte lors de la notation par exemple la composition d'un produit (PRODUCTS) ou le code d'un fournisseur (SUPPLIERS)\n\nPour compléter ces deux onglets, il est préférable d'utiliser les valeurs et formats suggérés sur les lignes grisées des tableaux de chaque onglet."]
[]
[null,"L’ONGLET PRODUCTS\n\nIl permet à la marque de renseigner les informations détaillées sur ses références disponibles en magasin ou sur son site internet.\n\nUne ligne correspond à une seule page (une note) sur l'application : une seule composition, des caractéristiques et engagements identiques, un même maillon de la chaine de production. En revanche, certains éléments peuvent être regroupés sous une même ligne : si un article existe en différentes tailles et/ou couleurs par exemple). Dans ce cas, il est possible de regrouper les produits sur une même ligne en précisant les différents codes produits, séparés d'un point virgule, dans la colonne \"Product code\". \n\nLes informations nécessaires (colonnes jaunes) pour une référence produit sont : son code-barres, sa catégorie et sa composition. Les autres questions ne sont pas obligatoires mais permettent aux consommateurs d'accéder à davantage d'informations. Pour en savoir plus, se référer au document d'aide au remplissage des fiches produits :"]
[null,"Consulter le Document d'aide - Fiche produits"]
[null,"L’ONGLET SUPPLIERS\n\nIl permet à la marque de renseigner les informations concernant les fournisseurs des produits référencés dans l'onglet PRODUCTS. Pour en savoir plus, se référer au document d'aide au remplissage des fiches produits :"]
[null,"Consulter le Document d'aide - Fiche produits"]
[null,"Intellectual property and Terms and Conditions\nEn participant à Clear Fashion, vous acceptez les termes et conditions, disponibles dans la section marque : https://www.clear-fashion.com/documentation-marque"]

{"sheet":"Guidelines and Terms of use","index":1,"n_rows":10,"n_cols":2,"rows_kept":10,"cut":false,"hidden":false,"merged":[]}
[]
[null,"CLEAR FASHION\nINFORMATIONS ON PRODUCT FORM"]
[]
[null,"PRODUCT FORM\n\nThis form allows a brand to reference and score its products, giving consumers access to more information about the items sold by the brand and allowing brands to be more transparent. Brands can provide precise and specific information on the products and on the suppliers involved in their manufacturing chain.\n\nThis document is divided into two tabs: a \"PRODUCTS\" tab and a \"SUPPLIERS\" tab. Each tab is composed of a table allowing brands to fill in information required to build the score. \nFor each table: \n* one line corresponds to one product (PRODUCTS) or one supplier (SUPPLIERS)\n* one column corresponds to one piece of information that will be taken into account during the scoring, for example the composition of a product (PRODUCTS) or the code of a supplier (SUPPLIERS)\n\nTo complete these two tabs, it is better to use the values and formats suggested on the grayed lines of the tables in each tab."]
[]
[null,"THE PRODUCT TAB\n\nIt allows the brand to provide detailed information on its items available in store or on its website.\n\nA line corresponds to a single page (a note) on the application: a single composition, identical characteristics and commitments, the same suppliers involved in the production chain. On the other hand, some elements can be grouped under the same line: if an item exists in different sizes and/or colors for example. In this case, it is possible to group the products on the same line by specifying the different product codes, separated by a semicolon, in the \"Product code\" column. \n\nThe necessary information (yellow columns) for a product reference are: its barcode, its category and its composition. The other questions are not mandatory but allow consumers to access more information. For more information, please refer to the help document for filling in the product data sheets :"]
[null,"Help document"]
[null,"THE SUPPLIER TAB\n\nIt allows the brand to fill in the information concerning the suppliers of the products mentionned in the PRODUCTS tab. For more information, please refer to the help document for filling in the product sheets :"]
[null,"Help document"]
[null,"Intellectual property and Terms and Conditions\nBy participating in Clear Fashion, you accept the terms and conditions, available in the brand section: https://www.clear-fashion.com/documentation-marque."]

{"sheet":"PRODUCTS","index":2,"n_rows":4,"n_cols":53,"rows_kept":4,"cut":false,"hidden":false,"merged":[[1,6,2,6],[1,18,1,19],[1,7,2,7],[1,8,2,8],[1,9,2,9],[1,10,2,10],[1,11,2,11],[1,12,2,12],[1,13,2,13],[1,14,2,14],[1,15,2,15],[1,16,2,16],[1,17,2,17],[1,1,2,1],[1,2,2,2],[1,3,2,3],[1,4,2,4],[1,5,2,5],[1,29,2,29],[1,22,2,22],[1,30,2,30],[1,31,2,31],[1,32,2,32],[1,42,2,42],[1,23,2,23],[1,24,2,24],[1,25,2,25],[1,26,2,26],[1,27,2,27],[1,28,2,28],[1,33,2,33],[1,34,2,34],[1,35,2,35],[1,36,2,36],[1,37,2,37],[1,38,2,38],[1,39,2,39],[1,40,2,40],[1,41,2,41],[1,49,2,49],[1,50,2,50],[1,51,2,51],[1,52,2,52],[1,43,2,43],[1,44,2,44],[1,45,2,45],[1,46,2,46],[1,47,2,47],[1,48,2,48]]}
[null,"PRODUCTS' CLASSIFICATION\n (Put a comma in between elements)",null,null,null,null,null,"               IN-STORE AVAILIBILITY",null,"                                                                 MAIN PART",null,null,null,"                                              SECOND PART (linning, collar, sole, heel …)",null,null,null,"TRANSPORT","                                                ADDITIONAL ADVANTAGES",null,null,null,null,"Factories of the \nMANUFACTURING step. ",null,null,null,null,null,"Factories of the FINISHING step \n(dyeing, printing, treatments)",null,null,null,null,null,"Factories of the \nWEAVING/KNITTING step",null,null,null,null,null,"Factories of the \nSPINNING step",null,null,null,null,null,"Factories of the \nRAW MATERIAL \nproduction step"]
[null,"Product code (EAN)\n(Please find, some precision in the note attached to the cell)","Denomination\n(the name given to the product on your website for example)","Target\n(Men,Women,Unisex,Children)","Category\n(Skirt, Pants, Dress, T-shirt, Pullover, Shirt, Underwear, Jeans, etc.)","Product Image (url)\n(https://www…../img/.jpg)","Labels / certifications\nof finished product","Release date (in store)","Season concerned\n(Spring-Summer-Autumn-Winter-Permanent)\nPermanent: for a garment that stays continuously in-store, in the long term","Main part composition\nPut a comma in between two elements","Upcycled\n(Yes/No)","Recycled raw materials\n(Percentage of the part that is recycled with the associated raw material\")\nPut a comma in between two elements","Labels / certifications\nof the part post finishing steps\nPut a semicolon in between two elements","Second part composition\nPut a comma in between two elements","Upcycled second part\n(Yes/No)","Recycled raw materials\n(Indicate percentage of the part that is recycled and the raw material associated)\nPut a comma in between two elements","Labels / certifications\nof the second part post finishing steps\nPut a semicolon in between two elements","Is air freight banned (up to the consumer) ?\n(Yes/No)","Specific processes",null,"             Accessories",null,"Specific commitment(s)","Code of factory 1\n(first column in \"suppliers\")","Code of factory 2","Code of factory 3","Code of factory 4","Code of factory 5","% of unspecified factories\n(If all suppliers are not given, give the % of unspecified suppliers)","Code of factory 1\n(first column in \"suppliers\")","Code of factory 2","Code of factory 3","Code of factory 4","Code of factory 5","% of unspecified factories\n(If all suppliers are not given, give the % of unspecified suppliers)","Code of factory 1\n(first column in \"suppliers\")","Code of factory 2","Code of factory 3","Code of factory 4","Code of factory 5","% of unspecified factories\n(If all suppliers are not given, give the % of unspecified suppliers)","Code of factory 1\n(first column in \"suppliers\")","Code of factory 2","Code of factory 3","Code of factory 4","Code of factory 5","% of unspecified factories\n(If all suppliers are not given, give the % of unspecified suppliers)","Code of factory 1\n(first column in \"suppliers\")","Code of factory 2","Code of factory 3","Code of factory 4","Code of factory 5","% of unspecified factories\n(If all suppliers are not given, give the % of unspecified suppliers)"]
[null,null,null,null,null,null,null,null,null,null,null,null,null,null,null,null,null,null," Sand-blasting techniques banned\n(only jean is concerned)","Chrome tanning banned\n(only leather is concerned)","Product contains accessories (Yes / No)","Only Upcycled / Natural\n(Yes / No)"]
[null,1234,"Manteau Paul","Women","Pullover",null,"OEKO-TEX 100","2019-09-01","Permanent","70% Laine, 30% Acrylique","No","70% Laine, 5% Acrylique","Global Recycled Standard; OekoTex 100","100% Polyester","No","50% Polyester","Global Recycled Standard; OekoTex 100","No","Yes","Yes","Yes","No",null,0,"0bis",null,null,null,0.25,0,null,null,null,null,0.25,0,null,null,null,null,0.25,"0bis",null,null,null,null,0.25,"0bis",null,null,null,null,0.25]

{"sheet":"SUPPLIERS","index":3,"n_rows":221,"n_cols":22,"rows_kept":221,"cut":false,"hidden":false,"merged":[[5,5,6,5],[5,1,7,1],[5,2,7,2],[5,3,7,3],[5,4,6,4]]}
[null,"THE SUPPLIERS - Raw material production, Spinning, Weaving-Knitting, Finishing, Manufacturing"]
[]
[null,"What percentage of the total number of the brand's suppliers are represented ?"]
[null,"What percentage of the production is represented by the indicated suppliers? "]
[]
[null,"Code of factory","Name of factory","Country","Does the brand work directly with this factory ?","Does the brand own this factory ?","                                                                                                     Audits/Certifications dating back to less than 2 years"]
[null,null,null,null,null,null,"Client,\nbrand audit ","ICS","BSCI","SA 8000","WRAP","SEDEX SMETA","OHSAS 18001","FLA","ISO 14001","BEPI","Bluesign","GOTS","OekoTex 100","Oekotex Step","GRS","Other ? Specify"]
[null,null,null,null,"Yes / No","Yes / No","Yes / No","Yes / No","Yes / No","Yes / No","Yes / No","Yes / No","Yes / No","Yes / No","Yes / No","Yes / No","Yes / No","Yes / No","Yes / No","Yes / No","Yes / No","Indicate the name"]
[null,0,"Clear Fashion","France","Yes","Yes","Yes","No","No","No","No","No","No","No","Yes","No","Yes","No","No","No","No","No"]
[null,"0bis","Clear Fashion2","France","No","No","No","No","Yes","No","No","No","No","Yes","No","Yes","Yes","No","Yes","No","No","No"]
[1,1]
[null,2]
[null,3]
[null,4]
[null,5]
[null,6]
[null,7]
[null,8]
[null,9]
[null,10]
[null,"11"]
[null,"12"]
[null,"13"]
[null,"14"]
[null,"15"]
[null,"16"]
[null,"17"]
[null,"18"]
[null,"19"]
[null,20]
[null,21]
[null,22]
[null,23]
[null,24]
[null,25]
[null,26]
[null,27]
[null,28]
[null,29]
[null,30]
[null,31]
[null,32]
[null,33]
[null,34]
[null,35]
[null,36]
[null,37]
[null,38]
[null,39]
[null,40]
[null,41]
[null,42]
[null,43]
[null,44]
[null,45]
[null,46]
[null,47]
[null,48]
[null,49]
[null,50]
[null,51]
[null,52]
[null,53]
[null,54]
[null,55]
[null,56]
[null,57]
[null,58]
[null,59]
[null,60]
[null,61]
[null,62]
[null,63]
[null,64]
[null,65]
[null,66]
[null,67]
[null,68]
[null,69]
[null,70]
[null,71]
[null,72]
[null,73]
[null,74]
[null,75]
[null,76]
[null,77]
[null,78]
[null,79]
[null,80]
[null,81]
[null,82]
[null,83]
[null,84]
[null,85]
[null,86]
[null,87]
[null,88]
[null,89]
[null,90]
[null,91]
[null,92]
[null,93]
[null,94]
[null,95]
[null,96]
[null,97]
[null,98]
[null,99]
[null,100]
[null,101]
[null,102]
[null,103]
[null,104]
[null,105]
[null,106]
[null,107]
[null,108]
[null,109]
[null,110]
[null,111]
[null,112]
[null,113]
[null,114]
[null,115]
[null,116]
[null,117]
[null,118]
[null,119]
[null,120]
[null,121]
[null,122]
[null,123]
[null,124]
[null,125]
[null,126]
[null,127]
[null,128]
[null,129]
[null,130]
[null,131]
[null,132]
[null,133]
[null,134]
[null,135]
[null,136]
[null,137]
[null,138]
[null,139]
[null,140]
[null,141]
[null,142]
[null,143]
[null,144]
[null,145]
[null,146]
[null,147]
[null,148]
[null,149]
[null,150]
[null,151]
[null,152]
[null,153]
[null,154]
[null,155]
[null,156]
[null,157]
[null,158]
[null,159]
[null,160]
[null,161]
[null,162]
[null,163]
[null,164]
[null,165]
[null,166]
[null,167]
[null,168]
[null,169]
[null,170]
[null,171]
[null,172]
[null,173]
[null,174]
[null,175]
[null,176]
[null,177]
[null,178]
[null,179]
[null,180]
[null,181]
[null,182]
[null,183]
[null,184]
[null,185]
[null,186]
[null,187]
[null,188]
[null,189]
[null,190]
[null,191]
[null,192]
[null,193]
[null,194]
[null,195]
[null,196]
[null,197]
[null,198]
[null,199]
[null,200]
[null,201]
[null,202]
[null,203]
[null,204]
[null,205]
[null,206]
[null,207]
[null,208]
[null,209]
[null,210]
[null,211]

{"sheet":"RMELEMENTS","index":4,"n_rows":1,"n_cols":6,"rows_kept":1,"cut":false,"hidden":true,"merged":[]}
["Product key","Part of the garment","RM name","Percentage of the RM","Upcycled","Recycled percentage"]

{"sheet":"FACTORIES","index":5,"n_rows":1,"n_cols":9,"rows_kept":1,"cut":false,"hidden":true,"merged":[]}
["Id","Code","Name","Country","Direct","Owned","Client Audit","Certifications","Others"]

{"sheet":"PRODUITS","index":6,"n_rows":199,"n_cols":93,"rows_kept":199,"cut":false,"hidden":true,"merged":[]}
["Product Key","Code","Name","Target","Category","URL","Date","Season","Air Transport","Accessories","Sourcing Accessories","Natural Dyeing","Sandblasting","Vegetable Tanning","Chrome Free Tanning","Second Part"]
[]
[]
[]
[]
[]
[]
[]
[]
[]
[]
[]
[]
[]
[]
[]
[]
[]
[]
[]
[]
[]
[]
[]
[]
[]
[]
[]
[]
[]
[]
[]
[]
[]
[]
[]
[]
[]
[]
[]
[]
[]
[]
[]
[]
[]
[]
[]
[]
[]
[]
[]
[]
[]
[]
[]
[]
[]
[]
[]
[]
[]
[]
[]
[]
[]
[]
[]
[]
[]
[]
[]
[]
[]
[]
[]
[]
[]
[]
[]
[]
[]
[]
[]
[]
[]
[]
[]
[]
[]
[]
[]
[]
[]
[]
[]
[]
[]
[]
[]
[]
[]
[]
[]
[]
[]
[]
[]
[]
[]
[]
[]
[]
[]
[]
[]
[]
[]
[]
[]
[]
[]
[]
[]
[]
[]
[]
[]
[]
[]
[]
[]
[]
[]
[]
[]
[]
[]
[]
[]
[]
[]
[]
[]
[]
[]
[]
[]
[]
[]
[]
[]
[]
[]
[]
[]
[]
[null,null,null,null,null,null,null,null,null,null,null,null,null,null,null,null,null,null,null,null,null,null,null,null,null,null,null,null,null,null,null,null,null,null,null,null,null,null,null,null,null,null,null,null,null,null,null,null,null,null,null,null,null,null,null,null,null,null,null,null,null,null,null,null,null,null,null,null,null,null,null,null,null,null,null,null,null,null,null,null,{"$f":"IF(AND($B158=0,$C158=0),\"\",IF(AND(ISERROR(MATCH(\"*\"&#REF!&\"*\",_xlfn.SINGLE(ProdLabelSec),0)),OR(ISERROR(MATCH(\"*\"&\"oeko\"&\"*\",_xlfn.SINGLE(ProdLabelSec),0)),AND(ISERROR(MATCH(\"*\"&\"oeko\"&\"*\",_xlfn.SINGLE(ProdLabelSec),0))=FALSE,CA158<>0,CB158<>0))),0,TRUE))","v":""},{"$f":"IF(AND($B158=0,$C158=0),\"\",IF(ISERROR(MATCH(\"*\"&#REF!&\"*\",_xlfn.SINGLE(ProdLabelSec),0)),0,TRUE))","v":""},{"$f":"IF(AND($B158=0,$C158=0),\"\",IF(ISERROR(MATCH(\"*\"&#REF!&\"*\",_xlfn.SINGLE(ProdLabelSec),0)),0,TRUE))","v":""},{"$f":"IF(AND($B158=0,$C158=0),\"\",IF(ISERROR(MATCH(\"*\"&#REF!&\"*\",_xlfn.SINGLE(ProdLabelSec),0)),0,TRUE))","v":""},{"$f":"IF(AND($B158=0,$C158=0),\"\",IF(ISERROR(MATCH(\"*\"&#REF!&\"*\",_xlfn.SINGLE(ProdLabelSec),0)),0,TRUE))","v":""},{"$f":"IF(AND($B158=0,$C158=0),\"\",IF(ISERROR(MATCH(\"*\"&#REF!&\"*\",_xlfn.SINGLE(ProdLabelSec),0)),0,TRUE))","v":""},{"$f":"IF(AND($B158=0,$C158=0),\"\",IF(ISERROR(MATCH(\"*\"&#REF!&\"*\",_xlfn.SINGLE(ProdLabelSec),0)),0,TRUE))","v":""},{"$f":"IF(AND($B158=0,$C158=0),\"\",IF(ISERROR(MATCH(\"*\"&#REF!&\"*\",_xlfn.SINGLE(ProdLabelSec),0)),0,TRUE))","v":""},{"$f":"IF(AND($B158=0,$C158=0),\"\",IF(ISERROR(MATCH(\"*\"&#REF!&\"*\",_xlfn.SINGLE(ProdLabelSec),0)),0,TRUE))","v":""},{"$f":"IF(AND($B158=0,$C158=0),\"\",IF(ISERROR(MATCH(\"*\"&#REF!&\"*\",_xlfn.SINGLE(ProdLabelSec),0)),0,TRUE))","v":""},{"$f":"IF(AND($B158=0,$C158=0),\"\",IF(ISERROR(MATCH(\"*\"&#REF!&\"*\",_xlfn.SINGLE(ProdLabelSec),0)),0,TRUE))","v":""},{"$f":"IF(AND($B158=0,$C158=0),\"\",IF(ISERROR(MATCH(\"*\"&#REF!&\"*\",_xlfn.SINGLE(ProdLabelSec),0)),0,TRUE))","v":""},{"$f":"IF(AND($B158=0,$C158=0),\"\",IF(ISERROR(MATCH(\"*\"&#REF!&\"*\",_xlfn.SINGLE(ProdLabelSec),0)),0,TRUE))","v":""}]
[null,null,null,null,null,null,null,null,null,null,null,null,null,null,null,null,null,null,null,null,null,null,null,null,null,null,null,null,null,null,null,null,null,null,null,null,null,null,null,null,null,null,null,null,null,null,null,null,null,null,null,null,null,null,null,null,null,null,null,null,null,null,null,null,null,null,null,null,null,null,null,null,null,null,null,null,null,null,null,null,{"$f":"IF(AND($B159=0,$C159=0),\"\",IF(AND(ISERROR(MATCH(\"*\"&#REF!&\"*\",_xlfn.SINGLE(ProdLabelSec),0)),OR(ISERROR(MATCH(\"*\"&\"oeko\"&\"*\",_xlfn.SINGLE(ProdLabelSec),0)),AND(ISERROR(MATCH(\"*\"&\"oeko\"&\"*\",_xlfn.SINGLE(ProdLabelSec),0))=FALSE,CA159<>0,CB159<>0))),0,TRUE))","v":""},{"$f":"IF(AND($B159=0,$C159=0),\"\",IF(ISERROR(MATCH(\"*\"&#REF!&\"*\",_xlfn.SINGLE(ProdLabelSec),0)),0,TRUE))","v":""},{"$f":"IF(AND($B159=0,$C159=0),\"\",IF(ISERROR(MATCH(\"*\"&#REF!&\"*\",_xlfn.SINGLE(ProdLabelSec),0)),0,TRUE))","v":""},{"$f":"IF(AND($B159=0,$C159=0),\"\",IF(ISERROR(MATCH(\"*\"&#REF!&\"*\",_xlfn.SINGLE(ProdLabelSec),0)),0,TRUE))","v":""},{"$f":"IF(AND($B159=0,$C159=0),\"\",IF(ISERROR(MATCH(\"*\"&#REF!&\"*\",_xlfn.SINGLE(ProdLabelSec),0)),0,TRUE))","v":""},{"$f":"IF(AND($B159=0,$C159=0),\"\",IF(ISERROR(MATCH(\"*\"&#REF!&\"*\",_xlfn.SINGLE(ProdLabelSec),0)),0,TRUE))","v":""},{"$f":"IF(AND($B159=0,$C159=0),\"\",IF(ISERROR(MATCH(\"*\"&#REF!&\"*\",_xlfn.SINGLE(ProdLabelSec),0)),0,TRUE))","v":""},{"$f":"IF(AND($B159=0,$C159=0),\"\",IF(ISERROR(MATCH(\"*\"&#REF!&\"*\",_xlfn.SINGLE(ProdLabelSec),0)),0,TRUE))","v":""},{"$f":"IF(AND($B159=0,$C159=0),\"\",IF(ISERROR(MATCH(\"*\"&#REF!&\"*\",_xlfn.SINGLE(ProdLabelSec),0)),0,TRUE))","v":""},{"$f":"IF(AND($B159=0,$C159=0),\"\",IF(ISERROR(MATCH(\"*\"&#REF!&\"*\",_xlfn.SINGLE(ProdLabelSec),0)),0,TRUE))","v":""},{"$f":"IF(AND($B159=0,$C159=0),\"\",IF(ISERROR(MATCH(\"*\"&#REF!&\"*\",_xlfn.SINGLE(ProdLabelSec),0)),0,TRUE))","v":""},{"$f":"IF(AND($B159=0,$C159=0),\"\",IF(ISERROR(MATCH(\"*\"&#REF!&\"*\",_xlfn.SINGLE(ProdLabelSec),0)),0,TRUE))","v":""},{"$f":"IF(AND($B159=0,$C159=0),\"\",IF(ISERROR(MATCH(\"*\"&#REF!&\"*\",_xlfn.SINGLE(ProdLabelSec),0)),0,TRUE))","v":""}]
[null,null,null,null,null,null,null,null,null,null,null,null,null,null,null,null,null,null,null,null,null,null,null,null,null,null,null,null,null,null,null,null,null,null,null,null,null,null,null,null,null,null,null,null,null,null,null,null,null,null,null,null,null,null,null,null,null,null,null,null,null,null,null,null,null,null,null,null,null,null,null,null,null,null,null,null,null,null,null,null,{"$f":"IF(AND($B160=0,$C160=0),\"\",IF(AND(ISERROR(MATCH(\"*\"&#REF!&\"*\",_xlfn.SINGLE(ProdLabelSec),0)),OR(ISERROR(MATCH(\"*\"&\"oeko\"&\"*\",_xlfn.SINGLE(ProdLabelSec),0)),AND(ISERROR(MATCH(\"*\"&\"oeko\"&\"*\",_xlfn.SINGLE(ProdLabelSec),0))=FALSE,CA160<>0,CB160<>0))),0,TRUE))","v":""},{"$f":"IF(AND($B160=0,$C160=0),\"\",IF(ISERROR(MATCH(\"*\"&#REF!&\"*\",_xlfn.SINGLE(ProdLabelSec),0)),0,TRUE))","v":""},{"$f":"IF(AND($B160=0,$C160=0),\"\",IF(ISERROR(MATCH(\"*\"&#REF!&\"*\",_xlfn.SINGLE(ProdLabelSec),0)),0,TRUE))","v":""},{"$f":"IF(AND($B160=0,$C160=0),\"\",IF(ISERROR(MATCH(\"*\"&#REF!&\"*\",_xlfn.SINGLE(ProdLabelSec),0)),0,TRUE))","v":""},{"$f":"IF(AND($B160=0,$C160=0),\"\",IF(ISERROR(MATCH(\"*\"&#REF!&\"*\",_xlfn.SINGLE(ProdLabelSec),0)),0,TRUE))","v":""},{"$f":"IF(AND($B160=0,$C160=0),\"\",IF(ISERROR(MATCH(\"*\"&#REF!&\"*\",_xlfn.SINGLE(ProdLabelSec),0)),0,TRUE))","v":""},{"$f":"IF(AND($B160=0,$C160=0),\"\",IF(ISERROR(MATCH(\"*\"&#REF!&\"*\",_xlfn.SINGLE(ProdLabelSec),0)),0,TRUE))","v":""},{"$f":"IF(AND($B160=0,$C160=0),\"\",IF(ISERROR(MATCH(\"*\"&#REF!&\"*\",_xlfn.SINGLE(ProdLabelSec),0)),0,TRUE))","v":""},{"$f":"IF(AND($B160=0,$C160=0),\"\",IF(ISERROR(MATCH(\"*\"&#REF!&\"*\",_xlfn.SINGLE(ProdLabelSec),0)),0,TRUE))","v":""},{"$f":"IF(AND($B160=0,$C160=0),\"\",IF(ISERROR(MATCH(\"*\"&#REF!&\"*\",_xlfn.SINGLE(ProdLabelSec),0)),0,TRUE))","v":""},{"$f":"IF(AND($B160=0,$C160=0),\"\",IF(ISERROR(MATCH(\"*\"&#REF!&\"*\",_xlfn.SINGLE(ProdLabelSec),0)),0,TRUE))","v":""},{"$f":"IF(AND($B160=0,$C160=0),\"\",IF(ISERROR(MATCH(\"*\"&#REF!&\"*\",_xlfn.SINGLE(ProdLabelSec),0)),0,TRUE))","v":""},{"$f":"IF(AND($B160=0,$C160=0),\"\",IF(ISERROR(MATCH(\"*\"&#REF!&\"*\",_xlfn.SINGLE(ProdLabelSec),0)),0,TRUE))","v":""}]
[null,null,null,null,null,null,null,null,null,null,null,null,null,null,null,null,null,null,null,null,null,null,null,null,null,null,null,null,null,null,null,null,null,null,null,null,null,null,null,null,null,null,null,null,null,null,null,null,null,null,null,null,null,null,null,null,null,null,null,null,null,null,null,null,null,null,null,null,null,null,null,null,null,null,null,null,null,null,null,null,{"$f":"IF(AND($B161=0,$C161=0),\"\",IF(AND(ISERROR(MATCH(\"*\"&#REF!&\"*\",_xlfn.SINGLE(ProdLabelSec),0)),OR(ISERROR(MATCH(\"*\"&\"oeko\"&\"*\",_xlfn.SINGLE(ProdLabelSec),0)),AND(ISERROR(MATCH(\"*\"&\"oeko\"&\"*\",_xlfn.SINGLE(ProdLabelSec),0))=FALSE,CA161<>0,CB161<>0))),0,TRUE))","v":""},{"$f":"IF(AND($B161=0,$C161=0),\"\",IF(ISERROR(MATCH(\"*\"&#REF!&\"*\",_xlfn.SINGLE(ProdLabelSec),0)),0,TRUE))","v":""},{"$f":"IF(AND($B161=0,$C161=0),\"\",IF(ISERROR(MATCH(\"*\"&#REF!&\"*\",_xlfn.SINGLE(ProdLabelSec),0)),0,TRUE))","v":""},{"$f":"IF(AND($B161=0,$C161=0),\"\",IF(ISERROR(MATCH(\"*\"&#REF!&\"*\",_xlfn.SINGLE(ProdLabelSec),0)),0,TRUE))","v":""},{"$f":"IF(AND($B161=0,$C161=0),\"\",IF(ISERROR(MATCH(\"*\"&#REF!&\"*\",_xlfn.SINGLE(ProdLabelSec),0)),0,TRUE))","v":""},{"$f":"IF(AND($B161=0,$C161=0),\"\",IF(ISERROR(MATCH(\"*\"&#REF!&\"*\",_xlfn.SINGLE(ProdLabelSec),0)),0,TRUE))","v":""},{"$f":"IF(AND($B161=0,$C161=0),\"\",IF(ISERROR(MATCH(\"*\"&#REF!&\"*\",_xlfn.SINGLE(ProdLabelSec),0)),0,TRUE))","v":""},{"$f":"IF(AND($B161=0,$C161=0),\"\",IF(ISERROR(MATCH(\"*\"&#REF!&\"*\",_xlfn.SINGLE(ProdLabelSec),0)),0,TRUE))","v":""},{"$f":"IF(AND($B161=0,$C161=0),\"\",IF(ISERROR(MATCH(\"*\"&#REF!&\"*\",_xlfn.SINGLE(ProdLabelSec),0)),0,TRUE))","v":""},{"$f":"IF(AND($B161=0,$C161=0),\"\",IF(ISERROR(MATCH(\"*\"&#REF!&\"*\",_xlfn.SINGLE(ProdLabelSec),0)),0,TRUE))","v":""},{"$f":"IF(AND($B161=0,$C161=0),\"\",IF(ISERROR(MATCH(\"*\"&#REF!&\"*\",_xlfn.SINGLE(ProdLabelSec),0)),0,TRUE))","v":""},{"$f":"IF(AND($B161=0,$C161=0),\"\",IF(ISERROR(MATCH(\"*\"&#REF!&\"*\",_xlfn.SINGLE(ProdLabelSec),0)),0,TRUE))","v":""},{"$f":"IF(AND($B161=0,$C161=0),\"\",IF(ISERROR(MATCH(\"*\"&#REF!&\"*\",_xlfn.SINGLE(ProdLabelSec),0)),0,TRUE))","v":""}]
[null,null,null,null,null,null,null,null,null,null,null,null,null,null,null,null,null,null,null,null,null,null,null,null,null,null,null,null,null,null,null,null,null,null,null,null,null,null,null,null,null,null,null,null,null,null,null,null,null,null,null,null,null,null,null,null,null,null,null,null,null,null,null,null,null,null,null,null,null,null,null,null,null,null,null,null,null,null,null,null,{"$f":"IF(AND($B162=0,$C162=0),\"\",IF(AND(ISERROR(MATCH(\"*\"&#REF!&\"*\",_xlfn.SINGLE(ProdLabelSec),0)),OR(ISERROR(MATCH(\"*\"&\"oeko\"&\"*\",_xlfn.SINGLE(ProdLabelSec),0)),AND(ISERROR(MATCH(\"*\"&\"oeko\"&\"*\",_xlfn.SINGLE(ProdLabelSec),0))=FALSE,CA162<>0,CB162<>0))),0,TRUE))","v":""},{"$f":"IF(AND($B162=0,$C162=0),\"\",IF(ISERROR(MATCH(\"*\"&#REF!&\"*\",_xlfn.SINGLE(ProdLabelSec),0)),0,TRUE))","v":""},{"$f":"IF(AND($B162=0,$C162=0),\"\",IF(ISERROR(MATCH(\"*\"&#REF!&\"*\",_xlfn.SINGLE(ProdLabelSec),0)),0,TRUE))","v":""},{"$f":"IF(AND($B162=0,$C162=0),\"\",IF(ISERROR(MATCH(\"*\"&#REF!&\"*\",_xlfn.SINGLE(ProdLabelSec),0)),0,TRUE))","v":""},{"$f":"IF(AND($B162=0,$C162=0),\"\",IF(ISERROR(MATCH(\"*\"&#REF!&\"*\",_xlfn.SINGLE(ProdLabelSec),0)),0,TRUE))","v":""},{"$f":"IF(AND($B162=0,$C162=0),\"\",IF(ISERROR(MATCH(\"*\"&#REF!&\"*\",_xlfn.SINGLE(ProdLabelSec),0)),0,TRUE))","v":""},{"$f":"IF(AND($B162=0,$C162=0),\"\",IF(ISERROR(MATCH(\"*\"&#REF!&\"*\",_xlfn.SINGLE(ProdLabelSec),0)),0,TRUE))","v":""},{"$f":"IF(AND($B162=0,$C162=0),\"\",IF(ISERROR(MATCH(\"*\"&#REF!&\"*\",_xlfn.SINGLE(ProdLabelSec),0)),0,TRUE))","v":""},{"$f":"IF(AND($B162=0,$C162=0),\"\",IF(ISERROR(MATCH(\"*\"&#REF!&\"*\",_xlfn.SINGLE(ProdLabelSec),0)),0,TRUE))","v":""},{"$f":"IF(AND($B162=0,$C162=0),\"\",IF(ISERROR(MATCH(\"*\"&#REF!&\"*\",_xlfn.SINGLE(ProdLabelSec),0)),0,TRUE))","v":""},{"$f":"IF(AND($B162=0,$C162=0),\"\",IF(ISERROR(MATCH(\"*\"&#REF!&\"*\",_xlfn.SINGLE(ProdLabelSec),0)),0,TRUE))","v":""},{"$f":"IF(AND($B162=0,$C162=0),\"\",IF(ISERROR(MATCH(\"*\"&#REF!&\"*\",_xlfn.SINGLE(ProdLabelSec),0)),0,TRUE))","v":""},{"$f":"IF(AND($B162=0,$C162=0),\"\",IF(ISERROR(MATCH(\"*\"&#REF!&\"*\",_xlfn.SINGLE(ProdLabelSec),0)),0,TRUE))","v":""}]
[null,null,null,null,null,null,null,null,null,null,null,null,null,null,null,null,null,null,null,null,null,null,null,null,null,null,null,null,null,null,null,null,null,null,null,null,null,null,null,null,null,null,null,null,null,null,null,null,null,null,null,null,null,null,null,null,null,null,null,null,null,null,null,null,null,null,null,null,null,null,null,null,null,null,null,null,null,null,null,null,{"$f":"IF(AND($B163=0,$C163=0),\"\",IF(AND(ISERROR(MATCH(\"*\"&#REF!&\"*\",_xlfn.SINGLE(ProdLabelSec),0)),OR(ISERROR(MATCH(\"*\"&\"oeko\"&\"*\",_xlfn.SINGLE(ProdLabelSec),0)),AND(ISERROR(MATCH(\"*\"&\"oeko\"&\"*\",_xlfn.SINGLE(ProdLabelSec),0))=FALSE,CA163<>0,CB163<>0))),0,TRUE))","v":""},{"$f":"IF(AND($B163=0,$C163=0),\"\",IF(ISERROR(MATCH(\"*\"&#REF!&\"*\",_xlfn.SINGLE(ProdLabelSec),0)),0,TRUE))","v":""},{"$f":"IF(AND($B163=0,$C163=0),\"\",IF(ISERROR(MATCH(\"*\"&#REF!&\"*\",_xlfn.SINGLE(ProdLabelSec),0)),0,TRUE))","v":""},{"$f":"IF(AND($B163=0,$C163=0),\"\",IF(ISERROR(MATCH(\"*\"&#REF!&\"*\",_xlfn.SINGLE(ProdLabelSec),0)),0,TRUE))","v":""},{"$f":"IF(AND($B163=0,$C163=0),\"\",IF(ISERROR(MATCH(\"*\"&#REF!&\"*\",_xlfn.SINGLE(ProdLabelSec),0)),0,TRUE))","v":""},{"$f":"IF(AND($B163=0,$C163=0),\"\",IF(ISERROR(MATCH(\"*\"&#REF!&\"*\",_xlfn.SINGLE(ProdLabelSec),0)),0,TRUE))","v":""},{"$f":"IF(AND($B163=0,$C163=0),\"\",IF(ISERROR(MATCH(\"*\"&#REF!&\"*\",_xlfn.SINGLE(ProdLabelSec),0)),0,TRUE))","v":""},{"$f":"IF(AND($B163=0,$C163=0),\"\",IF(ISERROR(MATCH(\"*\"&#REF!&\"*\",_xlfn.SINGLE(ProdLabelSec),0)),0,TRUE))","v":""},{"$f":"IF(AND($B163=0,$C163=0),\"\",IF(ISERROR(MATCH(\"*\"&#REF!&\"*\",_xlfn.SINGLE(ProdLabelSec),0)),0,TRUE))","v":""},{"$f":"IF(AND($B163=0,$C163=0),\"\",IF(ISERROR(MATCH(\"*\"&#REF!&\"*\",_xlfn.SINGLE(ProdLabelSec),0)),0,TRUE))","v":""},{"$f":"IF(AND($B163=0,$C163=0),\"\",IF(ISERROR(MATCH(\"*\"&#REF!&\"*\",_xlfn.SINGLE(ProdLabelSec),0)),0,TRUE))","v":""},{"$f":"IF(AND($B163=0,$C163=0),\"\",IF(ISERROR(MATCH(\"*\"&#REF!&\"*\",_xlfn.SINGLE(ProdLabelSec),0)),0,TRUE))","v":""},{"$f":"IF(AND($B163=0,$C163=0),\"\",IF(ISERROR(MATCH(\"*\"&#REF!&\"*\",_xlfn.SINGLE(ProdLabelSec),0)),0,TRUE))","v":""}]
[null,null,null,null,null,null,null,null,null,null,null,null,null,null,null,null,null,null,null,null,null,null,null,null,null,null,null,null,null,null,null,null,null,null,null,null,null,null,null,null,null,null,null,null,null,null,null,null,null,null,null,null,null,null,null,null,null,null,null,null,null,null,null,null,null,null,null,null,null,null,null,null,null,null,null,null,null,null,null,null,{"$f":"IF(AND($B164=0,$C164=0),\"\",IF(AND(ISERROR(MATCH(\"*\"&#REF!&\"*\",_xlfn.SINGLE(ProdLabelSec),0)),OR(ISERROR(MATCH(\"*\"&\"oeko\"&\"*\",_xlfn.SINGLE(ProdLabelSec),0)),AND(ISERROR(MATCH(\"*\"&\"oeko\"&\"*\",_xlfn.SINGLE(ProdLabelSec),0))=FALSE,CA164<>0,CB164<>0))),0,TRUE))","v":""},{"$f":"IF(AND($B164=0,$C164=0),\"\",IF(ISERROR(MATCH(\"*\"&#REF!&\"*\",_xlfn.SINGLE(ProdLabelSec),0)),0,TRUE))","v":""},{"$f":"IF(AND($B164=0,$C164=0),\"\",IF(ISERROR(MATCH(\"*\"&#REF!&\"*\",_xlfn.SINGLE(ProdLabelSec),0)),0,TRUE))","v":""},{"$f":"IF(AND($B164=0,$C164=0),\"\",IF(ISERROR(MATCH(\"*\"&#REF!&\"*\",_xlfn.SINGLE(ProdLabelSec),0)),0,TRUE))","v":""},{"$f":"IF(AND($B164=0,$C164=0),\"\",IF(ISERROR(MATCH(\"*\"&#REF!&\"*\",_xlfn.SINGLE(ProdLabelSec),0)),0,TRUE))","v":""},{"$f":"IF(AND($B164=0,$C164=0),\"\",IF(ISERROR(MATCH(\"*\"&#REF!&\"*\",_xlfn.SINGLE(ProdLabelSec),0)),0,TRUE))","v":""},{"$f":"IF(AND($B164=0,$C164=0),\"\",IF(ISERROR(MATCH(\"*\"&#REF!&\"*\",_xlfn.SINGLE(ProdLabelSec),0)),0,TRUE))","v":""},{"$f":"IF(AND($B164=0,$C164=0),\"\",IF(ISERROR(MATCH(\"*\"&#REF!&\"*\",_xlfn.SINGLE(ProdLabelSec),0)),0,TRUE))","v":""},{"$f":"IF(AND($B164=0,$C164=0),\"\",IF(ISERROR(MATCH(\"*\"&#REF!&\"*\",_xlfn.SINGLE(ProdLabelSec),0)),0,TRUE))","v":""},{"$f":"IF(AND($B164=0,$C164=0),\"\",IF(ISERROR(MATCH(\"*\"&#REF!&\"*\",_xlfn.SINGLE(ProdLabelSec),0)),0,TRUE))","v":""},{"$f":"IF(AND($B164=0,$C164=0),\"\",IF(ISERROR(MATCH(\"*\"&#REF!&\"*\",_xlfn.SINGLE(ProdLabelSec),0)),0,TRUE))","v":""},{"$f":"IF(AND($B164=0,$C164=0),\"\",IF(ISERROR(MATCH(\"*\"&#REF!&\"*\",_xlfn.SINGLE(ProdLabelSec),0)),0,TRUE))","v":""},{"$f":"IF(AND($B164=0,$C164=0),\"\",IF(ISERROR(MATCH(\"*\"&#REF!&\"*\",_xlfn.SINGLE(ProdLabelSec),0)),0,TRUE))","v":""}]
[null,null,null,null,null,null,null,null,null,null,null,null,null,null,null,null,null,null,null,null,null,null,null,null,null,null,null,null,null,null,null,null,null,null,null,null,null,null,null,null,null,null,null,null,null,null,null,null,null,null,null,null,null,null,null,null,null,null,null,null,null,null,null,null,null,null,null,null,null,null,null,null,null,null,null,null,null,null,null,null,{"$f":"IF(AND($B165=0,$C165=0),\"\",IF(AND(ISERROR(MATCH(\"*\"&#REF!&\"*\",_xlfn.SINGLE(ProdLabelSec),0)),OR(ISERROR(MATCH(\"*\"&\"oeko\"&\"*\",_xlfn.SINGLE(ProdLabelSec),0)),AND(ISERROR(MATCH(\"*\"&\"oeko\"&\"*\",_xlfn.SINGLE(ProdLabelSec),0))=FALSE,CA165<>0,CB165<>0))),0,TRUE))","v":""},{"$f":"IF(AND($B165=0,$C165=0),\"\",IF(ISERROR(MATCH(\"*\"&#REF!&\"*\",_xlfn.SINGLE(ProdLabelSec),0)),0,TRUE))","v":""},{"$f":"IF(AND($B165=0,$C165=0),\"\",IF(ISERROR(MATCH(\"*\"&#REF!&\"*\",_xlfn.SINGLE(ProdLabelSec),0)),0,TRUE))","v":""},{"$f":"IF(AND($B165=0,$C165=0),\"\",IF(ISERROR(MATCH(\"*\"&#REF!&\"*\",_xlfn.SINGLE(ProdLabelSec),0)),0,TRUE))","v":""},{"$f":"IF(AND($B165=0,$C165=0),\"\",IF(ISERROR(MATCH(\"*\"&#REF!&\"*\",_xlfn.SINGLE(ProdLabelSec),0)),0,TRUE))","v":""},{"$f":"IF(AND($B165=0,$C165=0),\"\",IF(ISERROR(MATCH(\"*\"&#REF!&\"*\",_xlfn.SINGLE(ProdLabelSec),0)),0,TRUE))","v":""},{"$f":"IF(AND($B165=0,$C165=0),\"\",IF(ISERROR(MATCH(\"*\"&#REF!&\"*\",_xlfn.SINGLE(ProdLabelSec),0)),0,TRUE))","v":""},{"$f":"IF(AND($B165=0,$C165=0),\"\",IF(ISERROR(MATCH(\"*\"&#REF!&\"*\",_xlfn.SINGLE(ProdLabelSec),0)),0,TRUE))","v":""},{"$f":"IF(AND($B165=0,$C165=0),\"\",IF(ISERROR(MATCH(\"*\"&#REF!&\"*\",_xlfn.SINGLE(ProdLabelSec),0)),0,TRUE))","v":""},{"$f":"IF(AND($B165=0,$C165=0),\"\",IF(ISERROR(MATCH(\"*\"&#REF!&\"*\",_xlfn.SINGLE(ProdLabelSec),0)),0,TRUE))","v":""},{"$f":"IF(AND($B165=0,$C165=0),\"\",IF(ISERROR(MATCH(\"*\"&#REF!&\"*\",_xlfn.SINGLE(ProdLabelSec),0)),0,TRUE))","v":""},{"$f":"IF(AND($B165=0,$C165=0),\"\",IF(ISERROR(MATCH(\"*\"&#REF!&\"*\",_xlfn.SINGLE(ProdLabelSec),0)),0,TRUE))","v":""},{"$f":"IF(AND($B165=0,$C165=0),\"\",IF(ISERROR(MATCH(\"*\"&#REF!&\"*\",_xlfn.SINGLE(ProdLabelSec),0)),0,TRUE))","v":""}]
[null,null,null,null,null,null,null,null,null,null,null,null,null,null,null,null,null,null,null,null,null,null,null,null,null,null,null,null,null,null,null,null,null,null,null,null,null,null,null,null,null,null,null,null,null,null,null,null,null,null,null,null,null,null,null,null,null,null,null,null,null,null,null,null,null,null,null,null,null,null,null,null,null,null,null,null,null,null,null,null,{"$f":"IF(AND($B166=0,$C166=0),\"\",IF(AND(ISERROR(MATCH(\"*\"&#REF!&\"*\",_xlfn.SINGLE(ProdLabelSec),0)),OR(ISERROR(MATCH(\"*\"&\"oeko\"&\"*\",_xlfn.SINGLE(ProdLabelSec),0)),AND(ISERROR(MATCH(\"*\"&\"oeko\"&\"*\",_xlfn.SINGLE(ProdLabelSec),0))=FALSE,CA166<>0,CB166<>0))),0,TRUE))","v":""},{"$f":"IF(AND($B166=0,$C166=0),\"\",IF(ISERROR(MATCH(\"*\"&#REF!&\"*\",_xlfn.SINGLE(ProdLabelSec),0)),0,TRUE))","v":""},{"$f":"IF(AND($B166=0,$C166=0),\"\",IF(ISERROR(MATCH(\"*\"&#REF!&\"*\",_xlfn.SINGLE(ProdLabelSec),0)),0,TRUE))","v":""},{"$f":"IF(AND($B166=0,$C166=0),\"\",IF(ISERROR(MATCH(\"*\"&#REF!&\"*\",_xlfn.SINGLE(ProdLabelSec),0)),0,TRUE))","v":""},{"$f":"IF(AND($B166=0,$C166=0),\"\",IF(ISERROR(MATCH(\"*\"&#REF!&\"*\",_xlfn.SINGLE(ProdLabelSec),0)),0,TRUE))","v":""},{"$f":"IF(AND($B166=0,$C166=0),\"\",IF(ISERROR(MATCH(\"*\"&#REF!&\"*\",_xlfn.SINGLE(ProdLabelSec),0)),0,TRUE))","v":""},{"$f":"IF(AND($B166=0,$C166=0),\"\",IF(ISERROR(MATCH(\"*\"&#REF!&\"*\",_xlfn.SINGLE(ProdLabelSec),0)),0,TRUE))","v":""},{"$f":"IF(AND($B166=0,$C166=0),\"\",IF(ISERROR(MATCH(\"*\"&#REF!&\"*\",_xlfn.SINGLE(ProdLabelSec),0)),0,TRUE))","v":""},{"$f":"IF(AND($B166=0,$C166=0),\"\",IF(ISERROR(MATCH(\"*\"&#REF!&\"*\",_xlfn.SINGLE(ProdLabelSec),0)),0,TRUE))","v":""},{"$f":"IF(AND($B166=0,$C166=0),\"\",IF(ISERROR(MATCH(\"*\"&#REF!&\"*\",_xlfn.SINGLE(ProdLabelSec),0)),0,TRUE))","v":""},{"$f":"IF(AND($B166=0,$C166=0),\"\",IF(ISERROR(MATCH(\"*\"&#REF!&\"*\",_xlfn.SINGLE(ProdLabelSec),0)),0,TRUE))","v":""},{"$f":"IF(AND($B166=0,$C166=0),\"\",IF(ISERROR(MATCH(\"*\"&#REF!&\"*\",_xlfn.SINGLE(ProdLabelSec),0)),0,TRUE))","v":""},{"$f":"IF(AND($B166=0,$C166=0),\"\",IF(ISERROR(MATCH(\"*\"&#REF!&\"*\",_xlfn.SINGLE(ProdLabelSec),0)),0,TRUE))","v":""}]
[null,null,null,null,null,null,null,null,null,null,null,null,null,null,null,null,null,null,null,null,null,null,null,null,null,null,null,null,null,null,null,null,null,null,null,null,null,null,null,null,null,null,null,null,null,null,null,null,null,null,null,null,null,null,null,null,null,null,null,null,null,null,null,null,null,null,null,null,null,null,null,null,null,null,null,null,null,null,null,null,{"$f":"IF(AND($B167=0,$C167=0),\"\",IF(AND(ISERROR(MATCH(\"*\"&#REF!&\"*\",_xlfn.SINGLE(ProdLabelSec),0)),OR(ISERROR(MATCH(\"*\"&\"oeko\"&\"*\",_xlfn.SINGLE(ProdLabelSec),0)),AND(ISERROR(MATCH(\"*\"&\"oeko\"&\"*\",_xlfn.SINGLE(ProdLabelSec),0))=FALSE,CA167<>0,CB167<>0))),0,TRUE))","v":""},{"$f":"IF(AND($B167=0,$C167=0),\"\",IF(ISERROR(MATCH(\"*\"&#REF!&\"*\",_xlfn.SINGLE(ProdLabelSec),0)),0,TRUE))","v":""},{"$f":"IF(AND($B167=0,$C167=0),\"\",IF(ISERROR(MATCH(\"*\"&#REF!&\"*\",_xlfn.SINGLE(ProdLabelSec),0)),0,TRUE))","v":""},{"$f":"IF(AND($B167=0,$C167=0),\"\",IF(ISERROR(MATCH(\"*\"&#REF!&\"*\",_xlfn.SINGLE(ProdLabelSec),0)),0,TRUE))","v":""},{"$f":"IF(AND($B167=0,$C167=0),\"\",IF(ISERROR(MATCH(\"*\"&#REF!&\"*\",_xlfn.SINGLE(ProdLabelSec),0)),0,TRUE))","v":""},{"$f":"IF(AND($B167=0,$C167=0),\"\",IF(ISERROR(MATCH(\"*\"&#REF!&\"*\",_xlfn.SINGLE(ProdLabelSec),0)),0,TRUE))","v":""},{"$f":"IF(AND($B167=0,$C167=0),\"\",IF(ISERROR(MATCH(\"*\"&#REF!&\"*\",_xlfn.SINGLE(ProdLabelSec),0)),0,TRUE))","v":""},{"$f":"IF(AND($B167=0,$C167=0),\"\",IF(ISERROR(MATCH(\"*\"&#REF!&\"*\",_xlfn.SINGLE(ProdLabelSec),0)),0,TRUE))","v":""},{"$f":"IF(AND($B167=0,$C167=0),\"\",IF(ISERROR(MATCH(\"*\"&#REF!&\"*\",_xlfn.SINGLE(ProdLabelSec),0)),0,TRUE))","v":""},{"$f":"IF(AND($B167=0,$C167=0),\"\",IF(ISERROR(MATCH(\"*\"&#REF!&\"*\",_xlfn.SINGLE(ProdLabelSec),0)),0,TRUE))","v":""},{"$f":"IF(AND($B167=0,$C167=0),\"\",IF(ISERROR(MATCH(\"*\"&#REF!&\"*\",_xlfn.SINGLE(ProdLabelSec),0)),0,TRUE))","v":""},{"$f":"IF(AND($B167=0,$C167=0),\"\",IF(ISERROR(MATCH(\"*\"&#REF!&\"*\",_xlfn.SINGLE(ProdLabelSec),0)),0,TRUE))","v":""},{"$f":"IF(AND($B167=0,$C167=0),\"\",IF(ISERROR(MATCH(\"*\"&#REF!&\"*\",_xlfn.SINGLE(ProdLabelSec),0)),0,TRUE))","v":""}]
[null,null,null,null,null,null,null,null,null,null,null,null,null,null,null,null,null,null,null,null,null,null,null,null,null,null,null,null,null,null,null,null,null,null,null,null,null,null,null,null,null,null,null,null,null,null,null,null,null,null,null,null,null,null,null,null,null,null,null,null,null,null,null,null,null,null,null,null,null,null,null,null,null,null,null,null,null,null,null,null,{"$f":"IF(AND($B168=0,$C168=0),\"\",IF(AND(ISERROR(MATCH(\"*\"&#REF!&\"*\",_xlfn.SINGLE(ProdLabelSec),0)),OR(ISERROR(MATCH(\"*\"&\"oeko\"&\"*\",_xlfn.SINGLE(ProdLabelSec),0)),AND(ISERROR(MATCH(\"*\"&\"oeko\"&\"*\",_xlfn.SINGLE(ProdLabelSec),0))=FALSE,CA168<>0,CB168<>0))),0,TRUE))","v":""},{"$f":"IF(AND($B168=0,$C168=0),\"\",IF(ISERROR(MATCH(\"*\"&#REF!&\"*\",_xlfn.SINGLE(ProdLabelSec),0)),0,TRUE))","v":""},{"$f":"IF(AND($B168=0,$C168=0),\"\",IF(ISERROR(MATCH(\"*\"&#REF!&\"*\",_xlfn.SINGLE(ProdLabelSec),0)),0,TRUE))","v":""},{"$f":"IF(AND($B168=0,$C168=0),\"\",IF(ISERROR(MATCH(\"*\"&#REF!&\"*\",_xlfn.SINGLE(ProdLabelSec),0)),0,TRUE))","v":""},{"$f":"IF(AND($B168=0,$C168=0),\"\",IF(ISERROR(MATCH(\"*\"&#REF!&\"*\",_xlfn.SINGLE(ProdLabelSec),0)),0,TRUE))","v":""},{"$f":"IF(AND($B168=0,$C168=0),\"\",IF(ISERROR(MATCH(\"*\"&#REF!&\"*\",_xlfn.SINGLE(ProdLabelSec),0)),0,TRUE))","v":""},{"$f":"IF(AND($B168=0,$C168=0),\"\",IF(ISERROR(MATCH(\"*\"&#REF!&\"*\",_xlfn.SINGLE(ProdLabelSec),0)),0,TRUE))","v":""},{"$f":"IF(AND($B168=0,$C168=0),\"\",IF(ISERROR(MATCH(\"*\"&#REF!&\"*\",_xlfn.SINGLE(ProdLabelSec),0)),0,TRUE))","v":""},{"$f":"IF(AND($B168=0,$C168=0),\"\",IF(ISERROR(MATCH(\"*\"&#REF!&\"*\",_xlfn.SINGLE(ProdLabelSec),0)),0,TRUE))","v":""},{"$f":"IF(AND($B168=0,$C168=0),\"\",IF(ISERROR(MATCH(\"*\"&#REF!&\"*\",_xlfn.SINGLE(ProdLabelSec),0)),0,TRUE))","v":""},{"$f":"IF(AND($B168=0,$C168=0),\"\",IF(ISERROR(MATCH(\"*\"&#REF!&\"*\",_xlfn.SINGLE(ProdLabelSec),0)),0,TRUE))","v":""},{"$f":"IF(AND($B168=0,$C168=0),\"\",IF(ISERROR(MATCH(\"*\"&#REF!&\"*\",_xlfn.SINGLE(ProdLabelSec),0)),0,TRUE))","v":""},{"$f":"IF(AND($B168=0,$C168=0),\"\",IF(ISERROR(MATCH(\"*\"&#REF!&\"*\",_xlfn.SINGLE(ProdLabelSec),0)),0,TRUE))","v":""}]
[null,null,null,null,null,null,null,null,null,null,null,null,null,null,null,null,null,null,null,null,null,null,null,null,null,null,null,null,null,null,null,null,null,null,null,null,null,null,null,null,null,null,null,null,null,null,null,null,null,null,null,null,null,null,null,null,null,null,null,null,null,null,null,null,null,null,null,null,null,null,null,null,null,null,null,null,null,null,null,null,{"$f":"IF(AND($B169=0,$C169=0),\"\",IF(AND(ISERROR(MATCH(\"*\"&#REF!&\"*\",_xlfn.SINGLE(ProdLabelSec),0)),OR(ISERROR(MATCH(\"*\"&\"oeko\"&\"*\",_xlfn.SINGLE(ProdLabelSec),0)),AND(ISERROR(MATCH(\"*\"&\"oeko\"&\"*\",_xlfn.SINGLE(ProdLabelSec),0))=FALSE,CA169<>0,CB169<>0))),0,TRUE))","v":""},{"$f":"IF(AND($B169=0,$C169=0),\"\",IF(ISERROR(MATCH(\"*\"&#REF!&\"*\",_xlfn.SINGLE(ProdLabelSec),0)),0,TRUE))","v":""},{"$f":"IF(AND($B169=0,$C169=0),\"\",IF(ISERROR(MATCH(\"*\"&#REF!&\"*\",_xlfn.SINGLE(ProdLabelSec),0)),0,TRUE))","v":""},{"$f":"IF(AND($B169=0,$C169=0),\"\",IF(ISERROR(MATCH(\"*\"&#REF!&\"*\",_xlfn.SINGLE(ProdLabelSec),0)),0,TRUE))","v":""},{"$f":"IF(AND($B169=0,$C169=0),\"\",IF(ISERROR(MATCH(\"*\"&#REF!&\"*\",_xlfn.SINGLE(ProdLabelSec),0)),0,TRUE))","v":""},{"$f":"IF(AND($B169=0,$C169=0),\"\",IF(ISERROR(MATCH(\"*\"&#REF!&\"*\",_xlfn.SINGLE(ProdLabelSec),0)),0,TRUE))","v":""},{"$f":"IF(AND($B169=0,$C169=0),\"\",IF(ISERROR(MATCH(\"*\"&#REF!&\"*\",_xlfn.SINGLE(ProdLabelSec),0)),0,TRUE))","v":""},{"$f":"IF(AND($B169=0,$C169=0),\"\",IF(ISERROR(MATCH(\"*\"&#REF!&\"*\",_xlfn.SINGLE(ProdLabelSec),0)),0,TRUE))","v":""},{"$f":"IF(AND($B169=0,$C169=0),\"\",IF(ISERROR(MATCH(\"*\"&#REF!&\"*\",_xlfn.SINGLE(ProdLabelSec),0)),0,TRUE))","v":""},{"$f":"IF(AND($B169=0,$C169=0),\"\",IF(ISERROR(MATCH(\"*\"&#REF!&\"*\",_xlfn.SINGLE(ProdLabelSec),0)),0,TRUE))","v":""},{"$f":"IF(AND($B169=0,$C169=0),\"\",IF(ISERROR(MATCH(\"*\"&#REF!&\"*\",_xlfn.SINGLE(ProdLabelSec),0)),0,TRUE))","v":""},{"$f":"IF(AND($B169=0,$C169=0),\"\",IF(ISERROR(MATCH(\"*\"&#REF!&\"*\",_xlfn.SINGLE(ProdLabelSec),0)),0,TRUE))","v":""},{"$f":"IF(AND($B169=0,$C169=0),\"\",IF(ISERROR(MATCH(\"*\"&#REF!&\"*\",_xlfn.SINGLE(ProdLabelSec),0)),0,TRUE))","v":""}]
[null,null,null,null,null,null,null,null,null,null,null,null,null,null,null,null,null,null,null,null,null,null,null,null,null,null,null,null,null,null,null,null,null,null,null,null,null,null,null,null,null,null,null,null,null,null,null,null,null,null,null,null,null,null,null,null,null,null,null,null,null,null,null,null,null,null,null,null,null,null,null,null,null,null,null,null,null,null,null,null,{"$f":"IF(AND($B170=0,$C170=0),\"\",IF(AND(ISERROR(MATCH(\"*\"&#REF!&\"*\",_xlfn.SINGLE(ProdLabelSec),0)),OR(ISERROR(MATCH(\"*\"&\"oeko\"&\"*\",_xlfn.SINGLE(ProdLabelSec),0)),AND(ISERROR(MATCH(\"*\"&\"oeko\"&\"*\",_xlfn.SINGLE(ProdLabelSec),0))=FALSE,CA170<>0,CB170<>0))),0,TRUE))","v":""},{"$f":"IF(AND($B170=0,$C170=0),\"\",IF(ISERROR(MATCH(\"*\"&#REF!&\"*\",_xlfn.SINGLE(ProdLabelSec),0)),0,TRUE))","v":""},{"$f":"IF(AND($B170=0,$C170=0),\"\",IF(ISERROR(MATCH(\"*\"&#REF!&\"*\",_xlfn.SINGLE(ProdLabelSec),0)),0,TRUE))","v":""},{"$f":"IF(AND($B170=0,$C170=0),\"\",IF(ISERROR(MATCH(\"*\"&#REF!&\"*\",_xlfn.SINGLE(ProdLabelSec),0)),0,TRUE))","v":""},{"$f":"IF(AND($B170=0,$C170=0),\"\",IF(ISERROR(MATCH(\"*\"&#REF!&\"*\",_xlfn.SINGLE(ProdLabelSec),0)),0,TRUE))","v":""},{"$f":"IF(AND($B170=0,$C170=0),\"\",IF(ISERROR(MATCH(\"*\"&#REF!&\"*\",_xlfn.SINGLE(ProdLabelSec),0)),0,TRUE))","v":""},{"$f":"IF(AND($B170=0,$C170=0),\"\",IF(ISERROR(MATCH(\"*\"&#REF!&\"*\",_xlfn.SINGLE(ProdLabelSec),0)),0,TRUE))","v":""},{"$f":"IF(AND($B170=0,$C170=0),\"\",IF(ISERROR(MATCH(\"*\"&#REF!&\"*\",_xlfn.SINGLE(ProdLabelSec),0)),0,TRUE))","v":""},{"$f":"IF(AND($B170=0,$C170=0),\"\",IF(ISERROR(MATCH(\"*\"&#REF!&\"*\",_xlfn.SINGLE(ProdLabelSec),0)),0,TRUE))","v":""},{"$f":"IF(AND($B170=0,$C170=0),\"\",IF(ISERROR(MATCH(\"*\"&#REF!&\"*\",_xlfn.SINGLE(ProdLabelSec),0)),0,TRUE))","v":""},{"$f":"IF(AND($B170=0,$C170=0),\"\",IF(ISERROR(MATCH(\"*\"&#REF!&\"*\",_xlfn.SINGLE(ProdLabelSec),0)),0,TRUE))","v":""},{"$f":"IF(AND($B170=0,$C170=0),\"\",IF(ISERROR(MATCH(\"*\"&#REF!&\"*\",_xlfn.SINGLE(ProdLabelSec),0)),0,TRUE))","v":""},{"$f":"IF(AND($B170=0,$C170=0),\"\",IF(ISERROR(MATCH(\"*\"&#REF!&\"*\",_xlfn.SINGLE(ProdLabelSec),0)),0,TRUE))","v":""}]
[null,null,null,null,null,null,null,null,null,null,null,null,null,null,null,null,null,null,null,null,null,null,null,null,null,null,null,null,null,null,null,null,null,null,null,null,null,null,null,null,null,null,null,null,null,null,null,null,null,null,null,null,null,null,null,null,null,null,null,null,null,null,null,null,null,null,null,null,null,null,null,null,null,null,null,null,null,null,null,null,{"$f":"IF(AND($B171=0,$C171=0),\"\",IF(AND(ISERROR(MATCH(\"*\"&#REF!&\"*\",_xlfn.SINGLE(ProdLabelSec),0)),OR(ISERROR(MATCH(\"*\"&\"oeko\"&\"*\",_xlfn.SINGLE(ProdLabelSec),0)),AND(ISERROR(MATCH(\"*\"&\"oeko\"&\"*\",_xlfn.SINGLE(ProdLabelSec),0))=FALSE,CA171<>0,CB171<>0))),0,TRUE))","v":""},{"$f":"IF(AND($B171=0,$C171=0),\"\",IF(ISERROR(MATCH(\"*\"&#REF!&\"*\",_xlfn.SINGLE(ProdLabelSec),0)),0,TRUE))","v":""},{"$f":"IF(AND($B171=0,$C171=0),\"\",IF(ISERROR(MATCH(\"*\"&#REF!&\"*\",_xlfn.SINGLE(ProdLabelSec),0)),0,TRUE))","v":""},{"$f":"IF(AND($B171=0,$C171=0),\"\",IF(ISERROR(MATCH(\"*\"&#REF!&\"*\",_xlfn.SINGLE(ProdLabelSec),0)),0,TRUE))","v":""},{"$f":"IF(AND($B171=0,$C171=0),\"\",IF(ISERROR(MATCH(\"*\"&#REF!&\"*\",_xlfn.SINGLE(ProdLabelSec),0)),0,TRUE))","v":""},{"$f":"IF(AND($B171=0,$C171=0),\"\",IF(ISERROR(MATCH(\"*\"&#REF!&\"*\",_xlfn.SINGLE(ProdLabelSec),0)),0,TRUE))","v":""},{"$f":"IF(AND($B171=0,$C171=0),\"\",IF(ISERROR(MATCH(\"*\"&#REF!&\"*\",_xlfn.SINGLE(ProdLabelSec),0)),0,TRUE))","v":""},{"$f":"IF(AND($B171=0,$C171=0),\"\",IF(ISERROR(MATCH(\"*\"&#REF!&\"*\",_xlfn.SINGLE(ProdLabelSec),0)),0,TRUE))","v":""},{"$f":"IF(AND($B171=0,$C171=0),\"\",IF(ISERROR(MATCH(\"*\"&#REF!&\"*\",_xlfn.SINGLE(ProdLabelSec),0)),0,TRUE))","v":""},{"$f":"IF(AND($B171=0,$C171=0),\"\",IF(ISERROR(MATCH(\"*\"&#REF!&\"*\",_xlfn.SINGLE(ProdLabelSec),0)),0,TRUE))","v":""},{"$f":"IF(AND($B171=0,$C171=0),\"\",IF(ISERROR(MATCH(\"*\"&#REF!&\"*\",_xlfn.SINGLE(ProdLabelSec),0)),0,TRUE))","v":""},{"$f":"IF(AND($B171=0,$C171=0),\"\",IF(ISERROR(MATCH(\"*\"&#REF!&\"*\",_xlfn.SINGLE(ProdLabelSec),0)),0,TRUE))","v":""},{"$f":"IF(AND($B171=0,$C171=0),\"\",IF(ISERROR(MATCH(\"*\"&#REF!&\"*\",_xlfn.SINGLE(ProdLabelSec),0)),0,TRUE))","v":""}]
[null,null,null,null,null,null,null,null,null,null,null,null,null,null,null,null,null,null,null,null,null,null,null,null,null,null,null,null,null,null,null,null,null,null,null,null,null,null,null,null,null,null,null,null,null,null,null,null,null,null,null,null,null,null,null,null,null,null,null,null,null,null,null,null,null,null,null,null,null,null,null,null,null,null,null,null,null,null,null,null,{"$f":"IF(AND($B172=0,$C172=0),\"\",IF(AND(ISERROR(MATCH(\"*\"&#REF!&\"*\",_xlfn.SINGLE(ProdLabelSec),0)),OR(ISERROR(MATCH(\"*\"&\"oeko\"&\"*\",_xlfn.SINGLE(ProdLabelSec),0)),AND(ISERROR(MATCH(\"*\"&\"oeko\"&\"*\",_xlfn.SINGLE(ProdLabelSec),0))=FALSE,CA172<>0,CB172<>0))),0,TRUE))","v":""},{"$f":"IF(AND($B172=0,$C172=0),\"\",IF(ISERROR(MATCH(\"*\"&#REF!&\"*\",_xlfn.SINGLE(ProdLabelSec),0)),0,TRUE))","v":""},{"$f":"IF(AND($B172=0,$C172=0),\"\",IF(ISERROR(MATCH(\"*\"&#REF!&\"*\",_xlfn.SINGLE(ProdLabelSec),0)),0,TRUE))","v":""},{"$f":"IF(AND($B172=0,$C172=0),\"\",IF(ISERROR(MATCH(\"*\"&#REF!&\"*\",_xlfn.SINGLE(ProdLabelSec),0)),0,TRUE))","v":""},{"$f":"IF(AND($B172=0,$C172=0),\"\",IF(ISERROR(MATCH(\"*\"&#REF!&\"*\",_xlfn.SINGLE(ProdLabelSec),0)),0,TRUE))","v":""},{"$f":"IF(AND($B172=0,$C172=0),\"\",IF(ISERROR(MATCH(\"*\"&#REF!&\"*\",_xlfn.SINGLE(ProdLabelSec),0)),0,TRUE))","v":""},{"$f":"IF(AND($B172=0,$C172=0),\"\",IF(ISERROR(MATCH(\"*\"&#REF!&\"*\",_xlfn.SINGLE(ProdLabelSec),0)),0,TRUE))","v":""},{"$f":"IF(AND($B172=0,$C172=0),\"\",IF(ISERROR(MATCH(\"*\"&#REF!&\"*\",_xlfn.SINGLE(ProdLabelSec),0)),0,TRUE))","v":""},{"$f":"IF(AND($B172=0,$C172=0),\"\",IF(ISERROR(MATCH(\"*\"&#REF!&\"*\",_xlfn.SINGLE(ProdLabelSec),0)),0,TRUE))","v":""},{"$f":"IF(AND($B172=0,$C172=0),\"\",IF(ISERROR(MATCH(\"*\"&#REF!&\"*\",_xlfn.SINGLE(ProdLabelSec),0)),0,TRUE))","v":""},{"$f":"IF(AND($B172=0,$C172=0),\"\",IF(ISERROR(MATCH(\"*\"&#REF!&\"*\",_xlfn.SINGLE(ProdLabelSec),0)),0,TRUE))","v":""},{"$f":"IF(AND($B172=0,$C172=0),\"\",IF(ISERROR(MATCH(\"*\"&#REF!&\"*\",_xlfn.SINGLE(ProdLabelSec),0)),0,TRUE))","v":""},{"$f":"IF(AND($B172=0,$C172=0),\"\",IF(ISERROR(MATCH(\"*\"&#REF!&\"*\",_xlfn.SINGLE(ProdLabelSec),0)),0,TRUE))","v":""}]
[null,null,null,null,null,null,null,null,null,null,null,null,null,null,null,null,null,null,null,null,null,null,null,null,null,null,null,null,null,null,null,null,null,null,null,null,null,null,null,null,null,null,null,null,null,null,null,null,null,null,null,null,null,null,null,null,null,null,null,null,null,null,null,null,null,null,null,null,null,null,null,null,null,null,null,null,null,null,null,null,{"$f":"IF(AND($B173=0,$C173=0),\"\",IF(AND(ISERROR(MATCH(\"*\"&#REF!&\"*\",_xlfn.SINGLE(ProdLabelSec),0)),OR(ISERROR(MATCH(\"*\"&\"oeko\"&\"*\",_xlfn.SINGLE(ProdLabelSec),0)),AND(ISERROR(MATCH(\"*\"&\"oeko\"&\"*\",_xlfn.SINGLE(ProdLabelSec),0))=FALSE,CA173<>0,CB173<>0))),0,TRUE))","v":""},{"$f":"IF(AND($B173=0,$C173=0),\"\",IF(ISERROR(MATCH(\"*\"&#REF!&\"*\",_xlfn.SINGLE(ProdLabelSec),0)),0,TRUE))","v":""},{"$f":"IF(AND($B173=0,$C173=0),\"\",IF(ISERROR(MATCH(\"*\"&#REF!&\"*\",_xlfn.SINGLE(ProdLabelSec),0)),0,TRUE))","v":""},{"$f":"IF(AND($B173=0,$C173=0),\"\",IF(ISERROR(MATCH(\"*\"&#REF!&\"*\",_xlfn.SINGLE(ProdLabelSec),0)),0,TRUE))","v":""},{"$f":"IF(AND($B173=0,$C173=0),\"\",IF(ISERROR(MATCH(\"*\"&#REF!&\"*\",_xlfn.SINGLE(ProdLabelSec),0)),0,TRUE))","v":""},{"$f":"IF(AND($B173=0,$C173=0),\"\",IF(ISERROR(MATCH(\"*\"&#REF!&\"*\",_xlfn.SINGLE(ProdLabelSec),0)),0,TRUE))","v":""},{"$f":"IF(AND($B173=0,$C173=0),\"\",IF(ISERROR(MATCH(\"*\"&#REF!&\"*\",_xlfn.SINGLE(ProdLabelSec),0)),0,TRUE))","v":""},{"$f":"IF(AND($B173=0,$C173=0),\"\",IF(ISERROR(MATCH(\"*\"&#REF!&\"*\",_xlfn.SINGLE(ProdLabelSec),0)),0,TRUE))","v":""},{"$f":"IF(AND($B173=0,$C173=0),\"\",IF(ISERROR(MATCH(\"*\"&#REF!&\"*\",_xlfn.SINGLE(ProdLabelSec),0)),0,TRUE))","v":""},{"$f":"IF(AND($B173=0,$C173=0),\"\",IF(ISERROR(MATCH(\"*\"&#REF!&\"*\",_xlfn.SINGLE(ProdLabelSec),0)),0,TRUE))","v":""},{"$f":"IF(AND($B173=0,$C173=0),\"\",IF(ISERROR(MATCH(\"*\"&#REF!&\"*\",_xlfn.SINGLE(ProdLabelSec),0)),0,TRUE))","v":""},{"$f":"IF(AND($B173=0,$C173=0),\"\",IF(ISERROR(MATCH(\"*\"&#REF!&\"*\",_xlfn.SINGLE(ProdLabelSec),0)),0,TRUE))","v":""},{"$f":"IF(AND($B173=0,$C173=0),\"\",IF(ISERROR(MATCH(\"*\"&#REF!&\"*\",_xlfn.SINGLE(ProdLabelSec),0)),0,TRUE))","v":""}]
[null,null,null,null,null,null,null,null,null,null,null,null,null,null,null,null,null,null,null,null,null,null,null,null,null,null,null,null,null,null,null,null,null,null,null,null,null,null,null,null,null,null,null,null,null,null,null,null,null,null,null,null,null,null,null,null,null,null,null,null,null,null,null,null,null,null,null,null,null,null,null,null,null,null,null,null,null,null,null,null,{"$f":"IF(AND($B174=0,$C174=0),\"\",IF(AND(ISERROR(MATCH(\"*\"&#REF!&\"*\",_xlfn.SINGLE(ProdLabelSec),0)),OR(ISERROR(MATCH(\"*\"&\"oeko\"&\"*\",_xlfn.SINGLE(ProdLabelSec),0)),AND(ISERROR(MATCH(\"*\"&\"oeko\"&\"*\",_xlfn.SINGLE(ProdLabelSec),0))=FALSE,CA174<>0,CB174<>0))),0,TRUE))","v":""},{"$f":"IF(AND($B174=0,$C174=0),\"\",IF(ISERROR(MATCH(\"*\"&#REF!&\"*\",_xlfn.SINGLE(ProdLabelSec),0)),0,TRUE))","v":""},{"$f":"IF(AND($B174=0,$C174=0),\"\",IF(ISERROR(MATCH(\"*\"&#REF!&\"*\",_xlfn.SINGLE(ProdLabelSec),0)),0,TRUE))","v":""},{"$f":"IF(AND($B174=0,$C174=0),\"\",IF(ISERROR(MATCH(\"*\"&#REF!&\"*\",_xlfn.SINGLE(ProdLabelSec),0)),0,TRUE))","v":""},{"$f":"IF(AND($B174=0,$C174=0),\"\",IF(ISERROR(MATCH(\"*\"&#REF!&\"*\",_xlfn.SINGLE(ProdLabelSec),0)),0,TRUE))","v":""},{"$f":"IF(AND($B174=0,$C174=0),\"\",IF(ISERROR(MATCH(\"*\"&#REF!&\"*\",_xlfn.SINGLE(ProdLabelSec),0)),0,TRUE))","v":""},{"$f":"IF(AND($B174=0,$C174=0),\"\",IF(ISERROR(MATCH(\"*\"&#REF!&\"*\",_xlfn.SINGLE(ProdLabelSec),0)),0,TRUE))","v":""},{"$f":"IF(AND($B174=0,$C174=0),\"\",IF(ISERROR(MATCH(\"*\"&#REF!&\"*\",_xlfn.SINGLE(ProdLabelSec),0)),0,TRUE))","v":""},{"$f":"IF(AND($B174=0,$C174=0),\"\",IF(ISERROR(MATCH(\"*\"&#REF!&\"*\",_xlfn.SINGLE(ProdLabelSec),0)),0,TRUE))","v":""},{"$f":"IF(AND($B174=0,$C174=0),\"\",IF(ISERROR(MATCH(\"*\"&#REF!&\"*\",_xlfn.SINGLE(ProdLabelSec),0)),0,TRUE))","v":""},{"$f":"IF(AND($B174=0,$C174=0),\"\",IF(ISERROR(MATCH(\"*\"&#REF!&\"*\",_xlfn.SINGLE(ProdLabelSec),0)),0,TRUE))","v":""},{"$f":"IF(AND($B174=0,$C174=0),\"\",IF(ISERROR(MATCH(\"*\"&#REF!&\"*\",_xlfn.SINGLE(ProdLabelSec),0)),0,TRUE))","v":""},{"$f":"IF(AND($B174=0,$C174=0),\"\",IF(ISERROR(MATCH(\"*\"&#REF!&\"*\",_xlfn.SINGLE(ProdLabelSec),0)),0,TRUE))","v":""}]
[null,null,null,null,null,null,null,null,null,null,null,null,null,null,null,null,null,null,null,null,null,null,null,null,null,null,null,null,null,null,null,null,null,null,null,null,null,null,null,null,null,null,null,null,null,null,null,null,null,null,null,null,null,null,null,null,null,null,null,null,null,null,null,null,null,null,null,null,null,null,null,null,null,null,null,null,null,null,null,null,{"$f":"IF(AND($B175=0,$C175=0),\"\",IF(AND(ISERROR(MATCH(\"*\"&#REF!&\"*\",_xlfn.SINGLE(ProdLabelSec),0)),OR(ISERROR(MATCH(\"*\"&\"oeko\"&\"*\",_xlfn.SINGLE(ProdLabelSec),0)),AND(ISERROR(MATCH(\"*\"&\"oeko\"&\"*\",_xlfn.SINGLE(ProdLabelSec),0))=FALSE,CA175<>0,CB175<>0))),0,TRUE))","v":""},{"$f":"IF(AND($B175=0,$C175=0),\"\",IF(ISERROR(MATCH(\"*\"&#REF!&\"*\",_xlfn.SINGLE(ProdLabelSec),0)),0,TRUE))","v":""},{"$f":"IF(AND($B175=0,$C175=0),\"\",IF(ISERROR(MATCH(\"*\"&#REF!&\"*\",_xlfn.SINGLE(ProdLabelSec),0)),0,TRUE))","v":""},{"$f":"IF(AND($B175=0,$C175=0),\"\",IF(ISERROR(MATCH(\"*\"&#REF!&\"*\",_xlfn.SINGLE(ProdLabelSec),0)),0,TRUE))","v":""},{"$f":"IF(AND($B175=0,$C175=0),\"\",IF(ISERROR(MATCH(\"*\"&#REF!&\"*\",_xlfn.SINGLE(ProdLabelSec),0)),0,TRUE))","v":""},{"$f":"IF(AND($B175=0,$C175=0),\"\",IF(ISERROR(MATCH(\"*\"&#REF!&\"*\",_xlfn.SINGLE(ProdLabelSec),0)),0,TRUE))","v":""},{"$f":"IF(AND($B175=0,$C175=0),\"\",IF(ISERROR(MATCH(\"*\"&#REF!&\"*\",_xlfn.SINGLE(ProdLabelSec),0)),0,TRUE))","v":""},{"$f":"IF(AND($B175=0,$C175=0),\"\",IF(ISERROR(MATCH(\"*\"&#REF!&\"*\",_xlfn.SINGLE(ProdLabelSec),0)),0,TRUE))","v":""},{"$f":"IF(AND($B175=0,$C175=0),\"\",IF(ISERROR(MATCH(\"*\"&#REF!&\"*\",_xlfn.SINGLE(ProdLabelSec),0)),0,TRUE))","v":""},{"$f":"IF(AND($B175=0,$C175=0),\"\",IF(ISERROR(MATCH(\"*\"&#REF!&\"*\",_xlfn.SINGLE(ProdLabelSec),0)),0,TRUE))","v":""},{"$f":"IF(AND($B175=0,$C175=0),\"\",IF(ISERROR(MATCH(\"*\"&#REF!&\"*\",_xlfn.SINGLE(ProdLabelSec),0)),0,TRUE))","v":""},{"$f":"IF(AND($B175=0,$C175=0),\"\",IF(ISERROR(MATCH(\"*\"&#REF!&\"*\",_xlfn.SINGLE(ProdLabelSec),0)),0,TRUE))","v":""},{"$f":"IF(AND($B175=0,$C175=0),\"\",IF(ISERROR(MATCH(\"*\"&#REF!&\"*\",_xlfn.SINGLE(ProdLabelSec),0)),0,TRUE))","v":""}]
[null,null,null,null,null,null,null,null,null,null,null,null,null,null,null,null,null,null,null,null,null,null,null,null,null,null,null,null,null,null,null,null,null,null,null,null,null,null,null,null,null,null,null,null,null,null,null,null,null,null,null,null,null,null,null,null,null,null,null,null,null,null,null,null,null,null,null,null,null,null,null,null,null,null,null,null,null,null,null,null,{"$f":"IF(AND($B176=0,$C176=0),\"\",IF(AND(ISERROR(MATCH(\"*\"&#REF!&\"*\",_xlfn.SINGLE(ProdLabelSec),0)),OR(ISERROR(MATCH(\"*\"&\"oeko\"&\"*\",_xlfn.SINGLE(ProdLabelSec),0)),AND(ISERROR(MATCH(\"*\"&\"oeko\"&\"*\",_xlfn.SINGLE(ProdLabelSec),0))=FALSE,CA176<>0,CB176<>0))),0,TRUE))","v":""},{"$f":"IF(AND($B176=0,$C176=0),\"\",IF(ISERROR(MATCH(\"*\"&#REF!&\"*\",_xlfn.SINGLE(ProdLabelSec),0)),0,TRUE))","v":""},{"$f":"IF(AND($B176=0,$C176=0),\"\",IF(ISERROR(MATCH(\"*\"&#REF!&\"*\",_xlfn.SINGLE(ProdLabelSec),0)),0,TRUE))","v":""},{"$f":"IF(AND($B176=0,$C176=0),\"\",IF(ISERROR(MATCH(\"*\"&#REF!&\"*\",_xlfn.SINGLE(ProdLabelSec),0)),0,TRUE))","v":""},{"$f":"IF(AND($B176=0,$C176=0),\"\",IF(ISERROR(MATCH(\"*\"&#REF!&\"*\",_xlfn.SINGLE(ProdLabelSec),0)),0,TRUE))","v":""},{"$f":"IF(AND($B176=0,$C176=0),\"\",IF(ISERROR(MATCH(\"*\"&#REF!&\"*\",_xlfn.SINGLE(ProdLabelSec),0)),0,TRUE))","v":""},{"$f":"IF(AND($B176=0,$C176=0),\"\",IF(ISERROR(MATCH(\"*\"&#REF!&\"*\",_xlfn.SINGLE(ProdLabelSec),0)),0,TRUE))","v":""},{"$f":"IF(AND($B176=0,$C176=0),\"\",IF(ISERROR(MATCH(\"*\"&#REF!&\"*\",_xlfn.SINGLE(ProdLabelSec),0)),0,TRUE))","v":""},{"$f":"IF(AND($B176=0,$C176=0),\"\",IF(ISERROR(MATCH(\"*\"&#REF!&\"*\",_xlfn.SINGLE(ProdLabelSec),0)),0,TRUE))","v":""},{"$f":"IF(AND($B176=0,$C176=0),\"\",IF(ISERROR(MATCH(\"*\"&#REF!&\"*\",_xlfn.SINGLE(ProdLabelSec),0)),0,TRUE))","v":""},{"$f":"IF(AND($B176=0,$C176=0),\"\",IF(ISERROR(MATCH(\"*\"&#REF!&\"*\",_xlfn.SINGLE(ProdLabelSec),0)),0,TRUE))","v":""},{"$f":"IF(AND($B176=0,$C176=0),\"\",IF(ISERROR(MATCH(\"*\"&#REF!&\"*\",_xlfn.SINGLE(ProdLabelSec),0)),0,TRUE))","v":""},{"$f":"IF(AND($B176=0,$C176=0),\"\",IF(ISERROR(MATCH(\"*\"&#REF!&\"*\",_xlfn.SINGLE(ProdLabelSec),0)),0,TRUE))","v":""}]
[null,null,null,null,null,null,null,null,null,null,null,null,null,null,null,null,null,null,null,null,null,null,null,null,null,null,null,null,null,null,null,null,null,null,null,null,null,null,null,null,null,null,null,null,null,null,null,null,null,null,null,null,null,null,null,null,null,null,null,null,null,null,null,null,null,null,null,null,null,null,null,null,null,null,null,null,null,null,null,null,{"$f":"IF(AND($B177=0,$C177=0),\"\",IF(AND(ISERROR(MATCH(\"*\"&#REF!&\"*\",_xlfn.SINGLE(ProdLabelSec),0)),OR(ISERROR(MATCH(\"*\"&\"oeko\"&\"*\",_xlfn.SINGLE(ProdLabelSec),0)),AND(ISERROR(MATCH(\"*\"&\"oeko\"&\"*\",_xlfn.SINGLE(ProdLabelSec),0))=FALSE,CA177<>0,CB177<>0))),0,TRUE))","v":""},{"$f":"IF(AND($B177=0,$C177=0),\"\",IF(ISERROR(MATCH(\"*\"&#REF!&\"*\",_xlfn.SINGLE(ProdLabelSec),0)),0,TRUE))","v":""},{"$f":"IF(AND($B177=0,$C177=0),\"\",IF(ISERROR(MATCH(\"*\"&#REF!&\"*\",_xlfn.SINGLE(ProdLabelSec),0)),0,TRUE))","v":""},{"$f":"IF(AND($B177=0,$C177=0),\"\",IF(ISERROR(MATCH(\"*\"&#REF!&\"*\",_xlfn.SINGLE(ProdLabelSec),0)),0,TRUE))","v":""},{"$f":"IF(AND($B177=0,$C177=0),\"\",IF(ISERROR(MATCH(\"*\"&#REF!&\"*\",_xlfn.SINGLE(ProdLabelSec),0)),0,TRUE))","v":""},{"$f":"IF(AND($B177=0,$C177=0),\"\",IF(ISERROR(MATCH(\"*\"&#REF!&\"*\",_xlfn.SINGLE(ProdLabelSec),0)),0,TRUE))","v":""},{"$f":"IF(AND($B177=0,$C177=0),\"\",IF(ISERROR(MATCH(\"*\"&#REF!&\"*\",_xlfn.SINGLE(ProdLabelSec),0)),0,TRUE))","v":""},{"$f":"IF(AND($B177=0,$C177=0),\"\",IF(ISERROR(MATCH(\"*\"&#REF!&\"*\",_xlfn.SINGLE(ProdLabelSec),0)),0,TRUE))","v":""},{"$f":"IF(AND($B177=0,$C177=0),\"\",IF(ISERROR(MATCH(\"*\"&#REF!&\"*\",_xlfn.SINGLE(ProdLabelSec),0)),0,TRUE))","v":""},{"$f":"IF(AND($B177=0,$C177=0),\"\",IF(ISERROR(MATCH(\"*\"&#REF!&\"*\",_xlfn.SINGLE(ProdLabelSec),0)),0,TRUE))","v":""},{"$f":"IF(AND($B177=0,$C177=0),\"\",IF(ISERROR(MATCH(\"*\"&#REF!&\"*\",_xlfn.SINGLE(ProdLabelSec),0)),0,TRUE))","v":""},{"$f":"IF(AND($B177=0,$C177=0),\"\",IF(ISERROR(MATCH(\"*\"&#REF!&\"*\",_xlfn.SINGLE(ProdLabelSec),0)),0,TRUE))","v":""},{"$f":"IF(AND($B177=0,$C177=0),\"\",IF(ISERROR(MATCH(\"*\"&#REF!&\"*\",_xlfn.SINGLE(ProdLabelSec),0)),0,TRUE))","v":""}]
[null,null,null,null,null,null,null,null,null,null,null,null,null,null,null,null,null,null,null,null,null,null,null,null,null,null,null,null,null,null,null,null,null,null,null,null,null,null,null,null,null,null,null,null,null,null,null,null,null,null,null,null,null,null,null,null,null,null,null,null,null,null,null,null,null,null,null,null,null,null,null,null,null,null,null,null,null,null,null,null,{"$f":"IF(AND($B178=0,$C178=0),\"\",IF(AND(ISERROR(MATCH(\"*\"&#REF!&\"*\",_xlfn.SINGLE(ProdLabelSec),0)),OR(ISERROR(MATCH(\"*\"&\"oeko\"&\"*\",_xlfn.SINGLE(ProdLabelSec),0)),AND(ISERROR(MATCH(\"*\"&\"oeko\"&\"*\",_xlfn.SINGLE(ProdLabelSec),0))=FALSE,CA178<>0,CB178<>0))),0,TRUE))","v":""},{"$f":"IF(AND($B178=0,$C178=0),\"\",IF(ISERROR(MATCH(\"*\"&#REF!&\"*\",_xlfn.SINGLE(ProdLabelSec),0)),0,TRUE))","v":""},{"$f":"IF(AND($B178=0,$C178=0),\"\",IF(ISERROR(MATCH(\"*\"&#REF!&\"*\",_xlfn.SINGLE(ProdLabelSec),0)),0,TRUE))","v":""},{"$f":"IF(AND($B178=0,$C178=0),\"\",IF(ISERROR(MATCH(\"*\"&#REF!&\"*\",_xlfn.SINGLE(ProdLabelSec),0)),0,TRUE))","v":""},{"$f":"IF(AND($B178=0,$C178=0),\"\",IF(ISERROR(MATCH(\"*\"&#REF!&\"*\",_xlfn.SINGLE(ProdLabelSec),0)),0,TRUE))","v":""},{"$f":"IF(AND($B178=0,$C178=0),\"\",IF(ISERROR(MATCH(\"*\"&#REF!&\"*\",_xlfn.SINGLE(ProdLabelSec),0)),0,TRUE))","v":""},{"$f":"IF(AND($B178=0,$C178=0),\"\",IF(ISERROR(MATCH(\"*\"&#REF!&\"*\",_xlfn.SINGLE(ProdLabelSec),0)),0,TRUE))","v":""},{"$f":"IF(AND($B178=0,$C178=0),\"\",IF(ISERROR(MATCH(\"*\"&#REF!&\"*\",_xlfn.SINGLE(ProdLabelSec),0)),0,TRUE))","v":""},{"$f":"IF(AND($B178=0,$C178=0),\"\",IF(ISERROR(MATCH(\"*\"&#REF!&\"*\",_xlfn.SINGLE(ProdLabelSec),0)),0,TRUE))","v":""},{"$f":"IF(AND($B178=0,$C178=0),\"\",IF(ISERROR(MATCH(\"*\"&#REF!&\"*\",_xlfn.SINGLE(ProdLabelSec),0)),0,TRUE))","v":""},{"$f":"IF(AND($B178=0,$C178=0),\"\",IF(ISERROR(MATCH(\"*\"&#REF!&\"*\",_xlfn.SINGLE(ProdLabelSec),0)),0,TRUE))","v":""},{"$f":"IF(AND($B178=0,$C178=0),\"\",IF(ISERROR(MATCH(\"*\"&#REF!&\"*\",_xlfn.SINGLE(ProdLabelSec),0)),0,TRUE))","v":""},{"$f":"IF(AND($B178=0,$C178=0),\"\",IF(ISERROR(MATCH(\"*\"&#REF!&\"*\",_xlfn.SINGLE(ProdLabelSec),0)),0,TRUE))","v":""}]
[null,null,null,null,null,null,null,null,null,null,null,null,null,null,null,null,null,null,null,null,null,null,null,null,null,null,null,null,null,null,null,null,null,null,null,null,null,null,null,null,null,null,null,null,null,null,null,null,null,null,null,null,null,null,null,null,null,null,null,null,null,null,null,null,null,null,null,null,null,null,null,null,null,null,null,null,null,null,null,null,{"$f":"IF(AND($B179=0,$C179=0),\"\",IF(AND(ISERROR(MATCH(\"*\"&#REF!&\"*\",_xlfn.SINGLE(ProdLabelSec),0)),OR(ISERROR(MATCH(\"*\"&\"oeko\"&\"*\",_xlfn.SINGLE(ProdLabelSec),0)),AND(ISERROR(MATCH(\"*\"&\"oeko\"&\"*\",_xlfn.SINGLE(ProdLabelSec),0))=FALSE,CA179<>0,CB179<>0))),0,TRUE))","v":""},{"$f":"IF(AND($B179=0,$C179=0),\"\",IF(ISERROR(MATCH(\"*\"&#REF!&\"*\",_xlfn.SINGLE(ProdLabelSec),0)),0,TRUE))","v":""},{"$f":"IF(AND($B179=0,$C179=0),\"\",IF(ISERROR(MATCH(\"*\"&#REF!&\"*\",_xlfn.SINGLE(ProdLabelSec),0)),0,TRUE))","v":""},{"$f":"IF(AND($B179=0,$C179=0),\"\",IF(ISERROR(MATCH(\"*\"&#REF!&\"*\",_xlfn.SINGLE(ProdLabelSec),0)),0,TRUE))","v":""},{"$f":"IF(AND($B179=0,$C179=0),\"\",IF(ISERROR(MATCH(\"*\"&#REF!&\"*\",_xlfn.SINGLE(ProdLabelSec),0)),0,TRUE))","v":""},{"$f":"IF(AND($B179=0,$C179=0),\"\",IF(ISERROR(MATCH(\"*\"&#REF!&\"*\",_xlfn.SINGLE(ProdLabelSec),0)),0,TRUE))","v":""},{"$f":"IF(AND($B179=0,$C179=0),\"\",IF(ISERROR(MATCH(\"*\"&#REF!&\"*\",_xlfn.SINGLE(ProdLabelSec),0)),0,TRUE))","v":""},{"$f":"IF(AND($B179=0,$C179=0),\"\",IF(ISERROR(MATCH(\"*\"&#REF!&\"*\",_xlfn.SINGLE(ProdLabelSec),0)),0,TRUE))","v":""},{"$f":"IF(AND($B179=0,$C179=0),\"\",IF(ISERROR(MATCH(\"*\"&#REF!&\"*\",_xlfn.SINGLE(ProdLabelSec),0)),0,TRUE))","v":""},{"$f":"IF(AND($B179=0,$C179=0),\"\",IF(ISERROR(MATCH(\"*\"&#REF!&\"*\",_xlfn.SINGLE(ProdLabelSec),0)),0,TRUE))","v":""},{"$f":"IF(AND($B179=0,$C179=0),\"\",IF(ISERROR(MATCH(\"*\"&#REF!&\"*\",_xlfn.SINGLE(ProdLabelSec),0)),0,TRUE))","v":""},{"$f":"IF(AND($B179=0,$C179=0),\"\",IF(ISERROR(MATCH(\"*\"&#REF!&\"*\",_xlfn.SINGLE(ProdLabelSec),0)),0,TRUE))","v":""},{"$f":"IF(AND($B179=0,$C179=0),\"\",IF(ISERROR(MATCH(\"*\"&#REF!&\"*\",_xlfn.SINGLE(ProdLabelSec),0)),0,TRUE))","v":""}]
[null,null,null,null,null,null,null,null,null,null,null,null,null,null,null,null,null,null,null,null,null,null,null,null,null,null,null,null,null,null,null,null,null,null,null,null,null,null,null,null,null,null,null,null,null,null,null,null,null,null,null,null,null,null,null,null,null,null,null,null,null,null,null,null,null,null,null,null,null,null,null,null,null,null,null,null,null,null,null,null,{"$f":"IF(AND($B180=0,$C180=0),\"\",IF(AND(ISERROR(MATCH(\"*\"&#REF!&\"*\",_xlfn.SINGLE(ProdLabelSec),0)),OR(ISERROR(MATCH(\"*\"&\"oeko\"&\"*\",_xlfn.SINGLE(ProdLabelSec),0)),AND(ISERROR(MATCH(\"*\"&\"oeko\"&\"*\",_xlfn.SINGLE(ProdLabelSec),0))=FALSE,CA180<>0,CB180<>0))),0,TRUE))","v":""},{"$f":"IF(AND($B180=0,$C180=0),\"\",IF(ISERROR(MATCH(\"*\"&#REF!&\"*\",_xlfn.SINGLE(ProdLabelSec),0)),0,TRUE))","v":""},{"$f":"IF(AND($B180=0,$C180=0),\"\",IF(ISERROR(MATCH(\"*\"&#REF!&\"*\",_xlfn.SINGLE(ProdLabelSec),0)),0,TRUE))","v":""},{"$f":"IF(AND($B180=0,$C180=0),\"\",IF(ISERROR(MATCH(\"*\"&#REF!&\"*\",_xlfn.SINGLE(ProdLabelSec),0)),0,TRUE))","v":""},{"$f":"IF(AND($B180=0,$C180=0),\"\",IF(ISERROR(MATCH(\"*\"&#REF!&\"*\",_xlfn.SINGLE(ProdLabelSec),0)),0,TRUE))","v":""},{"$f":"IF(AND($B180=0,$C180=0),\"\",IF(ISERROR(MATCH(\"*\"&#REF!&\"*\",_xlfn.SINGLE(ProdLabelSec),0)),0,TRUE))","v":""},{"$f":"IF(AND($B180=0,$C180=0),\"\",IF(ISERROR(MATCH(\"*\"&#REF!&\"*\",_xlfn.SINGLE(ProdLabelSec),0)),0,TRUE))","v":""},{"$f":"IF(AND($B180=0,$C180=0),\"\",IF(ISERROR(MATCH(\"*\"&#REF!&\"*\",_xlfn.SINGLE(ProdLabelSec),0)),0,TRUE))","v":""},{"$f":"IF(AND($B180=0,$C180=0),\"\",IF(ISERROR(MATCH(\"*\"&#REF!&\"*\",_xlfn.SINGLE(ProdLabelSec),0)),0,TRUE))","v":""},{"$f":"IF(AND($B180=0,$C180=0),\"\",IF(ISERROR(MATCH(\"*\"&#REF!&\"*\",_xlfn.SINGLE(ProdLabelSec),0)),0,TRUE))","v":""},{"$f":"IF(AND($B180=0,$C180=0),\"\",IF(ISERROR(MATCH(\"*\"&#REF!&\"*\",_xlfn.SINGLE(ProdLabelSec),0)),0,TRUE))","v":""},{"$f":"IF(AND($B180=0,$C180=0),\"\",IF(ISERROR(MATCH(\"*\"&#REF!&\"*\",_xlfn.SINGLE(ProdLabelSec),0)),0,TRUE))","v":""},{"$f":"IF(AND($B180=0,$C180=0),\"\",IF(ISERROR(MATCH(\"*\"&#REF!&\"*\",_xlfn.SINGLE(ProdLabelSec),0)),0,TRUE))","v":""}]
[null,null,null,null,null,null,null,null,null,null,null,null,null,null,null,null,null,null,null,null,null,null,null,null,null,null,null,null,null,null,null,null,null,null,null,null,null,null,null,null,null,null,null,null,null,null,null,null,null,null,null,null,null,null,null,null,null,null,null,null,null,null,null,null,null,null,null,null,null,null,null,null,null,null,null,null,null,null,null,null,{"$f":"IF(AND($B181=0,$C181=0),\"\",IF(AND(ISERROR(MATCH(\"*\"&#REF!&\"*\",_xlfn.SINGLE(ProdLabelSec),0)),OR(ISERROR(MATCH(\"*\"&\"oeko\"&\"*\",_xlfn.SINGLE(ProdLabelSec),0)),AND(ISERROR(MATCH(\"*\"&\"oeko\"&\"*\",_xlfn.SINGLE(ProdLabelSec),0))=FALSE,CA181<>0,CB181<>0))),0,TRUE))","v":""},{"$f":"IF(AND($B181=0,$C181=0),\"\",IF(ISERROR(MATCH(\"*\"&#REF!&\"*\",_xlfn.SINGLE(ProdLabelSec),0)),0,TRUE))","v":""},{"$f":"IF(AND($B181=0,$C181=0),\"\",IF(ISERROR(MATCH(\"*\"&#REF!&\"*\",_xlfn.SINGLE(ProdLabelSec),0)),0,TRUE))","v":""},{"$f":"IF(AND($B181=0,$C181=0),\"\",IF(ISERROR(MATCH(\"*\"&#REF!&\"*\",_xlfn.SINGLE(ProdLabelSec),0)),0,TRUE))","v":""},{"$f":"IF(AND($B181=0,$C181=0),\"\",IF(ISERROR(MATCH(\"*\"&#REF!&\"*\",_xlfn.SINGLE(ProdLabelSec),0)),0,TRUE))","v":""},{"$f":"IF(AND($B181=0,$C181=0),\"\",IF(ISERROR(MATCH(\"*\"&#REF!&\"*\",_xlfn.SINGLE(ProdLabelSec),0)),0,TRUE))","v":""},{"$f":"IF(AND($B181=0,$C181=0),\"\",IF(ISERROR(MATCH(\"*\"&#REF!&\"*\",_xlfn.SINGLE(ProdLabelSec),0)),0,TRUE))","v":""},{"$f":"IF(AND($B181=0,$C181=0),\"\",IF(ISERROR(MATCH(\"*\"&#REF!&\"*\",_xlfn.SINGLE(ProdLabelSec),0)),0,TRUE))","v":""},{"$f":"IF(AND($B181=0,$C181=0),\"\",IF(ISERROR(MATCH(\"*\"&#REF!&\"*\",_xlfn.SINGLE(ProdLabelSec),0)),0,TRUE))","v":""},{"$f":"IF(AND($B181=0,$C181=0),\"\",IF(ISERROR(MATCH(\"*\"&#REF!&\"*\",_xlfn.SINGLE(ProdLabelSec),0)),0,TRUE))","v":""},{"$f":"IF(AND($B181=0,$C181=0),\"\",IF(ISERROR(MATCH(\"*\"&#REF!&\"*\",_xlfn.SINGLE(ProdLabelSec),0)),0,TRUE))","v":""},{"$f":"IF(AND($B181=0,$C181=0),\"\",IF(ISERROR(MATCH(\"*\"&#REF!&\"*\",_xlfn.SINGLE(ProdLabelSec),0)),0,TRUE))","v":""},{"$f":"IF(AND($B181=0,$C181=0),\"\",IF(ISERROR(MATCH(\"*\"&#REF!&\"*\",_xlfn.SINGLE(ProdLabelSec),0)),0,TRUE))","v":""}]
[null,null,null,null,null,null,null,null,null,null,null,null,null,null,null,null,null,null,null,null,null,null,null,null,null,null,null,null,null,null,null,null,null,null,null,null,null,null,null,null,null,null,null,null,null,null,null,null,null,null,null,null,null,null,null,null,null,null,null,null,null,null,null,null,null,null,null,null,null,null,null,null,null,null,null,null,null,null,null,null,{"$f":"IF(AND($B182=0,$C182=0),\"\",IF(AND(ISERROR(MATCH(\"*\"&#REF!&\"*\",_xlfn.SINGLE(ProdLabelSec),0)),OR(ISERROR(MATCH(\"*\"&\"oeko\"&\"*\",_xlfn.SINGLE(ProdLabelSec),0)),AND(ISERROR(MATCH(\"*\"&\"oeko\"&\"*\",_xlfn.SINGLE(ProdLabelSec),0))=FALSE,CA182<>0,CB182<>0))),0,TRUE))","v":""},{"$f":"IF(AND($B182=0,$C182=0),\"\",IF(ISERROR(MATCH(\"*\"&#REF!&\"*\",_xlfn.SINGLE(ProdLabelSec),0)),0,TRUE))","v":""},{"$f":"IF(AND($B182=0,$C182=0),\"\",IF(ISERROR(MATCH(\"*\"&#REF!&\"*\",_xlfn.SINGLE(ProdLabelSec),0)),0,TRUE))","v":""},{"$f":"IF(AND($B182=0,$C182=0),\"\",IF(ISERROR(MATCH(\"*\"&#REF!&\"*\",_xlfn.SINGLE(ProdLabelSec),0)),0,TRUE))","v":""},{"$f":"IF(AND($B182=0,$C182=0),\"\",IF(ISERROR(MATCH(\"*\"&#REF!&\"*\",_xlfn.SINGLE(ProdLabelSec),0)),0,TRUE))","v":""},{"$f":"IF(AND($B182=0,$C182=0),\"\",IF(ISERROR(MATCH(\"*\"&#REF!&\"*\",_xlfn.SINGLE(ProdLabelSec),0)),0,TRUE))","v":""},{"$f":"IF(AND($B182=0,$C182=0),\"\",IF(ISERROR(MATCH(\"*\"&#REF!&\"*\",_xlfn.SINGLE(ProdLabelSec),0)),0,TRUE))","v":""},{"$f":"IF(AND($B182=0,$C182=0),\"\",IF(ISERROR(MATCH(\"*\"&#REF!&\"*\",_xlfn.SINGLE(ProdLabelSec),0)),0,TRUE))","v":""},{"$f":"IF(AND($B182=0,$C182=0),\"\",IF(ISERROR(MATCH(\"*\"&#REF!&\"*\",_xlfn.SINGLE(ProdLabelSec),0)),0,TRUE))","v":""},{"$f":"IF(AND($B182=0,$C182=0),\"\",IF(ISERROR(MATCH(\"*\"&#REF!&\"*\",_xlfn.SINGLE(ProdLabelSec),0)),0,TRUE))","v":""},{"$f":"IF(AND($B182=0,$C182=0),\"\",IF(ISERROR(MATCH(\"*\"&#REF!&\"*\",_xlfn.SINGLE(ProdLabelSec),0)),0,TRUE))","v":""},{"$f":"IF(AND($B182=0,$C182=0),\"\",IF(ISERROR(MATCH(\"*\"&#REF!&\"*\",_xlfn.SINGLE(ProdLabelSec),0)),0,TRUE))","v":""},{"$f":"IF(AND($B182=0,$C182=0),\"\",IF(ISERROR(MATCH(\"*\"&#REF!&\"*\",_xlfn.SINGLE(ProdLabelSec),0)),0,TRUE))","v":""}]
[null,null,null,null,null,null,null,null,null,null,null,null,null,null,null,null,null,null,null,null,null,null,null,null,null,null,null,null,null,null,null,null,null,null,null,null,null,null,null,null,null,null,null,null,null,null,null,null,null,null,null,null,null,null,null,null,null,null,null,null,null,null,null,null,null,null,null,null,null,null,null,null,null,null,null,null,null,null,null,null,{"$f":"IF(AND($B183=0,$C183=0),\"\",IF(AND(ISERROR(MATCH(\"*\"&#REF!&\"*\",_xlfn.SINGLE(ProdLabelSec),0)),OR(ISERROR(MATCH(\"*\"&\"oeko\"&\"*\",_xlfn.SINGLE(ProdLabelSec),0)),AND(ISERROR(MATCH(\"*\"&\"oeko\"&\"*\",_xlfn.SINGLE(ProdLabelSec),0))=FALSE,CA183<>0,CB183<>0))),0,TRUE))","v":""},{"$f":"IF(AND($B183=0,$C183=0),\"\",IF(ISERROR(MATCH(\"*\"&#REF!&\"*\",_xlfn.SINGLE(ProdLabelSec),0)),0,TRUE))","v":""},{"$f":"IF(AND($B183=0,$C183=0),\"\",IF(ISERROR(MATCH(\"*\"&#REF!&\"*\",_xlfn.SINGLE(ProdLabelSec),0)),0,TRUE))","v":""},{"$f":"IF(AND($B183=0,$C183=0),\"\",IF(ISERROR(MATCH(\"*\"&#REF!&\"*\",_xlfn.SINGLE(ProdLabelSec),0)),0,TRUE))","v":""},{"$f":"IF(AND($B183=0,$C183=0),\"\",IF(ISERROR(MATCH(\"*\"&#REF!&\"*\",_xlfn.SINGLE(ProdLabelSec),0)),0,TRUE))","v":""},{"$f":"IF(AND($B183=0,$C183=0),\"\",IF(ISERROR(MATCH(\"*\"&#REF!&\"*\",_xlfn.SINGLE(ProdLabelSec),0)),0,TRUE))","v":""},{"$f":"IF(AND($B183=0,$C183=0),\"\",IF(ISERROR(MATCH(\"*\"&#REF!&\"*\",_xlfn.SINGLE(ProdLabelSec),0)),0,TRUE))","v":""},{"$f":"IF(AND($B183=0,$C183=0),\"\",IF(ISERROR(MATCH(\"*\"&#REF!&\"*\",_xlfn.SINGLE(ProdLabelSec),0)),0,TRUE))","v":""},{"$f":"IF(AND($B183=0,$C183=0),\"\",IF(ISERROR(MATCH(\"*\"&#REF!&\"*\",_xlfn.SINGLE(ProdLabelSec),0)),0,TRUE))","v":""},{"$f":"IF(AND($B183=0,$C183=0),\"\",IF(ISERROR(MATCH(\"*\"&#REF!&\"*\",_xlfn.SINGLE(ProdLabelSec),0)),0,TRUE))","v":""},{"$f":"IF(AND($B183=0,$C183=0),\"\",IF(ISERROR(MATCH(\"*\"&#REF!&\"*\",_xlfn.SINGLE(ProdLabelSec),0)),0,TRUE))","v":""},{"$f":"IF(AND($B183=0,$C183=0),\"\",IF(ISERROR(MATCH(\"*\"&#REF!&\"*\",_xlfn.SINGLE(ProdLabelSec),0)),0,TRUE))","v":""},{"$f":"IF(AND($B183=0,$C183=0),\"\",IF(ISERROR(MATCH(\"*\"&#REF!&\"*\",_xlfn.SINGLE(ProdLabelSec),0)),0,TRUE))","v":""}]
[null,null,null,null,null,null,null,null,null,null,null,null,null,null,null,null,null,null,null,null,null,null,null,null,null,null,null,null,null,null,null,null,null,null,null,null,null,null,null,null,null,null,null,null,null,null,null,null,null,null,null,null,null,null,null,null,null,null,null,null,null,null,null,null,null,null,null,null,null,null,null,null,null,null,null,null,null,null,null,null,{"$f":"IF(AND($B184=0,$C184=0),\"\",IF(AND(ISERROR(MATCH(\"*\"&#REF!&\"*\",_xlfn.SINGLE(ProdLabelSec),0)),OR(ISERROR(MATCH(\"*\"&\"oeko\"&\"*\",_xlfn.SINGLE(ProdLabelSec),0)),AND(ISERROR(MATCH(\"*\"&\"oeko\"&\"*\",_xlfn.SINGLE(ProdLabelSec),0))=FALSE,CA184<>0,CB184<>0))),0,TRUE))","v":""},{"$f":"IF(AND($B184=0,$C184=0),\"\",IF(ISERROR(MATCH(\"*\"&#REF!&\"*\",_xlfn.SINGLE(ProdLabelSec),0)),0,TRUE))","v":""},{"$f":"IF(AND($B184=0,$C184=0),\"\",IF(ISERROR(MATCH(\"*\"&#REF!&\"*\",_xlfn.SINGLE(ProdLabelSec),0)),0,TRUE))","v":""},{"$f":"IF(AND($B184=0,$C184=0),\"\",IF(ISERROR(MATCH(\"*\"&#REF!&\"*\",_xlfn.SINGLE(ProdLabelSec),0)),0,TRUE))","v":""},{"$f":"IF(AND($B184=0,$C184=0),\"\",IF(ISERROR(MATCH(\"*\"&#REF!&\"*\",_xlfn.SINGLE(ProdLabelSec),0)),0,TRUE))","v":""},{"$f":"IF(AND($B184=0,$C184=0),\"\",IF(ISERROR(MATCH(\"*\"&#REF!&\"*\",_xlfn.SINGLE(ProdLabelSec),0)),0,TRUE))","v":""},{"$f":"IF(AND($B184=0,$C184=0),\"\",IF(ISERROR(MATCH(\"*\"&#REF!&\"*\",_xlfn.SINGLE(ProdLabelSec),0)),0,TRUE))","v":""},{"$f":"IF(AND($B184=0,$C184=0),\"\",IF(ISERROR(MATCH(\"*\"&#REF!&\"*\",_xlfn.SINGLE(ProdLabelSec),0)),0,TRUE))","v":""},{"$f":"IF(AND($B184=0,$C184=0),\"\",IF(ISERROR(MATCH(\"*\"&#REF!&\"*\",_xlfn.SINGLE(ProdLabelSec),0)),0,TRUE))","v":""},{"$f":"IF(AND($B184=0,$C184=0),\"\",IF(ISERROR(MATCH(\"*\"&#REF!&\"*\",_xlfn.SINGLE(ProdLabelSec),0)),0,TRUE))","v":""},{"$f":"IF(AND($B184=0,$C184=0),\"\",IF(ISERROR(MATCH(\"*\"&#REF!&\"*\",_xlfn.SINGLE(ProdLabelSec),0)),0,TRUE))","v":""},{"$f":"IF(AND($B184=0,$C184=0),\"\",IF(ISERROR(MATCH(\"*\"&#REF!&\"*\",_xlfn.SINGLE(ProdLabelSec),0)),0,TRUE))","v":""},{"$f":"IF(AND($B184=0,$C184=0),\"\",IF(ISERROR(MATCH(\"*\"&#REF!&\"*\",_xlfn.SINGLE(ProdLabelSec),0)),0,TRUE))","v":""}]
[null,null,null,null,null,null,null,null,null,null,null,null,null,null,null,null,null,null,null,null,null,null,null,null,null,null,null,null,null,null,null,null,null,null,null,null,null,null,null,null,null,null,null,null,null,null,null,null,null,null,null,null,null,null,null,null,null,null,null,null,null,null,null,null,null,null,null,null,null,null,null,null,null,null,null,null,null,null,null,null,{"$f":"IF(AND($B185=0,$C185=0),\"\",IF(AND(ISERROR(MATCH(\"*\"&#REF!&\"*\",_xlfn.SINGLE(ProdLabelSec),0)),OR(ISERROR(MATCH(\"*\"&\"oeko\"&\"*\",_xlfn.SINGLE(ProdLabelSec),0)),AND(ISERROR(MATCH(\"*\"&\"oeko\"&\"*\",_xlfn.SINGLE(ProdLabelSec),0))=FALSE,CA185<>0,CB185<>0))),0,TRUE))","v":""},{"$f":"IF(AND($B185=0,$C185=0),\"\",IF(ISERROR(MATCH(\"*\"&#REF!&\"*\",_xlfn.SINGLE(ProdLabelSec),0)),0,TRUE))","v":""},{"$f":"IF(AND($B185=0,$C185=0),\"\",IF(ISERROR(MATCH(\"*\"&#REF!&\"*\",_xlfn.SINGLE(ProdLabelSec),0)),0,TRUE))","v":""},{"$f":"IF(AND($B185=0,$C185=0),\"\",IF(ISERROR(MATCH(\"*\"&#REF!&\"*\",_xlfn.SINGLE(ProdLabelSec),0)),0,TRUE))","v":""},{"$f":"IF(AND($B185=0,$C185=0),\"\",IF(ISERROR(MATCH(\"*\"&#REF!&\"*\",_xlfn.SINGLE(ProdLabelSec),0)),0,TRUE))","v":""},{"$f":"IF(AND($B185=0,$C185=0),\"\",IF(ISERROR(MATCH(\"*\"&#REF!&\"*\",_xlfn.SINGLE(ProdLabelSec),0)),0,TRUE))","v":""},{"$f":"IF(AND($B185=0,$C185=0),\"\",IF(ISERROR(MATCH(\"*\"&#REF!&\"*\",_xlfn.SINGLE(ProdLabelSec),0)),0,TRUE))","v":""},{"$f":"IF(AND($B185=0,$C185=0),\"\",IF(ISERROR(MATCH(\"*\"&#REF!&\"*\",_xlfn.SINGLE(ProdLabelSec),0)),0,TRUE))","v":""},{"$f":"IF(AND($B185=0,$C185=0),\"\",IF(ISERROR(MATCH(\"*\"&#REF!&\"*\",_xlfn.SINGLE(ProdLabelSec),0)),0,TRUE))","v":""},{"$f":"IF(AND($B185=0,$C185=0),\"\",IF(ISERROR(MATCH(\"*\"&#REF!&\"*\",_xlfn.SINGLE(ProdLabelSec),0)),0,TRUE))","v":""},{"$f":"IF(AND($B185=0,$C185=0),\"\",IF(ISERROR(MATCH(\"*\"&#REF!&\"*\",_xlfn.SINGLE(ProdLabelSec),0)),0,TRUE))","v":""},{"$f":"IF(AND($B185=0,$C185=0),\"\",IF(ISERROR(MATCH(\"*\"&#REF!&\"*\",_xlfn.SINGLE(ProdLabelSec),0)),0,TRUE))","v":""},{"$f":"IF(AND($B185=0,$C185=0),\"\",IF(ISERROR(MATCH(\"*\"&#REF!&\"*\",_xlfn.SINGLE(ProdLabelSec),0)),0,TRUE))","v":""}]
[null,null,null,null,null,null,null,null,null,null,null,null,null,null,null,null,null,null,null,null,null,null,null,null,null,null,null,null,null,null,null,null,null,null,null,null,null,null,null,null,null,null,null,null,null,null,null,null,null,null,null,null,null,null,null,null,null,null,null,null,null,null,null,null,null,null,null,null,null,null,null,null,null,null,null,null,null,null,null,null,{"$f":"IF(AND($B186=0,$C186=0),\"\",IF(AND(ISERROR(MATCH(\"*\"&#REF!&\"*\",_xlfn.SINGLE(ProdLabelSec),0)),OR(ISERROR(MATCH(\"*\"&\"oeko\"&\"*\",_xlfn.SINGLE(ProdLabelSec),0)),AND(ISERROR(MATCH(\"*\"&\"oeko\"&\"*\",_xlfn.SINGLE(ProdLabelSec),0))=FALSE,CA186<>0,CB186<>0))),0,TRUE))","v":""},{"$f":"IF(AND($B186=0,$C186=0),\"\",IF(ISERROR(MATCH(\"*\"&#REF!&\"*\",_xlfn.SINGLE(ProdLabelSec),0)),0,TRUE))","v":""},{"$f":"IF(AND($B186=0,$C186=0),\"\",IF(ISERROR(MATCH(\"*\"&#REF!&\"*\",_xlfn.SINGLE(ProdLabelSec),0)),0,TRUE))","v":""},{"$f":"IF(AND($B186=0,$C186=0),\"\",IF(ISERROR(MATCH(\"*\"&#REF!&\"*\",_xlfn.SINGLE(ProdLabelSec),0)),0,TRUE))","v":""},{"$f":"IF(AND($B186=0,$C186=0),\"\",IF(ISERROR(MATCH(\"*\"&#REF!&\"*\",_xlfn.SINGLE(ProdLabelSec),0)),0,TRUE))","v":""},{"$f":"IF(AND($B186=0,$C186=0),\"\",IF(ISERROR(MATCH(\"*\"&#REF!&\"*\",_xlfn.SINGLE(ProdLabelSec),0)),0,TRUE))","v":""},{"$f":"IF(AND($B186=0,$C186=0),\"\",IF(ISERROR(MATCH(\"*\"&#REF!&\"*\",_xlfn.SINGLE(ProdLabelSec),0)),0,TRUE))","v":""},{"$f":"IF(AND($B186=0,$C186=0),\"\",IF(ISERROR(MATCH(\"*\"&#REF!&\"*\",_xlfn.SINGLE(ProdLabelSec),0)),0,TRUE))","v":""},{"$f":"IF(AND($B186=0,$C186=0),\"\",IF(ISERROR(MATCH(\"*\"&#REF!&\"*\",_xlfn.SINGLE(ProdLabelSec),0)),0,TRUE))","v":""},{"$f":"IF(AND($B186=0,$C186=0),\"\",IF(ISERROR(MATCH(\"*\"&#REF!&\"*\",_xlfn.SINGLE(ProdLabelSec),0)),0,TRUE))","v":""},{"$f":"IF(AND($B186=0,$C186=0),\"\",IF(ISERROR(MATCH(\"*\"&#REF!&\"*\",_xlfn.SINGLE(ProdLabelSec),0)),0,TRUE))","v":""},{"$f":"IF(AND($B186=0,$C186=0),\"\",IF(ISERROR(MATCH(\"*\"&#REF!&\"*\",_xlfn.SINGLE(ProdLabelSec),0)),0,TRUE))","v":""},{"$f":"IF(AND($B186=0,$C186=0),\"\",IF(ISERROR(MATCH(\"*\"&#REF!&\"*\",_xlfn.SINGLE(ProdLabelSec),0)),0,TRUE))","v":""}]
[null,null,null,null,null,null,null,null,null,null,null,null,null,null,null,null,null,null,null,null,null,null,null,null,null,null,null,null,null,null,null,null,null,null,null,null,null,null,null,null,null,null,null,null,null,null,null,null,null,null,null,null,null,null,null,null,null,null,null,null,null,null,null,null,null,null,null,null,null,null,null,null,null,null,null,null,null,null,null,null,{"$f":"IF(AND($B187=0,$C187=0),\"\",IF(AND(ISERROR(MATCH(\"*\"&#REF!&\"*\",_xlfn.SINGLE(ProdLabelSec),0)),OR(ISERROR(MATCH(\"*\"&\"oeko\"&\"*\",_xlfn.SINGLE(ProdLabelSec),0)),AND(ISERROR(MATCH(\"*\"&\"oeko\"&\"*\",_xlfn.SINGLE(ProdLabelSec),0))=FALSE,CA187<>0,CB187<>0))),0,TRUE))","v":""},{"$f":"IF(AND($B187=0,$C187=0),\"\",IF(ISERROR(MATCH(\"*\"&#REF!&\"*\",_xlfn.SINGLE(ProdLabelSec),0)),0,TRUE))","v":""},{"$f":"IF(AND($B187=0,$C187=0),\"\",IF(ISERROR(MATCH(\"*\"&#REF!&\"*\",_xlfn.SINGLE(ProdLabelSec),0)),0,TRUE))","v":""},{"$f":"IF(AND($B187=0,$C187=0),\"\",IF(ISERROR(MATCH(\"*\"&#REF!&\"*\",_xlfn.SINGLE(ProdLabelSec),0)),0,TRUE))","v":""},{"$f":"IF(AND($B187=0,$C187=0),\"\",IF(ISERROR(MATCH(\"*\"&#REF!&\"*\",_xlfn.SINGLE(ProdLabelSec),0)),0,TRUE))","v":""},{"$f":"IF(AND($B187=0,$C187=0),\"\",IF(ISERROR(MATCH(\"*\"&#REF!&\"*\",_xlfn.SINGLE(ProdLabelSec),0)),0,TRUE))","v":""},{"$f":"IF(AND($B187=0,$C187=0),\"\",IF(ISERROR(MATCH(\"*\"&#REF!&\"*\",_xlfn.SINGLE(ProdLabelSec),0)),0,TRUE))","v":""},{"$f":"IF(AND($B187=0,$C187=0),\"\",IF(ISERROR(MATCH(\"*\"&#REF!&\"*\",_xlfn.SINGLE(ProdLabelSec),0)),0,TRUE))","v":""},{"$f":"IF(AND($B187=0,$C187=0),\"\",IF(ISERROR(MATCH(\"*\"&#REF!&\"*\",_xlfn.SINGLE(ProdLabelSec),0)),0,TRUE))","v":""},{"$f":"IF(AND($B187=0,$C187=0),\"\",IF(ISERROR(MATCH(\"*\"&#REF!&\"*\",_xlfn.SINGLE(ProdLabelSec),0)),0,TRUE))","v":""},{"$f":"IF(AND($B187=0,$C187=0),\"\",IF(ISERROR(MATCH(\"*\"&#REF!&\"*\",_xlfn.SINGLE(ProdLabelSec),0)),0,TRUE))","v":""},{"$f":"IF(AND($B187=0,$C187=0),\"\",IF(ISERROR(MATCH(\"*\"&#REF!&\"*\",_xlfn.SINGLE(ProdLabelSec),0)),0,TRUE))","v":""},{"$f":"IF(AND($B187=0,$C187=0),\"\",IF(ISERROR(MATCH(\"*\"&#REF!&\"*\",_xlfn.SINGLE(ProdLabelSec),0)),0,TRUE))","v":""}]
[null,null,null,null,null,null,null,null,null,null,null,null,null,null,null,null,null,null,null,null,null,null,null,null,null,null,null,null,null,null,null,null,null,null,null,null,null,null,null,null,null,null,null,null,null,null,null,null,null,null,null,null,null,null,null,null,null,null,null,null,null,null,null,null,null,null,null,null,null,null,null,null,null,null,null,null,null,null,null,null,{"$f":"IF(AND($B188=0,$C188=0),\"\",IF(AND(ISERROR(MATCH(\"*\"&#REF!&\"*\",_xlfn.SINGLE(ProdLabelSec),0)),OR(ISERROR(MATCH(\"*\"&\"oeko\"&\"*\",_xlfn.SINGLE(ProdLabelSec),0)),AND(ISERROR(MATCH(\"*\"&\"oeko\"&\"*\",_xlfn.SINGLE(ProdLabelSec),0))=FALSE,CA188<>0,CB188<>0))),0,TRUE))","v":""},{"$f":"IF(AND($B188=0,$C188=0),\"\",IF(ISERROR(MATCH(\"*\"&#REF!&\"*\",_xlfn.SINGLE(ProdLabelSec),0)),0,TRUE))","v":""},{"$f":"IF(AND($B188=0,$C188=0),\"\",IF(ISERROR(MATCH(\"*\"&#REF!&\"*\",_xlfn.SINGLE(ProdLabelSec),0)),0,TRUE))","v":""},{"$f":"IF(AND($B188=0,$C188=0),\"\",IF(ISERROR(MATCH(\"*\"&#REF!&\"*\",_xlfn.SINGLE(ProdLabelSec),0)),0,TRUE))","v":""},{"$f":"IF(AND($B188=0,$C188=0),\"\",IF(ISERROR(MATCH(\"*\"&#REF!&\"*\",_xlfn.SINGLE(ProdLabelSec),0)),0,TRUE))","v":""},{"$f":"IF(AND($B188=0,$C188=0),\"\",IF(ISERROR(MATCH(\"*\"&#REF!&\"*\",_xlfn.SINGLE(ProdLabelSec),0)),0,TRUE))","v":""},{"$f":"IF(AND($B188=0,$C188=0),\"\",IF(ISERROR(MATCH(\"*\"&#REF!&\"*\",_xlfn.SINGLE(ProdLabelSec),0)),0,TRUE))","v":""},{"$f":"IF(AND($B188=0,$C188=0),\"\",IF(ISERROR(MATCH(\"*\"&#REF!&\"*\",_xlfn.SINGLE(ProdLabelSec),0)),0,TRUE))","v":""},{"$f":"IF(AND($B188=0,$C188=0),\"\",IF(ISERROR(MATCH(\"*\"&#REF!&\"*\",_xlfn.SINGLE(ProdLabelSec),0)),0,TRUE))","v":""},{"$f":"IF(AND($B188=0,$C188=0),\"\",IF(ISERROR(MATCH(\"*\"&#REF!&\"*\",_xlfn.SINGLE(ProdLabelSec),0)),0,TRUE))","v":""},{"$f":"IF(AND($B188=0,$C188=0),\"\",IF(ISERROR(MATCH(\"*\"&#REF!&\"*\",_xlfn.SINGLE(ProdLabelSec),0)),0,TRUE))","v":""},{"$f":"IF(AND($B188=0,$C188=0),\"\",IF(ISERROR(MATCH(\"*\"&#REF!&\"*\",_xlfn.SINGLE(ProdLabelSec),0)),0,TRUE))","v":""},{"$f":"IF(AND($B188=0,$C188=0),\"\",IF(ISERROR(MATCH(\"*\"&#REF!&\"*\",_xlfn.SINGLE(ProdLabelSec),0)),0,TRUE))","v":""}]
[null,null,null,null,null,null,null,null,null,null,null,null,null,null,null,null,null,null,null,null,null,null,null,null,null,null,null,null,null,null,null,null,null,null,null,null,null,null,null,null,null,null,null,null,null,null,null,null,null,null,null,null,null,null,null,null,null,null,null,null,null,null,null,null,null,null,null,null,null,null,null,null,null,null,null,null,null,null,null,null,{"$f":"IF(AND($B189=0,$C189=0),\"\",IF(AND(ISERROR(MATCH(\"*\"&#REF!&\"*\",_xlfn.SINGLE(ProdLabelSec),0)),OR(ISERROR(MATCH(\"*\"&\"oeko\"&\"*\",_xlfn.SINGLE(ProdLabelSec),0)),AND(ISERROR(MATCH(\"*\"&\"oeko\"&\"*\",_xlfn.SINGLE(ProdLabelSec),0))=FALSE,CA189<>0,CB189<>0))),0,TRUE))","v":""},{"$f":"IF(AND($B189=0,$C189=0),\"\",IF(ISERROR(MATCH(\"*\"&#REF!&\"*\",_xlfn.SINGLE(ProdLabelSec),0)),0,TRUE))","v":""},{"$f":"IF(AND($B189=0,$C189=0),\"\",IF(ISERROR(MATCH(\"*\"&#REF!&\"*\",_xlfn.SINGLE(ProdLabelSec),0)),0,TRUE))","v":""},{"$f":"IF(AND($B189=0,$C189=0),\"\",IF(ISERROR(MATCH(\"*\"&#REF!&\"*\",_xlfn.SINGLE(ProdLabelSec),0)),0,TRUE))","v":""},{"$f":"IF(AND($B189=0,$C189=0),\"\",IF(ISERROR(MATCH(\"*\"&#REF!&\"*\",_xlfn.SINGLE(ProdLabelSec),0)),0,TRUE))","v":""},{"$f":"IF(AND($B189=0,$C189=0),\"\",IF(ISERROR(MATCH(\"*\"&#REF!&\"*\",_xlfn.SINGLE(ProdLabelSec),0)),0,TRUE))","v":""},{"$f":"IF(AND($B189=0,$C189=0),\"\",IF(ISERROR(MATCH(\"*\"&#REF!&\"*\",_xlfn.SINGLE(ProdLabelSec),0)),0,TRUE))","v":""},{"$f":"IF(AND($B189=0,$C189=0),\"\",IF(ISERROR(MATCH(\"*\"&#REF!&\"*\",_xlfn.SINGLE(ProdLabelSec),0)),0,TRUE))","v":""},{"$f":"IF(AND($B189=0,$C189=0),\"\",IF(ISERROR(MATCH(\"*\"&#REF!&\"*\",_xlfn.SINGLE(ProdLabelSec),0)),0,TRUE))","v":""},{"$f":"IF(AND($B189=0,$C189=0),\"\",IF(ISERROR(MATCH(\"*\"&#REF!&\"*\",_xlfn.SINGLE(ProdLabelSec),0)),0,TRUE))","v":""},{"$f":"IF(AND($B189=0,$C189=0),\"\",IF(ISERROR(MATCH(\"*\"&#REF!&\"*\",_xlfn.SINGLE(ProdLabelSec),0)),0,TRUE))","v":""},{"$f":"IF(AND($B189=0,$C189=0),\"\",IF(ISERROR(MATCH(\"*\"&#REF!&\"*\",_xlfn.SINGLE(ProdLabelSec),0)),0,TRUE))","v":""},{"$f":"IF(AND($B189=0,$C189=0),\"\",IF(ISERROR(MATCH(\"*\"&#REF!&\"*\",_xlfn.SINGLE(ProdLabelSec),0)),0,TRUE))","v":""}]
[null,null,null,null,null,null,null,null,null,null,null,null,null,null,null,null,null,null,null,null,null,null,null,null,null,null,null,null,null,null,null,null,null,null,null,null,null,null,null,null,null,null,null,null,null,null,null,null,null,null,null,null,null,null,null,null,null,null,null,null,null,null,null,null,null,null,null,null,null,null,null,null,null,null,null,null,null,null,null,null,{"$f":"IF(AND($B190=0,$C190=0),\"\",IF(AND(ISERROR(MATCH(\"*\"&#REF!&\"*\",_xlfn.SINGLE(ProdLabelSec),0)),OR(ISERROR(MATCH(\"*\"&\"oeko\"&\"*\",_xlfn.SINGLE(ProdLabelSec),0)),AND(ISERROR(MATCH(\"*\"&\"oeko\"&\"*\",_xlfn.SINGLE(ProdLabelSec),0))=FALSE,CA190<>0,CB190<>0))),0,TRUE))","v":""},{"$f":"IF(AND($B190=0,$C190=0),\"\",IF(ISERROR(MATCH(\"*\"&#REF!&\"*\",_xlfn.SINGLE(ProdLabelSec),0)),0,TRUE))","v":""},{"$f":"IF(AND($B190=0,$C190=0),\"\",IF(ISERROR(MATCH(\"*\"&#REF!&\"*\",_xlfn.SINGLE(ProdLabelSec),0)),0,TRUE))","v":""},{"$f":"IF(AND($B190=0,$C190=0),\"\",IF(ISERROR(MATCH(\"*\"&#REF!&\"*\",_xlfn.SINGLE(ProdLabelSec),0)),0,TRUE))","v":""},{"$f":"IF(AND($B190=0,$C190=0),\"\",IF(ISERROR(MATCH(\"*\"&#REF!&\"*\",_xlfn.SINGLE(ProdLabelSec),0)),0,TRUE))","v":""},{"$f":"IF(AND($B190=0,$C190=0),\"\",IF(ISERROR(MATCH(\"*\"&#REF!&\"*\",_xlfn.SINGLE(ProdLabelSec),0)),0,TRUE))","v":""},{"$f":"IF(AND($B190=0,$C190=0),\"\",IF(ISERROR(MATCH(\"*\"&#REF!&\"*\",_xlfn.SINGLE(ProdLabelSec),0)),0,TRUE))","v":""},{"$f":"IF(AND($B190=0,$C190=0),\"\",IF(ISERROR(MATCH(\"*\"&#REF!&\"*\",_xlfn.SINGLE(ProdLabelSec),0)),0,TRUE))","v":""},{"$f":"IF(AND($B190=0,$C190=0),\"\",IF(ISERROR(MATCH(\"*\"&#REF!&\"*\",_xlfn.SINGLE(ProdLabelSec),0)),0,TRUE))","v":""},{"$f":"IF(AND($B190=0,$C190=0),\"\",IF(ISERROR(MATCH(\"*\"&#REF!&\"*\",_xlfn.SINGLE(ProdLabelSec),0)),0,TRUE))","v":""},{"$f":"IF(AND($B190=0,$C190=0),\"\",IF(ISERROR(MATCH(\"*\"&#REF!&\"*\",_xlfn.SINGLE(ProdLabelSec),0)),0,TRUE))","v":""},{"$f":"IF(AND($B190=0,$C190=0),\"\",IF(ISERROR(MATCH(\"*\"&#REF!&\"*\",_xlfn.SINGLE(ProdLabelSec),0)),0,TRUE))","v":""},{"$f":"IF(AND($B190=0,$C190=0),\"\",IF(ISERROR(MATCH(\"*\"&#REF!&\"*\",_xlfn.SINGLE(ProdLabelSec),0)),0,TRUE))","v":""}]
[null,null,null,null,null,null,null,null,null,null,null,null,null,null,null,null,null,null,null,null,null,null,null,null,null,null,null,null,null,null,null,null,null,null,null,null,null,null,null,null,null,null,null,null,null,null,null,null,null,null,null,null,null,null,null,null,null,null,null,null,null,null,null,null,null,null,null,null,null,null,null,null,null,null,null,null,null,null,null,null,{"$f":"IF(AND($B191=0,$C191=0),\"\",IF(AND(ISERROR(MATCH(\"*\"&#REF!&\"*\",_xlfn.SINGLE(ProdLabelSec),0)),OR(ISERROR(MATCH(\"*\"&\"oeko\"&\"*\",_xlfn.SINGLE(ProdLabelSec),0)),AND(ISERROR(MATCH(\"*\"&\"oeko\"&\"*\",_xlfn.SINGLE(ProdLabelSec),0))=FALSE,CA191<>0,CB191<>0))),0,TRUE))","v":""},{"$f":"IF(AND($B191=0,$C191=0),\"\",IF(ISERROR(MATCH(\"*\"&#REF!&\"*\",_xlfn.SINGLE(ProdLabelSec),0)),0,TRUE))","v":""},{"$f":"IF(AND($B191=0,$C191=0),\"\",IF(ISERROR(MATCH(\"*\"&#REF!&\"*\",_xlfn.SINGLE(ProdLabelSec),0)),0,TRUE))","v":""},{"$f":"IF(AND($B191=0,$C191=0),\"\",IF(ISERROR(MATCH(\"*\"&#REF!&\"*\",_xlfn.SINGLE(ProdLabelSec),0)),0,TRUE))","v":""},{"$f":"IF(AND($B191=0,$C191=0),\"\",IF(ISERROR(MATCH(\"*\"&#REF!&\"*\",_xlfn.SINGLE(ProdLabelSec),0)),0,TRUE))","v":""},{"$f":"IF(AND($B191=0,$C191=0),\"\",IF(ISERROR(MATCH(\"*\"&#REF!&\"*\",_xlfn.SINGLE(ProdLabelSec),0)),0,TRUE))","v":""},{"$f":"IF(AND($B191=0,$C191=0),\"\",IF(ISERROR(MATCH(\"*\"&#REF!&\"*\",_xlfn.SINGLE(ProdLabelSec),0)),0,TRUE))","v":""},{"$f":"IF(AND($B191=0,$C191=0),\"\",IF(ISERROR(MATCH(\"*\"&#REF!&\"*\",_xlfn.SINGLE(ProdLabelSec),0)),0,TRUE))","v":""},{"$f":"IF(AND($B191=0,$C191=0),\"\",IF(ISERROR(MATCH(\"*\"&#REF!&\"*\",_xlfn.SINGLE(ProdLabelSec),0)),0,TRUE))","v":""},{"$f":"IF(AND($B191=0,$C191=0),\"\",IF(ISERROR(MATCH(\"*\"&#REF!&\"*\",_xlfn.SINGLE(ProdLabelSec),0)),0,TRUE))","v":""},{"$f":"IF(AND($B191=0,$C191=0),\"\",IF(ISERROR(MATCH(\"*\"&#REF!&\"*\",_xlfn.SINGLE(ProdLabelSec),0)),0,TRUE))","v":""},{"$f":"IF(AND($B191=0,$C191=0),\"\",IF(ISERROR(MATCH(\"*\"&#REF!&\"*\",_xlfn.SINGLE(ProdLabelSec),0)),0,TRUE))","v":""},{"$f":"IF(AND($B191=0,$C191=0),\"\",IF(ISERROR(MATCH(\"*\"&#REF!&\"*\",_xlfn.SINGLE(ProdLabelSec),0)),0,TRUE))","v":""}]
[null,null,null,null,null,null,null,null,null,null,null,null,null,null,null,null,null,null,null,null,null,null,null,null,null,null,null,null,null,null,null,null,null,null,null,null,null,null,null,null,null,null,null,null,null,null,null,null,null,null,null,null,null,null,null,null,null,null,null,null,null,null,null,null,null,null,null,null,null,null,null,null,null,null,null,null,null,null,null,null,{"$f":"IF(AND($B192=0,$C192=0),\"\",IF(AND(ISERROR(MATCH(\"*\"&#REF!&\"*\",_xlfn.SINGLE(ProdLabelSec),0)),OR(ISERROR(MATCH(\"*\"&\"oeko\"&\"*\",_xlfn.SINGLE(ProdLabelSec),0)),AND(ISERROR(MATCH(\"*\"&\"oeko\"&\"*\",_xlfn.SINGLE(ProdLabelSec),0))=FALSE,CA192<>0,CB192<>0))),0,TRUE))","v":""},{"$f":"IF(AND($B192=0,$C192=0),\"\",IF(ISERROR(MATCH(\"*\"&#REF!&\"*\",_xlfn.SINGLE(ProdLabelSec),0)),0,TRUE))","v":""},{"$f":"IF(AND($B192=0,$C192=0),\"\",IF(ISERROR(MATCH(\"*\"&#REF!&\"*\",_xlfn.SINGLE(ProdLabelSec),0)),0,TRUE))","v":""},{"$f":"IF(AND($B192=0,$C192=0),\"\",IF(ISERROR(MATCH(\"*\"&#REF!&\"*\",_xlfn.SINGLE(ProdLabelSec),0)),0,TRUE))","v":""},{"$f":"IF(AND($B192=0,$C192=0),\"\",IF(ISERROR(MATCH(\"*\"&#REF!&\"*\",_xlfn.SINGLE(ProdLabelSec),0)),0,TRUE))","v":""},{"$f":"IF(AND($B192=0,$C192=0),\"\",IF(ISERROR(MATCH(\"*\"&#REF!&\"*\",_xlfn.SINGLE(ProdLabelSec),0)),0,TRUE))","v":""},{"$f":"IF(AND($B192=0,$C192=0),\"\",IF(ISERROR(MATCH(\"*\"&#REF!&\"*\",_xlfn.SINGLE(ProdLabelSec),0)),0,TRUE))","v":""},{"$f":"IF(AND($B192=0,$C192=0),\"\",IF(ISERROR(MATCH(\"*\"&#REF!&\"*\",_xlfn.SINGLE(ProdLabelSec),0)),0,TRUE))","v":""},{"$f":"IF(AND($B192=0,$C192=0),\"\",IF(ISERROR(MATCH(\"*\"&#REF!&\"*\",_xlfn.SINGLE(ProdLabelSec),0)),0,TRUE))","v":""},{"$f":"IF(AND($B192=0,$C192=0),\"\",IF(ISERROR(MATCH(\"*\"&#REF!&\"*\",_xlfn.SINGLE(ProdLabelSec),0)),0,TRUE))","v":""},{"$f":"IF(AND($B192=0,$C192=0),\"\",IF(ISERROR(MATCH(\"*\"&#REF!&\"*\",_xlfn.SINGLE(ProdLabelSec),0)),0,TRUE))","v":""},{"$f":"IF(AND($B192=0,$C192=0),\"\",IF(ISERROR(MATCH(\"*\"&#REF!&\"*\",_xlfn.SINGLE(ProdLabelSec),0)),0,TRUE))","v":""},{"$f":"IF(AND($B192=0,$C192=0),\"\",IF(ISERROR(MATCH(\"*\"&#REF!&\"*\",_xlfn.SINGLE(ProdLabelSec),0)),0,TRUE))","v":""}]
[null,null,null,null,null,null,null,null,null,null,null,null,null,null,null,null,null,null,null,null,null,null,null,null,null,null,null,null,null,null,null,null,null,null,null,null,null,null,null,null,null,null,null,null,null,null,null,null,null,null,null,null,null,null,null,null,null,null,null,null,null,null,null,null,null,null,null,null,null,null,null,null,null,null,null,null,null,null,null,null,{"$f":"IF(AND($B193=0,$C193=0),\"\",IF(AND(ISERROR(MATCH(\"*\"&#REF!&\"*\",_xlfn.SINGLE(ProdLabelSec),0)),OR(ISERROR(MATCH(\"*\"&\"oeko\"&\"*\",_xlfn.SINGLE(ProdLabelSec),0)),AND(ISERROR(MATCH(\"*\"&\"oeko\"&\"*\",_xlfn.SINGLE(ProdLabelSec),0))=FALSE,CA193<>0,CB193<>0))),0,TRUE))","v":""},{"$f":"IF(AND($B193=0,$C193=0),\"\",IF(ISERROR(MATCH(\"*\"&#REF!&\"*\",_xlfn.SINGLE(ProdLabelSec),0)),0,TRUE))","v":""},{"$f":"IF(AND($B193=0,$C193=0),\"\",IF(ISERROR(MATCH(\"*\"&#REF!&\"*\",_xlfn.SINGLE(ProdLabelSec),0)),0,TRUE))","v":""},{"$f":"IF(AND($B193=0,$C193=0),\"\",IF(ISERROR(MATCH(\"*\"&#REF!&\"*\",_xlfn.SINGLE(ProdLabelSec),0)),0,TRUE))","v":""},{"$f":"IF(AND($B193=0,$C193=0),\"\",IF(ISERROR(MATCH(\"*\"&#REF!&\"*\",_xlfn.SINGLE(ProdLabelSec),0)),0,TRUE))","v":""},{"$f":"IF(AND($B193=0,$C193=0),\"\",IF(ISERROR(MATCH(\"*\"&#REF!&\"*\",_xlfn.SINGLE(ProdLabelSec),0)),0,TRUE))","v":""},{"$f":"IF(AND($B193=0,$C193=0),\"\",IF(ISERROR(MATCH(\"*\"&#REF!&\"*\",_xlfn.SINGLE(ProdLabelSec),0)),0,TRUE))","v":""},{"$f":"IF(AND($B193=0,$C193=0),\"\",IF(ISERROR(MATCH(\"*\"&#REF!&\"*\",_xlfn.SINGLE(ProdLabelSec),0)),0,TRUE))","v":""},{"$f":"IF(AND($B193=0,$C193=0),\"\",IF(ISERROR(MATCH(\"*\"&#REF!&\"*\",_xlfn.SINGLE(ProdLabelSec),0)),0,TRUE))","v":""},{"$f":"IF(AND($B193=0,$C193=0),\"\",IF(ISERROR(MATCH(\"*\"&#REF!&\"*\",_xlfn.SINGLE(ProdLabelSec),0)),0,TRUE))","v":""},{"$f":"IF(AND($B193=0,$C193=0),\"\",IF(ISERROR(MATCH(\"*\"&#REF!&\"*\",_xlfn.SINGLE(ProdLabelSec),0)),0,TRUE))","v":""},{"$f":"IF(AND($B193=0,$C193=0),\"\",IF(ISERROR(MATCH(\"*\"&#REF!&\"*\",_xlfn.SINGLE(ProdLabelSec),0)),0,TRUE))","v":""},{"$f":"IF(AND($B193=0,$C193=0),\"\",IF(ISERROR(MATCH(\"*\"&#REF!&\"*\",_xlfn.SINGLE(ProdLabelSec),0)),0,TRUE))","v":""}]
[null,null,null,null,null,null,null,null,null,null,null,null,null,null,null,null,null,null,null,null,null,null,null,null,null,null,null,null,null,null,null,null,null,null,null,null,null,null,null,null,null,null,null,null,null,null,null,null,null,null,null,null,null,null,null,null,null,null,null,null,null,null,null,null,null,null,null,null,null,null,null,null,null,null,null,null,null,null,null,null,{"$f":"IF(AND($B194=0,$C194=0),\"\",IF(AND(ISERROR(MATCH(\"*\"&#REF!&\"*\",_xlfn.SINGLE(ProdLabelSec),0)),OR(ISERROR(MATCH(\"*\"&\"oeko\"&\"*\",_xlfn.SINGLE(ProdLabelSec),0)),AND(ISERROR(MATCH(\"*\"&\"oeko\"&\"*\",_xlfn.SINGLE(ProdLabelSec),0))=FALSE,CA194<>0,CB194<>0))),0,TRUE))","v":""},{"$f":"IF(AND($B194=0,$C194=0),\"\",IF(ISERROR(MATCH(\"*\"&#REF!&\"*\",_xlfn.SINGLE(ProdLabelSec),0)),0,TRUE))","v":""},{"$f":"IF(AND($B194=0,$C194=0),\"\",IF(ISERROR(MATCH(\"*\"&#REF!&\"*\",_xlfn.SINGLE(ProdLabelSec),0)),0,TRUE))","v":""},{"$f":"IF(AND($B194=0,$C194=0),\"\",IF(ISERROR(MATCH(\"*\"&#REF!&\"*\",_xlfn.SINGLE(ProdLabelSec),0)),0,TRUE))","v":""},{"$f":"IF(AND($B194=0,$C194=0),\"\",IF(ISERROR(MATCH(\"*\"&#REF!&\"*\",_xlfn.SINGLE(ProdLabelSec),0)),0,TRUE))","v":""},{"$f":"IF(AND($B194=0,$C194=0),\"\",IF(ISERROR(MATCH(\"*\"&#REF!&\"*\",_xlfn.SINGLE(ProdLabelSec),0)),0,TRUE))","v":""},{"$f":"IF(AND($B194=0,$C194=0),\"\",IF(ISERROR(MATCH(\"*\"&#REF!&\"*\",_xlfn.SINGLE(ProdLabelSec),0)),0,TRUE))","v":""},{"$f":"IF(AND($B194=0,$C194=0),\"\",IF(ISERROR(MATCH(\"*\"&#REF!&\"*\",_xlfn.SINGLE(ProdLabelSec),0)),0,TRUE))","v":""},{"$f":"IF(AND($B194=0,$C194=0),\"\",IF(ISERROR(MATCH(\"*\"&#REF!&\"*\",_xlfn.SINGLE(ProdLabelSec),0)),0,TRUE))","v":""},{"$f":"IF(AND($B194=0,$C194=0),\"\",IF(ISERROR(MATCH(\"*\"&#REF!&\"*\",_xlfn.SINGLE(ProdLabelSec),0)),0,TRUE))","v":""},{"$f":"IF(AND($B194=0,$C194=0),\"\",IF(ISERROR(MATCH(\"*\"&#REF!&\"*\",_xlfn.SINGLE(ProdLabelSec),0)),0,TRUE))","v":""},{"$f":"IF(AND($B194=0,$C194=0),\"\",IF(ISERROR(MATCH(\"*\"&#REF!&\"*\",_xlfn.SINGLE(ProdLabelSec),0)),0,TRUE))","v":""},{"$f":"IF(AND($B194=0,$C194=0),\"\",IF(ISERROR(MATCH(\"*\"&#REF!&\"*\",_xlfn.SINGLE(ProdLabelSec),0)),0,TRUE))","v":""}]
[null,null,null,null,null,null,null,null,null,null,null,null,null,null,null,null,null,null,null,null,null,null,null,null,null,null,null,null,null,null,null,null,null,null,null,null,null,null,null,null,null,null,null,null,null,null,null,null,null,null,null,null,null,null,null,null,null,null,null,null,null,null,null,null,null,null,null,null,null,null,null,null,null,null,null,null,null,null,null,null,{"$f":"IF(AND($B195=0,$C195=0),\"\",IF(AND(ISERROR(MATCH(\"*\"&#REF!&\"*\",_xlfn.SINGLE(ProdLabelSec),0)),OR(ISERROR(MATCH(\"*\"&\"oeko\"&\"*\",_xlfn.SINGLE(ProdLabelSec),0)),AND(ISERROR(MATCH(\"*\"&\"oeko\"&\"*\",_xlfn.SINGLE(ProdLabelSec),0))=FALSE,CA195<>0,CB195<>0))),0,TRUE))","v":""},{"$f":"IF(AND($B195=0,$C195=0),\"\",IF(ISERROR(MATCH(\"*\"&#REF!&\"*\",_xlfn.SINGLE(ProdLabelSec),0)),0,TRUE))","v":""},{"$f":"IF(AND($B195=0,$C195=0),\"\",IF(ISERROR(MATCH(\"*\"&#REF!&\"*\",_xlfn.SINGLE(ProdLabelSec),0)),0,TRUE))","v":""},{"$f":"IF(AND($B195=0,$C195=0),\"\",IF(ISERROR(MATCH(\"*\"&#REF!&\"*\",_xlfn.SINGLE(ProdLabelSec),0)),0,TRUE))","v":""},{"$f":"IF(AND($B195=0,$C195=0),\"\",IF(ISERROR(MATCH(\"*\"&#REF!&\"*\",_xlfn.SINGLE(ProdLabelSec),0)),0,TRUE))","v":""},{"$f":"IF(AND($B195=0,$C195=0),\"\",IF(ISERROR(MATCH(\"*\"&#REF!&\"*\",_xlfn.SINGLE(ProdLabelSec),0)),0,TRUE))","v":""},{"$f":"IF(AND($B195=0,$C195=0),\"\",IF(ISERROR(MATCH(\"*\"&#REF!&\"*\",_xlfn.SINGLE(ProdLabelSec),0)),0,TRUE))","v":""},{"$f":"IF(AND($B195=0,$C195=0),\"\",IF(ISERROR(MATCH(\"*\"&#REF!&\"*\",_xlfn.SINGLE(ProdLabelSec),0)),0,TRUE))","v":""},{"$f":"IF(AND($B195=0,$C195=0),\"\",IF(ISERROR(MATCH(\"*\"&#REF!&\"*\",_xlfn.SINGLE(ProdLabelSec),0)),0,TRUE))","v":""},{"$f":"IF(AND($B195=0,$C195=0),\"\",IF(ISERROR(MATCH(\"*\"&#REF!&\"*\",_xlfn.SINGLE(ProdLabelSec),0)),0,TRUE))","v":""},{"$f":"IF(AND($B195=0,$C195=0),\"\",IF(ISERROR(MATCH(\"*\"&#REF!&\"*\",_xlfn.SINGLE(ProdLabelSec),0)),0,TRUE))","v":""},{"$f":"IF(AND($B195=0,$C195=0),\"\",IF(ISERROR(MATCH(\"*\"&#REF!&\"*\",_xlfn.SINGLE(ProdLabelSec),0)),0,TRUE))","v":""},{"$f":"IF(AND($B195=0,$C195=0),\"\",IF(ISERROR(MATCH(\"*\"&#REF!&\"*\",_xlfn.SINGLE(ProdLabelSec),0)),0,TRUE))","v":""}]
[null,null,null,null,null,null,null,null,null,null,null,null,null,null,null,null,null,null,null,null,null,null,null,null,null,null,null,null,null,null,null,null,null,null,null,null,null,null,null,null,null,null,null,null,null,null,null,null,null,null,null,null,null,null,null,null,null,null,null,null,null,null,null,null,null,null,null,null,null,null,null,null,null,null,null,null,null,null,null,null,{"$f":"IF(AND($B196=0,$C196=0),\"\",IF(AND(ISERROR(MATCH(\"*\"&#REF!&\"*\",_xlfn.SINGLE(ProdLabelSec),0)),OR(ISERROR(MATCH(\"*\"&\"oeko\"&\"*\",_xlfn.SINGLE(ProdLabelSec),0)),AND(ISERROR(MATCH(\"*\"&\"oeko\"&\"*\",_xlfn.SINGLE(ProdLabelSec),0))=FALSE,CA196<>0,CB196<>0))),0,TRUE))","v":""},{"$f":"IF(AND($B196=0,$C196=0),\"\",IF(ISERROR(MATCH(\"*\"&#REF!&\"*\",_xlfn.SINGLE(ProdLabelSec),0)),0,TRUE))","v":""},{"$f":"IF(AND($B196=0,$C196=0),\"\",IF(ISERROR(MATCH(\"*\"&#REF!&\"*\",_xlfn.SINGLE(ProdLabelSec),0)),0,TRUE))","v":""},{"$f":"IF(AND($B196=0,$C196=0),\"\",IF(ISERROR(MATCH(\"*\"&#REF!&\"*\",_xlfn.SINGLE(ProdLabelSec),0)),0,TRUE))","v":""},{"$f":"IF(AND($B196=0,$C196=0),\"\",IF(ISERROR(MATCH(\"*\"&#REF!&\"*\",_xlfn.SINGLE(ProdLabelSec),0)),0,TRUE))","v":""},{"$f":"IF(AND($B196=0,$C196=0),\"\",IF(ISERROR(MATCH(\"*\"&#REF!&\"*\",_xlfn.SINGLE(ProdLabelSec),0)),0,TRUE))","v":""},{"$f":"IF(AND($B196=0,$C196=0),\"\",IF(ISERROR(MATCH(\"*\"&#REF!&\"*\",_xlfn.SINGLE(ProdLabelSec),0)),0,TRUE))","v":""},{"$f":"IF(AND($B196=0,$C196=0),\"\",IF(ISERROR(MATCH(\"*\"&#REF!&\"*\",_xlfn.SINGLE(ProdLabelSec),0)),0,TRUE))","v":""},{"$f":"IF(AND($B196=0,$C196=0),\"\",IF(ISERROR(MATCH(\"*\"&#REF!&\"*\",_xlfn.SINGLE(ProdLabelSec),0)),0,TRUE))","v":""},{"$f":"IF(AND($B196=0,$C196=0),\"\",IF(ISERROR(MATCH(\"*\"&#REF!&\"*\",_xlfn.SINGLE(ProdLabelSec),0)),0,TRUE))","v":""},{"$f":"IF(AND($B196=0,$C196=0),\"\",IF(ISERROR(MATCH(\"*\"&#REF!&\"*\",_xlfn.SINGLE(ProdLabelSec),0)),0,TRUE))","v":""},{"$f":"IF(AND($B196=0,$C196=0),\"\",IF(ISERROR(MATCH(\"*\"&#REF!&\"*\",_xlfn.SINGLE(ProdLabelSec),0)),0,TRUE))","v":""},{"$f":"IF(AND($B196=0,$C196=0),\"\",IF(ISERROR(MATCH(\"*\"&#REF!&\"*\",_xlfn.SINGLE(ProdLabelSec),0)),0,TRUE))","v":""}]
[null,null,null,null,null,null,null,null,null,null,null,null,null,null,null,null,null,null,null,null,null,null,null,null,null,null,null,null,null,null,null,null,null,null,null,null,null,null,null,null,null,null,null,null,null,null,null,null,null,null,null,null,null,null,null,null,null,null,null,null,null,null,null,null,null,null,null,null,null,null,null,null,null,null,null,null,null,null,null,null,{"$f":"IF(AND($B197=0,$C197=0),\"\",IF(AND(ISERROR(MATCH(\"*\"&#REF!&\"*\",_xlfn.SINGLE(ProdLabelSec),0)),OR(ISERROR(MATCH(\"*\"&\"oeko\"&\"*\",_xlfn.SINGLE(ProdLabelSec),0)),AND(ISERROR(MATCH(\"*\"&\"oeko\"&\"*\",_xlfn.SINGLE(ProdLabelSec),0))=FALSE,CA197<>0,CB197<>0))),0,TRUE))","v":""},{"$f":"IF(AND($B197=0,$C197=0),\"\",IF(ISERROR(MATCH(\"*\"&#REF!&\"*\",_xlfn.SINGLE(ProdLabelSec),0)),0,TRUE))","v":""},{"$f":"IF(AND($B197=0,$C197=0),\"\",IF(ISERROR(MATCH(\"*\"&#REF!&\"*\",_xlfn.SINGLE(ProdLabelSec),0)),0,TRUE))","v":""},{"$f":"IF(AND($B197=0,$C197=0),\"\",IF(ISERROR(MATCH(\"*\"&#REF!&\"*\",_xlfn.SINGLE(ProdLabelSec),0)),0,TRUE))","v":""},{"$f":"IF(AND($B197=0,$C197=0),\"\",IF(ISERROR(MATCH(\"*\"&#REF!&\"*\",_xlfn.SINGLE(ProdLabelSec),0)),0,TRUE))","v":""},{"$f":"IF(AND($B197=0,$C197=0),\"\",IF(ISERROR(MATCH(\"*\"&#REF!&\"*\",_xlfn.SINGLE(ProdLabelSec),0)),0,TRUE))","v":""},{"$f":"IF(AND($B197=0,$C197=0),\"\",IF(ISERROR(MATCH(\"*\"&#REF!&\"*\",_xlfn.SINGLE(ProdLabelSec),0)),0,TRUE))","v":""},{"$f":"IF(AND($B197=0,$C197=0),\"\",IF(ISERROR(MATCH(\"*\"&#REF!&\"*\",_xlfn.SINGLE(ProdLabelSec),0)),0,TRUE))","v":""},{"$f":"IF(AND($B197=0,$C197=0),\"\",IF(ISERROR(MATCH(\"*\"&#REF!&\"*\",_xlfn.SINGLE(ProdLabelSec),0)),0,TRUE))","v":""},{"$f":"IF(AND($B197=0,$C197=0),\"\",IF(ISERROR(MATCH(\"*\"&#REF!&\"*\",_xlfn.SINGLE(ProdLabelSec),0)),0,TRUE))","v":""},{"$f":"IF(AND($B197=0,$C197=0),\"\",IF(ISERROR(MATCH(\"*\"&#REF!&\"*\",_xlfn.SINGLE(ProdLabelSec),0)),0,TRUE))","v":""},{"$f":"IF(AND($B197=0,$C197=0),\"\",IF(ISERROR(MATCH(\"*\"&#REF!&\"*\",_xlfn.SINGLE(ProdLabelSec),0)),0,TRUE))","v":""},{"$f":"IF(AND($B197=0,$C197=0),\"\",IF(ISERROR(MATCH(\"*\"&#REF!&\"*\",_xlfn.SINGLE(ProdLabelSec),0)),0,TRUE))","v":""}]
[null,null,null,null,null,null,null,null,null,null,null,null,null,null,null,null,null,null,null,null,null,null,null,null,null,null,null,null,null,null,null,null,null,null,null,null,null,null,null,null,null,null,null,null,null,null,null,null,null,null,null,null,null,null,null,null,null,null,null,null,null,null,null,null,null,null,null,null,null,null,null,null,null,null,null,null,null,null,null,null,{"$f":"IF(AND($B198=0,$C198=0),\"\",IF(AND(ISERROR(MATCH(\"*\"&#REF!&\"*\",_xlfn.SINGLE(ProdLabelSec),0)),OR(ISERROR(MATCH(\"*\"&\"oeko\"&\"*\",_xlfn.SINGLE(ProdLabelSec),0)),AND(ISERROR(MATCH(\"*\"&\"oeko\"&\"*\",_xlfn.SINGLE(ProdLabelSec),0))=FALSE,CA198<>0,CB198<>0))),0,TRUE))","v":""},{"$f":"IF(AND($B198=0,$C198=0),\"\",IF(ISERROR(MATCH(\"*\"&#REF!&\"*\",_xlfn.SINGLE(ProdLabelSec),0)),0,TRUE))","v":""},{"$f":"IF(AND($B198=0,$C198=0),\"\",IF(ISERROR(MATCH(\"*\"&#REF!&\"*\",_xlfn.SINGLE(ProdLabelSec),0)),0,TRUE))","v":""},{"$f":"IF(AND($B198=0,$C198=0),\"\",IF(ISERROR(MATCH(\"*\"&#REF!&\"*\",_xlfn.SINGLE(ProdLabelSec),0)),0,TRUE))","v":""},{"$f":"IF(AND($B198=0,$C198=0),\"\",IF(ISERROR(MATCH(\"*\"&#REF!&\"*\",_xlfn.SINGLE(ProdLabelSec),0)),0,TRUE))","v":""},{"$f":"IF(AND($B198=0,$C198=0),\"\",IF(ISERROR(MATCH(\"*\"&#REF!&\"*\",_xlfn.SINGLE(ProdLabelSec),0)),0,TRUE))","v":""},{"$f":"IF(AND($B198=0,$C198=0),\"\",IF(ISERROR(MATCH(\"*\"&#REF!&\"*\",_xlfn.SINGLE(ProdLabelSec),0)),0,TRUE))","v":""},{"$f":"IF(AND($B198=0,$C198=0),\"\",IF(ISERROR(MATCH(\"*\"&#REF!&\"*\",_xlfn.SINGLE(ProdLabelSec),0)),0,TRUE))","v":""},{"$f":"IF(AND($B198=0,$C198=0),\"\",IF(ISERROR(MATCH(\"*\"&#REF!&\"*\",_xlfn.SINGLE(ProdLabelSec),0)),0,TRUE))","v":""},{"$f":"IF(AND($B198=0,$C198=0),\"\",IF(ISERROR(MATCH(\"*\"&#REF!&\"*\",_xlfn.SINGLE(ProdLabelSec),0)),0,TRUE))","v":""},{"$f":"IF(AND($B198=0,$C198=0),\"\",IF(ISERROR(MATCH(\"*\"&#REF!&\"*\",_xlfn.SINGLE(ProdLabelSec),0)),0,TRUE))","v":""},{"$f":"IF(AND($B198=0,$C198=0),\"\",IF(ISERROR(MATCH(\"*\"&#REF!&\"*\",_xlfn.SINGLE(ProdLabelSec),0)),0,TRUE))","v":""},{"$f":"IF(AND($B198=0,$C198=0),\"\",IF(ISERROR(MATCH(\"*\"&#REF!&\"*\",_xlfn.SINGLE(ProdLabelSec),0)),0,TRUE))","v":""}]
[null,null,null,null,null,null,null,null,null,null,null,null,null,null,null,null,null,null,null,null,null,null,null,null,null,null,null,null,null,null,null,null,null,null,null,null,null,null,null,null,null,null,null,null,null,null,null,null,null,null,null,null,null,null,null,null,null,null,null,null,null,null,null,null,null,null,null,null,null,null,null,null,null,null,null,null,null,null,null,null,{"$f":"IF(AND($B199=0,$C199=0),\"\",IF(AND(ISERROR(MATCH(\"*\"&#REF!&\"*\",_xlfn.SINGLE(ProdLabelSec),0)),OR(ISERROR(MATCH(\"*\"&\"oeko\"&\"*\",_xlfn.SINGLE(ProdLabelSec),0)),AND(ISERROR(MATCH(\"*\"&\"oeko\"&\"*\",_xlfn.SINGLE(ProdLabelSec),0))=FALSE,CA199<>0,CB199<>0))),0,TRUE))","v":""},{"$f":"IF(AND($B199=0,$C199=0),\"\",IF(ISERROR(MATCH(\"*\"&#REF!&\"*\",_xlfn.SINGLE(ProdLabelSec),0)),0,TRUE))","v":""},{"$f":"IF(AND($B199=0,$C199=0),\"\",IF(ISERROR(MATCH(\"*\"&#REF!&\"*\",_xlfn.SINGLE(ProdLabelSec),0)),0,TRUE))","v":""},{"$f":"IF(AND($B199=0,$C199=0),\"\",IF(ISERROR(MATCH(\"*\"&#REF!&\"*\",_xlfn.SINGLE(ProdLabelSec),0)),0,TRUE))","v":""},{"$f":"IF(AND($B199=0,$C199=0),\"\",IF(ISERROR(MATCH(\"*\"&#REF!&\"*\",_xlfn.SINGLE(ProdLabelSec),0)),0,TRUE))","v":""},{"$f":"IF(AND($B199=0,$C199=0),\"\",IF(ISERROR(MATCH(\"*\"&#REF!&\"*\",_xlfn.SINGLE(ProdLabelSec),0)),0,TRUE))","v":""},{"$f":"IF(AND($B199=0,$C199=0),\"\",IF(ISERROR(MATCH(\"*\"&#REF!&\"*\",_xlfn.SINGLE(ProdLabelSec),0)),0,TRUE))","v":""},{"$f":"IF(AND($B199=0,$C199=0),\"\",IF(ISERROR(MATCH(\"*\"&#REF!&\"*\",_xlfn.SINGLE(ProdLabelSec),0)),0,TRUE))","v":""},{"$f":"IF(AND($B199=0,$C199=0),\"\",IF(ISERROR(MATCH(\"*\"&#REF!&\"*\",_xlfn.SINGLE(ProdLabelSec),0)),0,TRUE))","v":""},{"$f":"IF(AND($B199=0,$C199=0),\"\",IF(ISERROR(MATCH(\"*\"&#REF!&\"*\",_xlfn.SINGLE(ProdLabelSec),0)),0,TRUE))","v":""},{"$f":"IF(AND($B199=0,$C199=0),\"\",IF(ISERROR(MATCH(\"*\"&#REF!&\"*\",_xlfn.SINGLE(ProdLabelSec),0)),0,TRUE))","v":""},{"$f":"IF(AND($B199=0,$C199=0),\"\",IF(ISERROR(MATCH(\"*\"&#REF!&\"*\",_xlfn.SINGLE(ProdLabelSec),0)),0,TRUE))","v":""},{"$f":"IF(AND($B199=0,$C199=0),\"\",IF(ISERROR(MATCH(\"*\"&#REF!&\"*\",_xlfn.SINGLE(ProdLabelSec),0)),0,TRUE))","v":""}]

{"sheet":"PROD_FACT","index":7,"n_rows":1,"n_cols":4,"rows_kept":1,"cut":false,"hidden":true,"merged":[]}
["Product Key","Supplier ID","Step","Percentage"]

{"sheet":"LABELS","index":8,"n_rows":1,"n_cols":3,"rows_kept":1,"cut":false,"hidden":true,"merged":[]}
["Product key","Label code","Part of the garment"]

{"sheet":"CompileCB","index":9,"n_rows":0,"n_cols":0,"rows_kept":0,"cut":false,"hidden":true,"merged":[]}

{"sheet":"UniciteCB","index":10,"n_rows":1000,"n_cols":3,"rows_kept":1000,"cut":false,"hidden":true,"merged":[]}
["Codes barres compilés","Codes barres","Unicité"]
[null,null,{"$f":"COUNTIF($A:$A,\"*\"&$B2&\"*\")+COUNTIF($A:$A,$B2)","v":1}]
[null,null,{"$f":"COUNTIF($A:$A,\"*\"&$B3&\"*\")+COUNTIF($A:$A,$B3)","v":1}]
[null,null,1]
[null,null,1]
[null,null,1]
[null,null,1]
[null,null,1]
[null,null,1]
[null,null,1]
[null,null,1]
[null,null,1]
[null,null,1]
[null,null,1]
[null,null,1]
[null,null,1]
[null,null,1]
[null,null,1]
[null,null,1]
[null,null,1]
[null,null,1]
[null,null,1]
[null,null,1]
[null,null,1]
[null,null,1]
[null,null,1]
[null,null,1]
[null,null,1]
[null,null,1]
[null,null,1]
[null,null,1]
[null,null,1]
[null,null,1]
[null,null,1]
[null,null,1]
[null,null,1]
[null,null,1]
[null,null,1]
[null,null,1]
[null,null,1]
[null,null,1]
[null,null,1]
[null,null,1]
[null,null,1]
[null,null,1]
[null,null,1]
[null,null,1]
[null,null,1]
[null,null,1]
[null,null,1]
[null,null,1]
[null,null,1]
[null,null,1]
[null,null,1]
[null,null,1]
[null,null,1]
[null,null,1]
[null,null,1]
[null,null,1]
[null,null,1]
[null,null,1]
[null,null,1]
[null,null,1]
[null,null,1]
[null,null,1]
[null,null,1]
[null,null,{"$f":"COUNTIF($A:$A,\"*\"&$B67&\"*\")+COUNTIF($A:$A,$B67)","v":1}]
[null,null,1]
[null,null,1]
[null,null,1]
[null,null,1]
[null,null,1]
[null,null,1]
[null,null,1]
[null,null,1]
[null,null,1]
[null,null,1]
[null,null,1]
[null,null,1]
[null,null,1]
[null,null,1]
[null,null,1]
[null,null,1]
[null,null,1]
[null,null,1]
[null,null,1]
[null,null,1]
[null,null,1]
[null,null,1]
[null,null,1]
[null,null,1]
[null,null,1]
[null,null,1]
[null,null,1]
[null,null,1]
[null,null,1]
[null,null,1]
[null,null,1]
[null,null,1]
[null,null,1]
[null,null,1]
[null,null,1]
[null,null,1]
[null,null,1]
[null,null,1]
[null,null,1]
[null,null,1]
[null,null,1]
[null,null,1]
[null,null,1]
[null,null,1]
[null,null,1]
[null,null,1]
[null,null,1]
[null,null,1]
[null,null,1]
[null,null,1]
[null,null,1]
[null,null,1]
[null,null,1]
[null,null,1]
[null,null,1]
[null,null,1]
[null,null,1]
[null,null,1]
[null,null,1]
[null,null,1]
[null,null,1]
[null,null,1]
[null,null,1]
[null,null,{"$f":"COUNTIF($A:$A,\"*\"&$B131&\"*\")+COUNTIF($A:$A,$B131)","v":1}]
[null,null,1]
[null,null,1]
[null,null,1]
[null,null,1]
[null,null,1]
[null,null,1]
[null,null,1]
[null,null,1]
[null,null,1]
[null,null,1]
[null,null,1]
[null,null,1]
[null,null,1]
[null,null,1]
[null,null,1]
[null,null,1]
[null,null,1]
[null,null,1]
[null,null,1]
[null,null,1]
[null,null,1]
[null,null,1]
[null,null,1]
[null,null,1]
[null,null,1]
[null,null,1]
[null,null,1]
[null,null,1]
[null,null,1]
[null,null,1]
[null,null,1]
[null,null,1]
[null,null,1]
[null,null,1]
[null,null,1]
[null,null,1]
[null,null,1]
[null,null,1]
[null,null,1]
[null,null,1]
[null,null,1]
[null,null,1]
[null,null,1]
[null,null,1]
[null,null,1]
[null,null,1]
[null,null,1]
[null,null,1]
[null,null,1]
[null,null,1]
[null,null,1]
[null,null,1]
[null,null,1]
[null,null,1]
[null,null,1]
[null,null,1]
[null,null,1]
[null,null,1]
[null,null,1]
[null,null,1]
[null,null,1]
[null,null,1]
[null,null,1]
[null,null,{"$f":"COUNTIF($A:$A,\"*\"&$B195&\"*\")+COUNTIF($A:$A,$B195)","v":1}]
[null,null,1]
[null,null,1]
[null,null,1]
[null,null,1]
[null,null,1]
[null,null,1]
[null,null,1]
[null,null,1]
[null,null,1]
[null,null,1]
[null,null,1]
[null,null,1]
[null,null,1]
[null,null,1]
[null,null,1]
[null,null,1]
[null,null,1]
[null,null,1]
[null,null,1]
[null,null,1]
[null,null,1]
[null,null,1]
[null,null,1]
[null,null,1]
[null,null,1]
[null,null,1]
[null,null,1]
[null,null,1]
[null,null,1]
[null,null,1]
[null,null,1]
[null,null,1]
[null,null,1]
[null,null,1]
[null,null,1]
[null,null,1]
[null,null,1]
[null,null,1]
[null,null,1]
[null,null,1]
[null,null,1]
[null,null,1]
[null,null,1]
[null,null,1]
[null,null,1]
[null,null,1]
[null,null,1]
[null,null,1]
[null,null,1]
[null,null,1]
[null,null,1]
[null,null,1]
[null,null,1]
[null,null,1]
[null,null,1]
[null,null,1]
[null,null,1]
[null,null,1]
[null,null,1]
[null,null,1]
[null,null,1]
[null,null,1]
[null,null,1]
[null,null,{"$f":"COUNTIF($A:$A,\"*\"&$B259&\"*\")+COUNTIF($A:$A,$B259)","v":1}]
[null,null,1]
[null,null,1]
[null,null,1]
[null,null,1]
[null,null,1]
[null,null,1]
[null,null,1]
[null,null,1]
[null,null,1]
[null,null,1]
[null,null,1]
[null,null,1]
[null,null,1]
[null,null,1]
[null,null,1]
[null,null,1]
[null,null,1]
[null,null,1]
[null,null,1]
[null,null,1]
[null,null,1]
[null,null,1]
[null,null,1]
[null,null,1]
[null,null,1]
[null,null,1]
[null,null,1]
[null,null,1]
[null,null,1]
[null,null,1]
[null,null,1]
[null,null,1]
[null,null,1]
[null,null,1]
[null,null,1]
[null,null,1]
[null,null,1]
[null,null,1]
[null,null,1]
[null,null,1]
[null,null,1]
[null,null,1]
[null,null,1]
[null,null,1]
[null,null,1]
[null,null,1]
[null,null,1]
[null,null,1]
[null,null,1]
[null,null,1]
[null,null,1]
[null,null,1]
[null,null,1]
[null,null,1]
[null,null,1]
[null,null,1]
[null,null,1]
[null,null,1]
[null,null,1]
[null,null,1]
[null,null,1]
[null,null,1]
[null,null,1]
[null,null,{"$f":"COUNTIF($A:$A,\"*\"&$B323&\"*\")+COUNTIF($A:$A,$B323)","v":1}]
[null,null,1]
[null,null,1]
[null,null,1]
[null,null,1]
[null,null,1]
[null,null,1]
[null,null,1]
[null,null,1]
[null,null,1]
[null,null,1]
[null,null,1]
[null,null,1]
[null,null,1]
[null,null,1]
[null,null,1]
[null,null,1]
[null,null,1]
[null,null,1]
[null,null,1]
[null,null,1]
[null,null,1]
[null,null,1]
[null,null,1]
[null,null,1]
[null,null,1]
[null,null,1]
[null,null,1]
[null,null,1]
[null,null,1]
[null,null,1]
[null,null,1]
[null,null,1]
[null,null,1]
[null,null,1]
[null,null,1]
[null,null,1]
[null,null,1]
[null,null,1]
[null,null,1]
[null,null,1]
[null,null,1]
[null,null,1]
[null,null,1]
[null,null,1]
[null,null,1]
[null,null,1]
[null,null,1]
[null,null,1]
[null,null,1]
[null,null,1]
[null,null,1]
[null,null,1]
[null,null,1]
[null,null,1]
[null,null,1]
[null,null,1]
[null,null,1]
[null,null,1]
[null,null,1]
[null,null,1]
[null,null,1]
[null,null,1]
[null,null,1]
[null,null,{"$f":"COUNTIF($A:$A,\"*\"&$B387&\"*\")+COUNTIF($A:$A,$B387)","v":1}]
[null,null,1]
[null,null,1]
[null,null,1]
[null,null,1]
[null,null,1]
[null,null,1]
[null,null,1]
[null,null,1]
[null,null,1]
[null,null,1]
[null,null,1]
[null,null,1]
[null,null,1]
[null,null,1]
[null,null,1]
[null,null,1]
[null,null,1]
[null,null,1]
[null,null,1]
[null,null,1]
[null,null,1]
[null,null,1]
[null,null,1]
[null,null,1]
[null,null,1]
[null,null,1]
[null,null,1]
[null,null,1]
[null,null,1]
[null,null,1]
[null,null,1]
[null,null,1]
[null,null,1]
[null,null,1]
[null,null,1]
[null,null,1]
[null,null,1]
[null,null,1]
[null,null,1]
[null,null,1]
[null,null,1]
[null,null,1]
[null,null,1]
[null,null,1]
[null,null,1]
[null,null,1]
[null,null,1]
[null,null,1]
[null,null,1]
[null,null,1]
[null,null,1]
[null,null,1]
[null,null,1]
[null,null,1]
[null,null,1]
[null,null,1]
[null,null,1]
[null,null,1]
[null,null,1]
[null,null,1]
[null,null,1]
[null,null,1]
[null,null,1]
[null,null,{"$f":"COUNTIF($A:$A,\"*\"&$B451&\"*\")+COUNTIF($A:$A,$B451)","v":1}]
[null,null,1]
[null,null,1]
[null,null,1]
[null,null,1]
[null,null,1]
[null,null,1]
[null,null,1]
[null,null,1]
[null,null,1]
[null,null,1]
[null,null,1]
[null,null,1]
[null,null,1]
[null,null,1]
[null,null,1]
[null,null,1]
[null,null,1]
[null,null,1]
[null,null,1]
[null,null,1]
[null,null,1]
[null,null,1]
[null,null,1]
[null,null,1]
[null,null,1]
[null,null,1]
[null,null,1]
[null,null,1]
[null,null,1]
[null,null,1]
[null,null,1]
[null,null,1]
[null,null,1]
[null,null,1]
[null,null,1]
[null,null,1]
[null,null,1]
[null,null,1]
[null,null,1]
[null,null,1]
[null,null,1]
[null,null,1]
[null,null,1]
[null,null,1]
[null,null,1]
[null,null,1]
[null,null,1]
[null,null,1]
[null,null,1]
[null,null,1]
[null,null,1]
[null,null,1]
[null,null,1]
[null,null,1]
[null,null,1]
[null,null,1]
[null,null,1]
[null,null,1]
[null,null,1]
[null,null,1]
[null,null,1]
[null,null,1]
[null,null,1]
[null,null,{"$f":"COUNTIF($A:$A,\"*\"&$B515&\"*\")+COUNTIF($A:$A,$B515)","v":1}]
[null,null,1]
[null,null,1]
[null,null,1]
[null,null,1]
[null,null,1]
[null,null,1]
[null,null,1]
[null,null,1]
[null,null,1]
[null,null,1]
[null,null,1]
[null,null,1]
[null,null,1]
[null,null,1]
[null,null,1]
[null,null,1]
[null,null,1]
[null,null,1]
[null,null,1]
[null,null,1]
[null,null,1]
[null,null,1]
[null,null,1]
[null,null,1]
[null,null,1]
[null,null,1]
[null,null,1]
[null,null,1]
[null,null,1]
[null,null,1]
[null,null,1]
[null,null,1]
[null,null,1]
[null,null,1]
[null,null,1]
[null,null,1]
[null,null,1]
[null,null,1]
[null,null,1]
[null,null,1]
[null,null,1]
[null,null,1]
[null,null,1]
[null,null,1]
[null,null,1]
[null,null,1]
[null,null,1]
[null,null,1]
[null,null,1]
[null,null,1]
[null,null,1]
[null,null,1]
[null,null,1]
[null,null,1]
[null,null,1]
[null,null,1]
[null,null,1]
[null,null,1]
[null,null,1]
[null,null,1]
[null,null,1]
[null,null,1]
[null,null,1]
[null,null,{"$f":"COUNTIF($A:$A,\"*\"&$B579&\"*\")+COUNTIF($A:$A,$B579)","v":1}]
[null,null,1]
[null,null,1]
[null,null,1]
[null,null,1]
[null,null,1]
[null,null,1]
[null,null,1]
[null,null,1]
[null,null,1]
[null,null,1]
[null,null,1]
[null,null,1]
[null,null,1]
[null,null,1]
[null,null,1]
[null,null,1]
[null,null,1]
[null,null,1]
[null,null,1]
[null,null,1]
[null,null,1]
[null,null,1]
[null,null,1]
[null,null,1]
[null,null,1]
[null,null,1]
[null,null,1]
[null,null,1]
[null,null,1]
[null,null,1]
[null,null,1]
[null,null,1]
[null,null,1]
[null,null,1]
[null,null,1]
[null,null,1]
[null,null,1]
[null,null,1]
[null,null,1]
[null,null,1]
[null,null,1]
[null,null,1]
[null,null,1]
[null,null,1]
[null,null,1]
[null,null,1]
[null,null,1]
[null,null,1]
[null,null,1]
[null,null,1]
[null,null,1]
[null,null,1]
[null,null,1]
[null,null,1]
[null,null,1]
[null,null,1]
[null,null,1]
[null,null,1]
[null,null,1]
[null,null,1]
[null,null,1]
[null,null,1]
[null,null,1]
[null,null,{"$f":"COUNTIF($A:$A,\"*\"&$B643&\"*\")+COUNTIF($A:$A,$B643)","v":1}]
[null,null,1]
[null,null,1]
[null,null,1]
[null,null,1]
[null,null,1]
[null,null,1]
[null,null,1]
[null,null,1]
[null,null,1]
[null,null,1]
[null,null,1]
[null,null,1]
[null,null,1]
[null,null,1]
[null,null,1]
[null,null,1]
[null,null,1]
[null,null,1]
[null,null,1]
[null,null,1]
[null,null,1]
[null,null,1]
[null,null,1]
[null,null,1]
[null,null,1]
[null,null,1]
[null,null,1]
[null,null,1]
[null,null,1]
[null,null,1]
[null,null,1]
[null,null,1]
[null,null,1]
[null,null,1]
[null,null,1]
[null,null,1]
[null,null,1]
[null,null,1]
[null,null,1]
[null,null,1]
[null,null,1]
[null,null,1]
[null,null,1]
[null,null,1]
[null,null,1]
[null,null,1]
[null,null,1]
[null,null,1]
[null,null,1]
[null,null,1]
[null,null,1]
[null,null,1]
[null,null,1]
[null,null,1]
[null,null,1]
[null,null,1]
[null,null,1]
[null,null,1]
[null,null,1]
[null,null,1]
[null,null,1]
[null,null,1]
[null,null,1]
[null,null,{"$f":"COUNTIF($A:$A,\"*\"&$B707&\"*\")+COUNTIF($A:$A,$B707)","v":1}]
[null,null,1]
[null,null,1]
[null,null,1]
[null,null,1]
[null,null,1]
[null,null,1]
[null,null,1]
[null,null,1]
[null,null,1]
[null,null,1]
[null,null,1]
[null,null,1]
[null,null,1]
[null,null,1]
[null,null,1]
[null,null,1]
[null,null,1]
[null,null,1]
[null,null,1]
[null,null,1]
[null,null,1]
[null,null,1]
[null,null,1]
[null,null,1]
[null,null,1]
[null,null,1]
[null,null,1]
[null,null,1]
[null,null,1]
[null,null,1]
[null,null,1]
[null,null,1]
[null,null,1]
[null,null,1]
[null,null,1]
[null,null,1]
[null,null,1]
[null,null,1]
[null,null,1]
[null,null,1]
[null,null,1]
[null,null,1]
[null,null,1]
[null,null,1]
[null,null,1]
[null,null,1]
[null,null,1]
[null,null,1]
[null,null,1]
[null,null,1]
[null,null,1]
[null,null,1]
[null,null,1]
[null,null,1]
[null,null,1]
[null,null,1]
[null,null,1]
[null,null,1]
[null,null,1]
[null,null,1]
[null,null,1]
[null,null,1]
[null,null,1]
[null,null,{"$f":"COUNTIF($A:$A,\"*\"&$B771&\"*\")+COUNTIF($A:$A,$B771)","v":1}]
[null,null,1]
[null,null,1]
[null,null,1]
[null,null,1]
[null,null,1]
[null,null,1]
[null,null,1]
[null,null,1]
[null,null,1]
[null,null,1]
[null,null,1]
[null,null,1]
[null,null,1]
[null,null,1]
[null,null,1]
[null,null,1]
[null,null,1]
[null,null,1]
[null,null,1]
[null,null,1]
[null,null,1]
[null,null,1]
[null,null,1]
[null,null,1]
[null,null,1]
[null,null,1]
[null,null,1]
[null,null,1]
[null,null,1]
[null,null,1]
[null,null,1]
[null,null,1]
[null,null,1]
[null,null,1]
[null,null,1]
[null,null,1]
[null,null,1]
[null,null,1]
[null,null,1]
[null,null,1]
[null,null,1]
[null,null,1]
[null,null,1]
[null,null,1]
[null,null,1]
[null,null,1]
[null,null,1]
[null,null,1]
[null,null,1]
[null,null,1]
[null,null,1]
[null,null,1]
[null,null,1]
[null,null,1]
[null,null,1]
[null,null,1]
[null,null,1]
[null,null,1]
[null,null,1]
[null,null,1]
[null,null,1]
[null,null,1]
[null,null,1]
[null,null,{"$f":"COUNTIF($A:$A,\"*\"&$B835&\"*\")+COUNTIF($A:$A,$B835)","v":1}]
[null,null,1]
[null,null,1]
[null,null,1]
[null,null,1]
[null,null,1]
[null,null,1]
[null,null,1]
[null,null,1]
[null,null,1]
[null,null,1]
[null,null,1]
[null,null,1]
[null,null,1]
[null,null,1]
[null,null,1]
[null,null,1]
[null,null,1]
[null,null,1]
[null,null,1]
[null,null,1]
[null,null,1]
[null,null,1]
[null,null,1]
[null,null,1]
[null,null,1]
[null,null,1]
[null,null,1]
[null,null,1]
[null,null,1]
[null,null,1]
[null,null,1]
[null,null,1]
[null,null,1]
[null,null,1]
[null,null,1]
[null,null,1]
[null,null,1]
[null,null,1]
[null,null,1]
[null,null,1]
[null,null,1]
[null,null,1]
[null,null,1]
[null,null,1]
[null,null,1]
[null,null,1]
[null,null,1]
[null,null,1]
[null,null,1]
[null,null,1]
[null,null,1]
[null,null,1]
[null,null,1]
[null,null,1]
[null,null,1]
[null,null,1]
[null,null,1]
[null,null,1]
[null,null,1]
[null,null,1]
[null,null,1]
[null,null,1]
[null,null,1]
[null,null,{"$f":"COUNTIF($A:$A,\"*\"&$B899&\"*\")+COUNTIF($A:$A,$B899)","v":1}]
[null,null,1]
[null,null,1]
[null,null,1]
[null,null,1]
[null,null,1]
[null,null,1]
[null,null,1]
[null,null,1]
[null,null,1]
[null,null,1]
[null,null,1]
[null,null,1]
[null,null,1]
[null,null,1]
[null,null,1]
[null,null,1]
[null,null,1]
[null,null,1]
[null,null,1]
[null,null,1]
[null,null,1]
[null,null,1]
[null,null,1]
[null,null,1]
[null,null,1]
[null,null,1]
[null,null,1]
[null,null,1]
[null,null,1]
[null,null,1]
[null,null,1]
[null,null,1]
[null,null,1]
[null,null,1]
[null,null,1]
[null,null,1]
[null,null,1]
[null,null,1]
[null,null,1]
[null,null,1]
[null,null,1]
[null,null,1]
[null,null,1]
[null,null,1]
[null,null,1]
[null,null,1]
[null,null,1]
[null,null,1]
[null,null,1]
[null,null,1]
[null,null,1]
[null,null,1]
[null,null,1]
[null,null,1]
[null,null,1]
[null,null,1]
[null,null,1]
[null,null,1]
[null,null,1]
[null,null,1]
[null,null,1]
[null,null,1]
[null,null,1]
[null,null,{"$f":"COUNTIF($A:$A,\"*\"&$B963&\"*\")+COUNTIF($A:$A,$B963)","v":1}]
[null,null,1]
[null,null,1]
[null,null,1]
[null,null,1]
[null,null,1]
[null,null,1]
[null,null,1]
[null,null,1]
[null,null,1]
[null,null,1]
[null,null,1]
[null,null,1]
[null,null,1]
[null,null,1]
[null,null,1]
[null,null,1]
[null,null,1]
[null,null,1]
[null,null,1]
[null,null,1]
[null,null,1]
[null,null,1]
[null,null,1]
[null,null,1]
[null,null,1]
[null,null,1]
[null,null,1]
[null,null,1]
[null,null,1]
[null,null,1]
[null,null,1]
[null,null,1]
[null,null,1]
[null,null,1]
[null,null,1]
[null,null,1]
[null,null,1]

{"sheet":"MatriceTestProd","index":11,"n_rows":1,"n_cols":54,"rows_kept":1,"cut":false,"hidden":true,"merged":[]}
["Id Produit","Product code (EAN)","Product code (EAN)","Target","Category","Product image (URL)","Labels/certif of finished product","Release date","Season concerned","Main part composition","Main part composition","Main part composition","Upcycled (Main part)","Recycled raw materials (Main part)","Labels/certif post finishing steps (Main part)","Second part composition","Second part composition","Upcycled (Second part)","Recycled raw materials (Second part)","Labels/certif post finishing steps (Second part)","Air freight","Sand-blasting techniques","Chrome tanning","Product contains accessories","Natural/Upcycled accessories","Manufacturing 1","Manufacturing 2","Manufacturing3","Manufacturing 4","Manufacturing 5",null,"Finishing 1","Finishing 2","Finishing 3","Finishing 4","Finishing 5",null,"WK 1","WK 2","WK 3","WK 4","WK 5",null,"Spinning 1","Spinning 2","Spinning 3","Spinning 4","Spinning 5",null,"RM 1","RM 2","RM 3","RM 4","RM 5"]

{"sheet":"Chemin d'acces","index":12,"n_rows":2,"n_cols":1,"rows_kept":2,"cut":false,"hidden":true,"merged":[]}
["Chemin d'accès : "]
["Nom du fichier : "]

{"sheet":"MatriceTestSup","index":13,"n_rows":1,"n_cols":8,"rows_kept":1,"cut":false,"hidden":true,"merged":[]}
["Id Factory","Code of factory","Name of factory","Country","Direct work","Own","Client audit","3rd party audit"]

{"sheet":"DATACOUNTRIES","index":14,"n_rows":219,"n_cols":5,"rows_kept":219,"cut":false,"hidden":true,"merged":[]}
["Continent","Sub-continent","Country","Categoy of risks"]
["Europe","Eastern Europe","Belgique","A"]
["Europe","Eastern Europe","Allemagne ","A"]
["Europe","Eastern Europe","Pays-Bas","A"]
["Europe","Western Europe","Suisse","A"]
["Europe","Western Europe","Royaume-Uni","A"]
["Europe","Western Europe","Autriche","A"]
["Europe","Western Europe","Hong-Kong","A"]
["Europe","Océanie","Australie","A"]
["Europe","Western Europe","Espagne","A"]
["Europe","Asie","Japon","A"]
["Europe","Western Europe","Italie","A"]
["Europe","Etats-Unis","Etats-Unis","A"]
["Europe","Western Europe","France","A"]
["Europe","Western Europe","Portugal","A"]
[null,null,"Europe","A"]
[]
[]
[]
[]
[]
[]
[null,"Categoy of risks","Country","Synonyme","Synonyme2"]
[null,0,"Afghanistan","Afghanistan",{"$f":"D24","v":"Afghanistan"}]
[null,0,"Albania","Albanie",{"$f":"D25","v":"Albanie"}]
[null,0,"Algeria","Algérie","Algérie"]
[null,0,"Andorra","Andorre","Andorre"]
[null,0,"Angola","Angola","Angola"]
[null,0,"Antigua and Barbuda","Antigua-et-Barbuda","Antigua-et-Barbuda"]
[null,0,"Argentina","Argentine","Argentine"]
[null,0,"Armenia","Arménie","Arménie"]
[null,1,"Australia","Australie","Australie"]
[null,1,"Austria","Autriche","Autriche"]
[null,0,"Azerbaijan","Azerbaïdjan","Azerbaïdjan"]
[null,0,"Bahamas","Bahamas","Bahamas"]
[null,0,"Bahrain","Bahreïn","Bahreïn"]
[null,0,"Bangladesh","Bangladesh","Bangladesh"]
[null,0,"Barbados","Barbade","Barbade"]
[null,0,"Belarus","Biélorussie","Biélorussie"]
[null,1,"Belgium","Belgique","Belgique"]
[null,0,"Belize","Bélize","Bélize"]
[null,0,"Benin","Bénin","Bénin"]
[null,0,"Bhutan","Bhoutan","Bhoutan"]
[null,0,"Bolivia","Bolivie","Bolivie"]
[null,0,"Bosnia and Herzegovina","Bosnie-Herzégovine","Bosnie-Herzégovine"]
[null,0,"Botswana","Botswana","Botswana"]
[null,0,"Brazil","Brésil brazil","Brésil brazil"]
[null,0,"Brunei","Brunei","Brunei"]
[null,0,"Bulgaria","Bulgarie bulgaria","Bulgarie bulgaria"]
[null,0,"Burkina Faso","Burkina Faso","Burkina Faso"]
[null,0,"Burundi","Burundi","Burundi"]
[null,0,"Cabo Verde","Cap-Vert","Cap-Vert"]
[null,0,"Cambodia","Cambodge","Cambodge"]
[null,0,"Cameroon","Cameroun","Cameroun"]
[null,0,"Canada","Canada","Canada"]
[null,0,"Central African Republic","République centrafricaine","République centrafricaine"]
[null,0,"Chad","Tchad","Tchad"]
[null,0,"Chile","Chili","Chili"]
[null,0,"China","Chine","Chine"]
[null,0,"Colombia","Colombie","Colombie"]
[null,0,"Comoros","Comores","Comores"]
[null,0,"Congo, Democratic Republic of the","République démocratique du Congo","République démocratique du Congo"]
[null,0,"Congo, Republic of the ","Congo; République du ","Congo; République du "]
[null,0,"Costa Rica","Costa Rica","Costa Rica"]
[null,0,"Côte d'Ivoire","Côte d'Ivoire","Côte d'Ivoire"]
[null,0,"Croatia","Croatie","Croatie"]
[null,0,"Cuba","Cuba","Cuba"]
[null,0,"Cyprus","Chypre","Chypre"]
[null,0,"Czech Republic","République tchèque","République tchèque"]
[null,0,"Denmark","Danemark","Danemark"]
[null,0,"Djibouti","Djibouti","Djibouti"]
[null,0,"Dominica","Dominique","Dominique"]
[null,0,"Dominican Republic","République dominicaine","République dominicaine"]
[null,0,"Ecuador","Équateur","Équateur"]
[null,0,"Egypt","Égypte","Égypte"]
[null,0,"El Salvador","Le Salvador","Le Salvador"]
[null,0,"Equatorial Guinea","Guinée équatoriale","Guinée équatoriale"]
[null,0,"Eritrea","Érythrée","Érythrée"]
[null,0,"Estonia","Estonie","Estonie"]
[null,0,"Eswatini ","Eswatini ","Eswatini "]
[null,0,"Ethiopia","Éthiopie","Éthiopie"]
[null,0,"Fiji","Fidji","Fidji"]
[null,0,"Finland","Finlande","Finlande"]
[null,1,"France","France","France"]
[null,0,"Gabon","Gabon","Gabon"]
[null,0,"Gambia","Gambie","Gambie"]
[null,0,"Georgia","Géorgie","Géorgie"]
[null,1,"Germany","Allemagne","Allemagne"]
[null,0,"Ghana","Ghana",{"$f":"D89","v":"Ghana"}]
[null,0,"Greece","Grèce","Grèce"]
[null,0,"Grenada","Grenade","Grenade"]
[null,0,"Guatemala","Guatemala","Guatemala"]
[null,0,"Guinea","Guinée","Guinée"]
[null,0,"Guinea-Bissau","Guinée-Bissau","Guinée-Bissau"]
[null,0,"Guyana","Guyane","Guyane"]
[null,0,"Haiti","Haïti","Haïti"]
[null,0,"Honduras","Honduras","Honduras"]
[null,0,"Hong Kong","Hong-Kong","Hong-Kong"]
[null,0,"Hungary","Hongrie",{"$f":"D99","v":"Hongrie"}]
[null,0,"Iceland","Islande","Islande"]
[null,0,"India","Inde","Inde"]
[null,0,"Indonesia","Indonésie","Indonésie"]
[null,0,"Iran","Iran","Iran"]
[null,0,"Iraq","Irak","Irak"]
[null,0,"Ireland","Irlande","Irlande"]
[null,0,"Israel","Israël","Israël"]
[null,1,"Italy","Italie","Italie"]
[null,0,"Jamaica","Jamaïque","Jamaïque"]
[null,1,"Japan","Japon","Japon"]
[null,0,"Jordan","Jordanie","Jordanie"]
[null,0,"Kazakhstan","Kazakhstan","Kazakhstan"]
[null,0,"Kenya","Kenya","Kenya"]
[null,0,"Kiribati","Kiribati","Kiribati"]
[null,0,"Kosovo","Kosovo","Kosovo"]
[null,0,"Kuwait","Koweït","Koweït"]
[null,0,"Kyrgyzstan","Kirghizistan","Kirghizistan"]
[null,0,"Laos","Laos","Laos"]
[null,0,"Latvia","Lettonie","Lettonie"]
[null,0,"Lebanon","Liban","Liban"]
[null,0,"Lesotho","Lesotho","Lesotho"]
[null,0,"Liberia","Liberia","Liberia"]
[null,0,"Libya","Libye","Libye"]
[null,0,"Liechtenstein","Liechtenstein","Liechtenstein"]
[null,0,"Lithuania","Lituanie","Lituanie"]
[null,0,"Luxembourg","Luxembourg","Luxembourg"]
[null,0,"Madagascar","Madagascar","Madagascar"]
[null,0,"Malawi","Malawi","Malawi"]
[null,0,"Malaysia","Malaisie","Malaisie"]
[null,0,"Maldives","Maldives","Maldives"]
[null,0,"Mali","Mali","Mali"]
[null,0,"Malta","Malte","Malte"]
[null,0,"Marshall Islands","Îles Marshall","Îles Marshall"]
[null,0,"Mauritania","Mauritanie","Mauritanie"]
[null,0,"Mauritius","Maurice","Maurice"]
[null,0,"Mexico","Mexique","Mexique"]
[null,0,"Micronesia","Micronésie","Micronésie"]
[null,0,"Moldova","Moldavie","Moldavie"]
[null,0,"Monaco","Monaco","Monaco"]
[null,0,"Mongolia","Mongolie","Mongolie"]
[null,0,"Montenegro","Monténégro","Monténégro"]
[null,0,"Morocco","Maroc","Marocco"]
[null,0,"Mozambique","Mozambique",{"$f":"D142","v":"Mozambique"}]
[null,0,"Myanmar (formerly Burma)","Myanmar","Myanmar"]
[null,0,"Namibia","Namibie","Namibie"]
[null,0,"Nauru","Nauru","Nauru"]
[null,0,"Nepal","Népal","Népal"]
[null,1,"Netherlands","Pays-Bas","Pays-Bas"]
[null,0,"New Zealand","Nouvelle-Zélande","Nouvelle-Zélande"]
[null,0,"Nicaragua","Nicaragua","Nicaragua"]
[null,0,"Niger","Niger","Niger"]
[null,0,"Nigeria","Nigeria","Nigeria"]
[null,0,"North Korea","Corée du Nord","Corée du Nord"]
[null,0,"North Macedonia","Macédoine du Nord","Macédoine du Nord"]
[null,0,"Norway","Norvège",{"$f":"D154","v":"Norvège"}]
[null,0,"Oman","Oman","Oman"]
[null,0,"Pakistan","Pakistan","Pakistan"]
[null,0,"Palau","Palau","Palau"]
[null,0,"Palestine State","État de Palestine","État de Palestine"]
[null,0,"Panama","Panama","Panama"]
[null,0,"Papua New Guinea","Papouasie-Nouvelle-Guinée","Papouasie-Nouvelle-Guinée"]
[null,0,"Paraguay","Paraguay","Paraguay"]
[null,0,"Peru","Pérou","Pérou"]
[null,0,"Philippines","Philippines","Philippines"]
[null,0,"Poland","Pologne","Pologne"]
[null,1,"Portugal","Portugal","Portugal"]
[null,0,"Qatar","Qatar","Qatar"]
[null,1,"United Kingdom","Royaume-Uni","Royaume Uni"]
[null,0,"Russia","Russie",{"$f":"D168","v":"Russie"}]
[null,0,"Rwanda","Rwanda",{"$f":"D169","v":"Rwanda"}]
[null,0,"Saint Kitts and Nevis","Saint-Kitts-et-Nevis","Saint-Kitts-et-Nevis"]
[null,0,"Saint Lucia","Sainte-Lucie","Sainte-Lucie"]
[null,0,"Saint Vincent and the Grenadines","Saint Vincent et les Grenadines","Saint Vincent et les Grenadines"]
[null,0,"Samoa","Samoa","Samoa"]
[null,0,"San Marino","Saint-Marin","Saint-Marin"]
[null,0,"Sao Tome and Principe","Sao Tomé et Principe","Sao Tomé et Principe"]
[null,0,"Saudi Arabia","Arabie Saoudite","Arabie Saoudite"]
[null,0,"Senegal","Sénégal","Sénégal"]
[null,0,"Serbia","Serbie","Serbie"]
[null,0,"Seychelles","Seychelles","Seychelles"]
[null,0,"Sierra Leone","Sierra Leone","Sierra Leone"]
[null,0,"Singapore","Singapour","Singapour"]
[null,0,"Slovakia","Slovaquie","Slovaquie"]
[null,0,"Slovenia","Slovénie","Slovénie"]
[null,0,"Solomon Islands","Îles Salomon","Îles Salomon"]
[null,0,"Somalia","Somalie","Somalie"]
[null,0,"South Africa","Afrique du Sud","Afrique du Sud"]
[null,0,"South Korea","Corée du Sud","Corée du Sud"]
[null,0,"South Sudan","Sud-Soudan","Sud-Soudan"]
[null,1,"Spain","Espagne","Espagne"]
[null,0,"Sri Lanka","Sri Lanka","Sri Lanka"]
[null,0,"Sudan","Soudan","Soudan"]
[null,0,"Suriname","Suriname","Suriname"]
[null,0,"Sweden","Suède","Suède"]
[null,1,"Switzerland","Suisse","Suisse"]
[null,0,"Syria","Syrie","Syrie"]
[null,0,"Taiwan","Taiwan","Taiwan"]
[null,0,"Tajikistan","Tadjikistan","Tadjikistan"]
[null,0,"Tanzania","Tanzanie","Tanzanie"]
[null,0,"Thailand","Thaïlande","Thaïlande"]
[null,0,"Togo","Togo","Togo"]
[null,0,"Tonga","Tonga","Tonga"]
[null,0,"Trinidad and Tobago","Trinité-et-Tobago","Trinité-et-Tobago"]
[null,0,"Tunisia","Tunisie","Tunisie"]
[null,0,"Turkey","Turquie","Turquie"]
[null,0,"Turkmenistan","Turkménistan","Turkménistan"]
[null,0,"Tuvalu","Tuvalu","Tuvalu"]
[null,0,"Uganda","Ouganda","Ouganda"]
[null,0,"Ukraine","Ukraine","Ukraine"]
[null,0,"United Arab Emirates","Émirats arabes unis","Émirats arabes unis"]
[null,0,"Romania","Roumanie","Roumanie"]
[null,1,"United States of America","États-Unis d'Amérique","États-Unis d'Amérique"]
[null,0,"Uruguay","Uruguay","Uruguay"]
[null,0,"Uzbekistan","Ouzbékistan","Ouzbékistan"]
[null,0,"Vanuatu","Vanuatu","Vanuatu"]
[null,0,"Venezuela","Venezuela","Venezuela"]
[null,0,"Vietnam","Vietnam","Vietnam"]
[null,0,"Yemen","Yémen","Yémen"]
[null,0,"Zambia","Zambie","Zambie"]
[null,0,"Zimbabwe","Zimbabwe","Zimbabwe"]

{"sheet":"label_numbers","index":15,"n_rows":34,"n_cols":4,"rows_kept":34,"cut":false,"hidden":true,"merged":[]}
["Nom label à mettre dans l'onglet fiche produit","numero","nom_label"]
["AVSF","A-1","AVSF - Filière cachemire durable de Mongolie","AVSF"]
["BIORE","A-2","Bioré","BIORE"]
["BLUESIGN","A-3","Bluesign","BLUESIGN"]
["DEMETER","A-4","Demeter","DEMETER"]
["EUECOLABEL","A-5","EU Ecolabel","ECOLABEL"]
["MAXHAVELAAR","A-6","Fair Trade - Max Haavelar","HAVELAAR"]
["FTCERTIFIED","A-7","Fair Trade Certified","FTCERTIFIED"]
["FSC","A-8","Forest Sustainable Council - FSC","FSC"]
["GOTS","A-9","Global Organic Textil Standard - GOTS","GOTS"]
["GRS","A-10","Global Recycled Standard","GRS"]
["GTDS","A-11","Global Traceable Down Standard","GTDS"]
["NORDIC","A-12","Nordic Ecolabel","NORDIC"]
["OEKOSTEP","A-13","OEKO-TEX® CONFIANCE Textile / STEP","OEKOSTEP"]
["OEKOGREEN","A-14","OEKO-TEX® MADE IN GREEN","OEKOGREEN"]
["OEKO100","A-15","OEKO-TEX® STANDARD 100","OEKO"]
["OBCS","A-16","Organic Blended Content standard","OBCS"]
["OCS100","A-17","Organic 100 Content Standard","OCS100"]
["OFG","A-18","Origine France Garantie ","OFG"]
["RCS","A-19","Recycle Claim Standard","RCS"]
["RDS","A-20","Responsible Down Standard","RDS"]
["RWS","A-21","Responsible Wool Standard","RWS"]
["RCS100","A-22","Recycle Claim Standard 100","RCS"]
["BCI","A-23","Better Cotton Initiative - BCI","BCI"]
["FTT","A-24","France terre textile","FTT"]
["EFLAX","A-25","European flax","FLAX"]
["MASTEROFLINEN","A-26","Master of Linen","MASTEROFLINEN"]
["NATURTEXTIL","A-27","Naturtextil Best","NATURTEXTIL"]
["OEKOLEATHER","A-28","Leather Standard OEKO-TEX® ","OEKOLEATHER"]
["NATURLEDER","A-29","Naturleder","NATURLEDER"]
["C2CBRONZE","A-30","Cradle to Cradle Bronze","CTOCBRONZE"]
["C2CSILVER","A-31","Cradle to Cradle Silver","CTOCSILVER"]
["C2CGOLD","A-32","Cradle to Cradle Gold","CTOCGOLD"]
["C2CPLATINIUM","A-33","Cradle to Cradle Platinum","CTOCPLATINIUM"]

{"sheet":"DictMP","index":16,"n_rows":63,"n_cols":20,"rows_kept":63,"cut":false,"hidden":true,"merged":[]}
[]
[null,"Code matière","Catégorie de Matière","Sous-catégorie de matière","Matière","Français","Anglais","Allemand","Espagnol","Chinois","Italien","Autres","Autres"]
[null,null,"Chimique artificielle","Chimique artificielle cellulosique","Acétate de cellulose","Acétate de cellulose","Cellulose acetate","Celluloseacetat","Acetato de celulosa","醋酸纤维素","Acetato di cellulosa",null,"acetate de cell"]
[null,null,"Chimique artificielle","Chimique artificielle cellulosique","Acetate","Acetate","Acetate","Acetat","acetato","醋酸盐","acetato","acet","acétate",null,null,null,null,null,null,"Manque : alfa"]
[null,null,"Chimique artificielle","Chimique artificielle - Amidon de mais","Acide polylactique","Acide polylactique","Polylactic acid","Polymilchsäure","Ácido poliláctico","聚乳酸","Acido polilattico",null,null,null,null,null,null,null,null,"Alfa"]
[null,null,"Chimique synthétique",null,"Acrylique","Acrylique","Acrylic","Acryl","acrílico","丙烯酸树脂","acrilico",null,null,null,null,null,null,null,null,"Alginate"]
[null,null,"Naturelle animale","Laine","Alpaga","Alpaga","Alpaca","Alpaka","alpaca","羊驼","alpaca","alp",null,null,null,null,null,null,null,"Ardil"]
[null,null,"Naturelle animale","Fourrure animale","Angora","Angora","Angora","Angora","angora","兔毛","angora","ang",null,null,null,null,null,null,null,"Arlan"]
[null,null,"Chimique synthétique",null,"Aramide","Aramide","aramid","Aramid","aramida","芳纶","aramide",null,null,null,null,null,null,null,null,"Capok"]
[null,null,"Naturelle animale","Cuir exotique","Autre cuir","Autre cuir","Other leather","Anderes Leder","Otro cuero","其他皮革","Altra pelle",null,null,null,null,null,null,null,null,"Casenka"]
[null,null,"Naturelle animale","Laine","Cachemire","Cachemire","Cashmere","Kaschmir","cachemira","开司米","cachemire","cach","cash",null,null,null,null,null,null,"Coir"]
[null,null,"Chimique artificielle","Chimique artificielle protéinique","Carapace de crustacés","Carapace de crustacés","Shellfish shell","Muschelschale","Mariscos","贝类壳","Crostacei",null,null,null,null,null,null,null,null,"Coslan"]
[null,null,"Naturelle végétale",null,"Chanvre","Chanvre","Hemp","Hanf","cáñamo","麻","canapa",null,null,null,null,null,null,null,null,"Élastodiène"]
[null,null,"Chimique synthétique",null,"Chlorofibre","Chlorofibre","chlorofibre","Polychloridfasern","clorofibra","chlorofibre","clorofibra",null,null,null,null,null,null,null,null,"Élastoléfine"]
[null,null,"Naturelle végétale",null,"Coco","Coco","Coco","Kokospalme","Coco","可可","cocco",null,null,null,null,null,null,null,null,"Elastomultiester"]
[null,null,"Naturelle végétale",null,"Coton","Coton","Cotton","Baumwolle","algodón","棉花","di cotone",null,null,null,null,null,null,null,null,"Fibrolane"]
[null,null,"Naturelle animale","Cuir","Cuir d'agneau ","Cuir d'agneau ","Lamb leather","Lammleder","Cuero de cordero","羔羊皮","Pelle di agnello",null,null,null,null,null,null,null,null,"Fluorofibre "]
[null,null,"Naturelle animale","Cuir","Cuir de chèvre","Cuir de chèvre","Goat leather","Ziegenleder","Cuero de cabra","山羊皮","Pelle di capra",null,null,null,null,null,null,null,null,"Genêt"]
[null,null,"Naturelle animale","Cuir","Cuir de mouton","Cuir de mouton","Sheep leather","Schafsleder","Cuero de oveja","羊皮","Pelle di pecora",null,null,null,null,null,null,null,null,"Glycine"]
[null,null,"Naturelle animale","Cuir","Cuir de porc","Cuir de porc","Pork leather","Schweineleder","Cuero de cerdo","猪肉皮","Pelle di maiale",null,null,null,null,null,null,null,null,"Gucca"]
[null,null,"Naturelle animale","Cuir","Cuir de vache","Cuir de vache","Cow leather","Rindsleder","Cuero de vaca","牛皮","Pelle di mucca",null,null,null,null,null,null,null,null,"Henequen - Sisal"]
[null,null,"Naturelle animale","Cuir","Cuir de veau ","Cuir de veau ","Calfskin","Kalbsleder","Piel de becerro","小牛皮","pelle di vitello",null,null,null,null,null,null,null,null,"Houblon"]
[null,null,"Naturelle animale","Cuir","Cuir ","Cuir","Leather","Leder","cuero","皮革","pelle",null,null,null,null,null,null,null,null,"Kénaf"]
[null,null,"Chimique artificielle","Chimique artificielle cellulosique","Cupro","Cupro","cupro","cupro","cupro","铜氨","cupro",null,null,null,null,null,null,null,null,"Lait, Soja"]
[null,null,"Naturelle animale",null,"Duvet","Duvet","fluff","Flaum","pelusa","起毛","lanugine",null,null,null,null,null,null,null,null,"Lanital"]
[null,null,"Chimique synthétique",null,"Elasthanne","Élasthane","elastane","Elasthan","elastano","氨纶","elastan","élast","elas",null,null,null,null,null,null,"Latex"]
[null,null,"Naturelle animale","Fourrure animale","Fourrure","Fourrure","Fur","Pelz","piel","毛皮","pelliccia",null,null,null,null,null,null,null,null,"Lotus"]
[null,null,"Naturelle végétale",null,"Jute","Jute","Jute","Jute","yute","黄麻","iuta",null,null,null,null,null,null,null,null,"Lupin"]
[null,null,"Naturelle végétale",null,"Kapok","Kapok","Kapok","Kapok","capoc","木棉","capoc",null,null,null,null,null,null,null,null,"Manille"]
[null,null,"Naturelle animale","Laine","Laine d'Alpaga","Laine d'Alpaga","Alpaca wool","Alpakawolle","Lana de alpaca","羊驼毛","Lana di alpaca",null,null,null,null,null,null,null,null,"Mérinova"]
[null,null,"Naturelle animale","Laine","Laine de chameau","Laine de chameau","Camel wool","Kamelwolle","Lana de camello","骆驼毛","Lana di cammello",null,null,null,null,null,null,null,null,"Modacrylique"]
[null,null,"Naturelle animale","Laine","Laine de dromadaire","Laine de dromadaire","Dromedary wool","Dromedarwolle","Lana de dromedario","单峰羊毛","Lana dromedaria",null,null,null,null,null,null,null,null,"Paille"]
[null,null,"Naturelle animale","Laine","Laine de Lama","Laine de Lama","Lama's wool","Lama Wolle","Lana de lama","喇嘛的羊毛","Lana di lama",null,null,null,null,null,null,null,null,"Poil / crin"]
[null,null,"Naturelle animale","Laine","Laine de Mérinos","Laine de Mérinos","Merino Wool","Merinowolle","Lana Merina","美利奴羊毛","Lana merino",null,null,null,null,null,null,null,null,"Polyacrylate"]
[null,null,"Naturelle animale","Laine","Laine de mouton","Laine de mouton","Sheep wool","Schafwolle","Lana de oveja","绵羊毛","Lana di pecora",null,null,null,null,null,null,null,null,"Polyactide"]
[null,null,"Naturelle animale","Laine","Laine de vigogne","Laine de vigogne","Vicuna wool","Vicuna Wolle","Lana de vicuña","骆马毛","Lana Vicuna",null,null,null,null,null,null,null,null,"Polyamide"]
[null,null,"Naturelle animale","Laine","Laine de Yack","Laine de Yack","Yack wool","Yack Wolle","Lana de yack","ack毛","Lana yack",null,null,null,null,null,null,null,null,"Polybenzimidazole (PBI)"]
[null,null,"Naturelle animale","Laine","Laine Mérinos","Laine Mérinos","Merino Wool","Merinowolle","Lana Merina","美利奴羊毛","Lana merino",null,null,null,null,null,null,null,null,"Polycarbamide"]
[null,null,"Naturelle animale",null,"Laine","Laine","Wool","Wolle","lana","毛","lana",null,null,null,null,null,null,null,null,"Polyester"]
[null,null,"Naturelle végétale",null,"Lin","Lin","Linen","Leinen","lino","亚麻布","biancheria","flax","Flax",null,null,null,null,null,null,"Polyéthylène"]
[null,null,"Chimique synthétique",null,"Lycra","Lycra","Lycra","Lycra","licra","莱卡纤维","lycra",null,null,null,null,null,null,null,null,"Polyimid"]
[null,null,"Chimique artificielle","Chimique artificielle cellulosique","Lyocell","Lyocell","Lyocell","Lyocell","lyocell","莱赛尔","Lyocell",null,null,null,null,null,null,null,null,"Polylactic Acid"]
[null,null,"Chimique artificielle","Chimique artificielle cellulosique","Modal","Modal","Modal","modal","modal","语气","modale",null,null,null,null,null,null,null,null,"Polylactide"]
[null,null,"Naturelle animale","Laine","Mohair","Mohair","Mohair","Mohair","mohair","马海呢","mohair",null,null,null,null,null,null,null,null,"Polynosique (Meryl ou Zantrel)"]
[null,null,"Naturelle végétale",null,"Ortie","Ortie","Nettle","Nessel","ortiga","荨麻","ortica",null,null,null,null,null,null,null,null,"Polyphénolique"]
[null,null,"Naturelle végétale",null,"Piña","Piña","Piña","Piña","Piña","皮尼亚","Piña",null,null,null,null,null,null,null,null,"Polyurée"]
[null,null,"Naturelle animale",null,"Plumes","Plumes","feathers","Gefieder","plumas","羽毛","piume",null,null,null,null,null,null,null,null,"Saule"]
[null,null,"Chimique synthétique",null,"Polyamide","Polyamide","Polyamide","Polyamid","poliamida","聚酰胺","poliammide",null,null,null,null,null,null,null,null,"Silcool"]
[null,null,"Chimique synthétique",null,"Polyester","Polyester","Polyester","Polyester","poliéster","聚酯纤维","poliestere",null,null,null,null,null,null,null,null,"Spandex "]
[null,null,"Chimique synthétique",null,"Polyéthylène","Polyethylene","polythene","polythene","polietileno","聚乙烯","politene","Poluethylène",null,null,null,null,null,null,null,"Textilène"]
[null,null,"Chimique synthétique",null,"Polypropylène","Polypropylène","polypropylene","Polypropylen","polipropileno","聚丙烯","polipropilene",null,null,null,null,null,null,null,null,"Tilleul"]
[null,null,"Chimique synthétique",null,"Polyuréthane (PU) cuir synthétique","Polyuréthane (PU) cuir synthétique","Polyurethane (PU) synthetic leather","Kunstleder aus Polyurethan (PU)","Cuero sintético de poliuretano (PU)","聚氨酯合成革","Pelle sintetica in poliuretano (PU)",null,null,null,null,null,null,null,null,"Trivinyl "]
[null,null,"Naturelle végétale",null,"Ramie","Ramie","Ramie","Ramie","ramina","苎麻","ramiè",null,null,null,null,null,null,null,null,"Varech"]
[null,null,"Naturelle végétale",null,"Raphia","Raphia","Raffia","Bast","rafia","拉菲草","rafia",null,null,null,null,null,null,null,null,"Vicara"]
[null,null,"Naturelle végétale",null,"Sisal","Sisal","Sisal","Sisal","sisal","剑麻","sisal",null,null,null,null,null,null,null,null,"Vinylal"]
[null,null,"Naturelle animale",null,"Soie","Soie","Silk","Seide","seda","丝绸","seta",null,null,null,null,null,null,null,null,"Vinylique"]
[null,null,"Chimique artificielle","Chimique artificielle cellulosique","Triacétate de cellulose","Triacétate de cellulose","Cellulose triacetate","Cellulosetriacetat","Triacetato de celulosa","三醋酸纤维素","Triacetato di cellulosa"]
[null,null,"Chimique artificielle","Chimique artificielle cellulosique","Viscose de bambou","Viscose de bambou","Bamboo viscose","Bambusviskose","Viscosa de bambú","竹粘胶","Viscosa di bambù"]
[null,null,"Chimique artificielle","Chimique artificielle cellulosique","Viscose","Viscose","Viscose","Viskose","viscosa","粘胶","viscosa"]
[null,null,"Chimique synthétique",null,"Nylon","Nylon","Nylon","Nylon","nylon","尼龙","nylon"]
[null,null,"Chimique artificielle","Chimique artificielle cellulosique","Tencel","Tencel","Tencel","Tencel","tencel","天丝","Tencel"]
[null,null,"Chimique artificielle","Chimique artificielle cellulosique","Ecovero","écovéro","Ecovero","écovero","ecovéro","EcoVero"]
[null,null,"Chimique artificielle","Chimique artificielle cellulosique","Rayonne","Rayonne","Rayon","rayone","Rayone","rayonne","rayon"]

{"sheet":"DictCertif","index":17,"n_rows":14,"n_cols":2,"rows_kept":14,"cut":false,"hidden":true,"merged":[]}
["ICS","D-1"]
["BSCI","D-2"]
["SA 8000","D-3"]
["WRAP","D-4"]
["SEDEX SMETA","D-5"]
["OHSAS 18001","D-6"]
["FLA","D-7"]
["ISO 14001","D-8"]
["BEPI","D-9"]
["Bluesign","D-10"]
["GOTS","D-11"]
["OekoTex 100","D-12"]
["Oekotex Step","D-13"]
["GRS","D-14"]